{"text_format":"1","workbook":"xlsx","n_sheets":24,"sheets":["Welcome (2)","Welcome","Checklist","Your Company Details","Your Classes","Your Markets","A&H Markets","Aviation Markets","BL Markets","Casualty Markets","Construction Markets","Energy Markets","FPL Markets","K&R Markets","Marine Markets","PR Markets","Property Markets","RE Markets","RI Markets","Terrorism Markets","Your User Details","Extract Data","LMS Upload","Keys"],"not_rendered":{"charts":0,"images":7,"macros":1,"external_links":0,"defined_names":0,"comments":1,"pivot_tables":0},"unopened":[],"bounds":{"document_bytes":16777216,"sheet_cells":100000,"rows_first":2000,"rows_last":500,"rows_between":2000,"halvings":0,"cell_chars":16384,"cell_head_chars":4096},"cells_cut":0,"cells_raw":0,"read":"whole","date_system":"1900"}

{"sheet":"Welcome (2)","index":0,"n_rows":0,"n_cols":0,"rows_kept":0,"cut":false,"hidden":true,"merged":[]}

{"sheet":"Welcome","index":1,"n_rows":24,"n_cols":5,"rows_kept":24,"cut":false,"hidden":false,"merged":[]}
[]
[]
[]
[]
[]
[]
[]
[]
[]
[]
[]
[null,null,null,null,"Broker Onboarding Form"]
[]
[null,null,null,null,"This form is designed to facilitate your PPL onboarding experience. \nIf you have a query whilst completing the form, please refer to the guidance notes \nbefore contacting one of our onboarding coordinators."]
[null,null,null,null,"To contact one of our onboarding coordinators, please email us at:"]
[null,null,null,null,"pplenquiries@placingplatformlimited.com"]
[]
[]
[null,null,null,null,"Please ensure you are using the latest version of this onboarding form. "]
[null,null,null,null,"To download the latest version of this form and/or the guidance notes, please visit:"]
[null,null,null,null,"https://placingplatformlimited.com/useful-information"]
[]
[null,null,null,null,"Please enable the content of this form if asked to do so"]
[null,null,null,null,"This form contains dynamic content that depends on your responses. Enabling content will ensure the form works as intended"]

{"sheet":"Checklist","index":2,"n_rows":13,"n_cols":4,"rows_kept":13,"cut":false,"hidden":false,"merged":[]}
[]
[null,"Checklist"]
[]
[null,"Overall Onboarding progress",{"$f":"SUM(C6:C12)/4","v":0},{"$f":"IF(C4>99.9%,1,0)","v":0}]
[null,"This list will automatically populate to reflect your answers in the following tabs:"]
[null,"Your Company Details",{"$f":"'Your Company Details'!E4","v":0},{"$f":"IF(C6>99.9%,1,0)","v":0}]
[null,{"$f":"IF(C6=100%,\"Thank you for completing this section\",\"You need to provide the full set of information and all the contacts required\")","v":"You need to provide the full set of information and all the contacts required"}]
[null,"Your Classes",{"$f":"'Your Classes'!E4","v":0},{"$f":"IF(C8>99.9%,1,0)","v":0}]
[null,{"$f":"IF(C8=100%,\"Thank you for completing this section\",\"Please ensure you have answered all the questions\")","v":"Please ensure you have answered all the questions"}]
[null,"Your Markets",{"$f":"'Your Markets'!D6","v":0},{"$f":"IF(C10>99.9%,1,0)","v":0}]
[null,{"$f":"IF(C10=100%,\"Thank you for completing this section\",\"You need to tell us all the Markets you want to trade with on PPL\")","v":"You need to tell us all the Markets you want to trade with on PPL"}]
[null,"Your User Details",{"$f":"'Your User Details'!U56/100","v":0},{"$f":"IF(C12>99.9%,1,0)","v":0}]
[null,{"$f":"IF(C12,\"Thank you for completing this section\",\"You need to add at least one team and one user\")","v":"You need to add at least one team and one user"}]

{"sheet":"Your Company Details","index":3,"n_rows":184,"n_cols":7,"rows_kept":184,"cut":false,"hidden":false,"merged":[]}
[]
[null,"Your Company Details"]
[null,"Broker Setup Form",null,null,"Progress"]
[null,"Once we have your completed form we will create your accounts. If we require more information, we will contact you.",null,null,{"$f":"G184/100","v":0}]
[]
[null,"Section 1: Information about your company"]
[]
[null,1.1000000000000001,"Registered Company Name:",null,{"$f":"IF(ISBLANK(D8),\"û\",\"ü\")","v":"û"},{"$f":"IF(ISBLANK(D8),\"Please add your registered company name\",\"This is how your company will be displayed on PPL\")","v":"Please add your registered company name"},{"$f":"IF(ISBLANK(D8),\"0\",1.724)","v":"0"}]
[null,1.2,"Company Address:"]
[null,null,"Address Line 1:",null,{"$f":"IF(ISBLANK(D10),\"û\",\"ü\")","v":"û"},{"$f":"IF(ISBLANK(D10),\"Please add your company address\",\"\")","v":"Please add your company address"},{"$f":"IF(ISBLANK(D10),\"0\",1.724)","v":"0"}]
[]
[null,null,"Address Line 2:"]
[]
[null,null,"City",null,{"$f":"IF(ISBLANK(D14),\"û\",\"ü\")","v":"û"},{"$f":"IF(ISBLANK(D14),\"Please add your city\",\"\")","v":"Please add your city"},{"$f":"IF(ISBLANK(D14),\"0\",1.724)","v":"0"}]
[]
[null,null,"Region"]
[]
[null,null,"Postcode",null,{"$f":"IF(ISBLANK(D18),\"û\",\"ü\")","v":"û"},{"$f":"IF(ISBLANK(D18),\"Please add your Postcode\",\"\")","v":"Please add your Postcode"},{"$f":"IF(ISBLANK(D18),\"0\",1.724)","v":"0"}]
[]
[null,null,"Country","Please select",{"$f":"IF(D20=\"Please select\",\"û\",\"ü\")","v":"û"},{"$f":"IF(D20=\"Please select\",\"Please select your country\",\"\")","v":"Please select your country"},{"$f":"IF(D20=\"Please select\",0,1.724)","v":0}]
[]
[null,1.3,"Company Logo:\nIf you wish your company logo to be \ndisplayed on the platform, please \npaste it here or send by email separately."]
[]
[null,1.4,"Are you a member of LIIBA?","Please select",{"$f":"IF(D24=\"Please select\",\"û\",\"ü\")","v":"û"},{"$f":"IF(D24=\"Please select\",\"Please confirm whether you are a member of LIIBA\",\"\")","v":"Please confirm whether you are a member of LIIBA"},{"$f":"IF(D24=\"Please select\",0,1.724)","v":0}]
[]
[null,"Section 2: PPL Contacts"]
[]
[null,"PPL Approval contacts:"]
[]
[null,"Approvers will authorise:",null,"Required and involved in providing authorisation:  \n• to users moving teams and account upgrades to Full Binding or Facility Admin (Manage Users) etc.\nIt is encouraged that you nominate 2 approvers."]
[null,null,null,"• new users setup;\n- if new users require approval, approvers will be contacted before they are setup. \n- if approval is not required, approvers will be notified by email after new users have been setup."]
[]
[null,"Is approval required to setup new users?",null,"Please select",{"$f":"IF(D33=\"Please select\",\"û\",\"ü\")","v":"û"},{"$f":"IF(D33=\"Please select\",\"Please confirm if an approval is required before setting up new users\",\"\")","v":"Please confirm if an approval is required before setting up new users"},{"$f":"IF($D33=\"Yes\",\"1.724\",IF($D33=\"No\",\"1.724\",IF($D33=\"Please select\",\"0\")))","v":"0"}]
[]
[null,2.1,"Primary Approver"]
[]
[null,null,"First name:",null,{"$f":"IF(ISBLANK(D37),\"û\",\"ü\")","v":"û"},{"$f":"IF(ISBLANK(D37),\"Please confirm the first name of your Primary Approver\",\"\")","v":"Please confirm the first name of your Primary Approver"},{"$f":"IF(ISBLANK(D37),\"0\",1.724)","v":"0"}]
[]
[null,null,"Last name:",null,{"$f":"IF(ISBLANK(D39),\"û\",\"ü\")","v":"û"},{"$f":"IF(ISBLANK(D39),\"Please confirm the last name of your Primary Approver\",\"\")","v":"Please confirm the last name of your Primary Approver"},{"$f":"IF(ISBLANK(D39),\"0\",1.724)","v":"0"}]
[]
[null,null,"Email address:",null,{"$f":"IF(ISBLANK(D41),\"û\",\"ü\")","v":"û"},{"$f":"IF(ISBLANK(D41),\"Please confirm the email address of your Primary Approver\",\"\")","v":"Please confirm the email address of your Primary Approver"},{"$f":"IF(ISBLANK(D41),\"0\",1.724)","v":"0"}]
[]
[null,null,"Telephone number:",null,{"$f":"IF(ISBLANK(D43),\"û\",\"ü\")","v":"û"},{"$f":"IF(ISBLANK(D43),\"Please confirm the telephone number of your Primary Approver\",\"\")","v":"Please confirm the telephone number of your Primary Approver"},{"$f":"IF(ISBLANK(D43),\"0\",1.724)","v":"0"}]
[]
[null,2.2000000000000002,"Secondary Approver"]
[]
[null,null,"First Name:",null,{"$f":"IF(ISBLANK(D47),\"û\",\"ü\")","v":"û"},{"$f":"IF(ISBLANK(D47),\"Please confirm the first name of your Secondary Approver\",\"\")","v":"Please confirm the first name of your Secondary Approver"},{"$f":"IF(ISBLANK(D47),\"0\",1.724)","v":"0"}]
[]
[null,null,"Last Name:",null,{"$f":"IF(ISBLANK(D49),\"û\",\"ü\")","v":"û"},{"$f":"IF(ISBLANK(D49),\"Please confirm the last name of your Secondary Approver\",\"\")","v":"Please confirm the last name of your Secondary Approver"},{"$f":"IF(ISBLANK(D49),\"0\",1.724)","v":"0"}]
[]
[null,null,"Email address:",null,{"$f":"IF(ISBLANK(D51),\"û\",\"ü\")","v":"û"},{"$f":"IF(ISBLANK(D51),\"Please confirm the email address of your Secondary Approver\",\"\")","v":"Please confirm the email address of your Secondary Approver"},{"$f":"IF(ISBLANK(D51),\"0\",1.724)","v":"0"}]
[]
[null,null,"Telephone number:",null,{"$f":"IF(ISBLANK(D53),\"û\",\"ü\")","v":"û"},{"$f":"IF(ISBLANK(D53),\"Please confirm the telephone number of your Secondary Approver\",\"\")","v":"Please confirm the telephone number of your Secondary Approver"},{"$f":"IF(ISBLANK(D53),\"0\",1.724)","v":"0"}]
[]
[null,{"$f":"IF('Your Markets'!C39=\"Yes\",\"Stamp connection notification\",IF('Your Markets'!C40=\"Yes\",\"Stamp connection approval request\",\"Stamp connection notification/approval request\"))","v":"Stamp connection notification/approval request"},null,{"$f":"IF('Your Markets'!C39=\"Yes\",\"In 'Your Market' Section, you have indicated that you would like to be connected to all new stamps without prior approval\",IF('Your Markets'!C40=\"Yes\",\"In 'Your Market' Section, you have indicated that you would like to give your prior approval before being connected new stamps made available\",\"\"))","v":""}]
[null,"Are these contacts the same as the approvers?",null,"Please select",{"$f":"IF(D56=\"Please select\",\"û\",\"ü\")","v":"û"},{"$f":"IF(D56=\"Please select\",\"Please confirm if the future stamp connection contacts are the same as the approvers\",\"\")","v":"Please confirm if the future stamp connection contacts are the same as the approvers"},{"$f":"IF($D56=\"Yes\",\"1.724\",IF($D56=\"No\",\"1.724\",IF($D56=\"Please select\",\"0\")))","v":"0"}]
[]
[null,2.2999999999999998,{"$f":"IF('Your Markets'!C39=\"Yes\",\"Primary notification contact\",IF('Your Markets'!C40=\"Yes\",\"Primary Connection Approver:\",\"Primary Connection contact\"))","v":"Primary Connection contact"}]
[]
[null,null,"First name:",null,{"$f":"IF(ISBLANK(D60),\"û\",\"ü\")","v":"û"},{"$f":"IF(ISBLANK(D60),\"Please confirm the first name of your Primary Connection contact\",\"\")","v":"Please confirm the first name of your Primary Connection contact"},{"$f":"IF(ISBLANK(D60),\"0\",1.724)","v":"0"}]
[]
[null,null,"Last name:",null,{"$f":"IF(ISBLANK(D62),\"û\",\"ü\")","v":"û"},{"$f":"IF(ISBLANK(D62),\"Please confirm the last name of your Primary Connection contact\",\"\")","v":"Please confirm the last name of your Primary Connection contact"},{"$f":"IF(ISBLANK(D62),\"0\",1.724)","v":"0"}]
[]
[null,null,"Email address:",null,{"$f":"IF(ISBLANK(D64),\"û\",\"ü\")","v":"û"},{"$f":"IF(ISBLANK(D64),\"Please confirm the email address of your Primary Connection contact\",\"\")","v":"Please confirm the email address of your Primary Connection contact"},{"$f":"IF(ISBLANK(D64),\"0\",1.724)","v":"0"}]
[]
[null,null,"Telephone number:",null,{"$f":"IF(ISBLANK(D66),\"û\",\"ü\")","v":"û"},{"$f":"IF(ISBLANK(D66),\"Please confirm the telephone number of your Primary Connection contact\",\"\")","v":"Please confirm the telephone number of your Primary Connection contact"},{"$f":"IF(ISBLANK(D66),\"0\",1.724)","v":"0"}]
[]
[null,2.4,{"$f":"IF('Your Markets'!C39=\"Yes\",\"Secondary notification contact\",IF('Your Markets'!C40=\"Yes\",\"Secondary Connection Approver:\",\"Secondary Connection contact\"))","v":"Secondary Connection contact"}]
[]
[null,null,"First Name:",null,{"$f":"IF(ISBLANK(D70),\"û\",\"ü\")","v":"û"},{"$f":"IF(ISBLANK(D70),\"Please confirm the first name of your Secondary Connection contact\",\"\")","v":"Please confirm the first name of your Secondary Connection contact"},{"$f":"IF(ISBLANK(D70),\"0\",1.724)","v":"0"}]
[]
[null,null,"Last Name:",null,{"$f":"IF(ISBLANK(D72),\"û\",\"ü\")","v":"û"},{"$f":"IF(ISBLANK(D72),\"Please confirm the last name of your Secondary Connection contact\",\"\")","v":"Please confirm the last name of your Secondary Connection contact"},{"$f":"IF(ISBLANK(D72),\"0\",1.724)","v":"0"}]
[]
[null,null,"Email address:",null,{"$f":"IF(ISBLANK(D74),\"û\",\"ü\")","v":"û"},{"$f":"IF(ISBLANK(D74),\"Please confirm the email address of your Secondary Connection contact\",\"\")","v":"Please confirm the email address of your Secondary Connection contact"},{"$f":"IF(ISBLANK(D74),\"0\",1.724)","v":"0"}]
[]
[null,null,"Telephone number:",null,{"$f":"IF(ISBLANK(D76),\"û\",\"ü\")","v":"û"},{"$f":"IF(ISBLANK(D76),\"Please confirm the telephone number of your Secondary Connection contact\",\"\")","v":"Please confirm the telephone number of your Secondary Connection contact"},{"$f":"IF(ISBLANK(D76),\"0\",1.724)","v":"0"}]
[]
[null,"PPL contacts:"]
[]
[null,{"$f":"IF($D$56=\"Please select\",\"2.3\",IF($D$56=\"No\",\"2.5\",IF($D$56=\"Yes\",\"2.3\")))","v":"2.3"},"PPL Sponsor"]
[]
[null,null,"First Name:",null,{"$f":"IF(ISBLANK(D82),\"û\",\"ü\")","v":"û"},{"$f":"IF(ISBLANK(D82),\"Please confirm the first name of your PPL Sponsor\",\"\")","v":"Please confirm the first name of your PPL Sponsor"},{"$f":"IF(ISBLANK(D82),\"0\",1.724)","v":"0"}]
[]
[null,null,"Last Name:",null,{"$f":"IF(ISBLANK(D84),\"û\",\"ü\")","v":"û"},{"$f":"IF(ISBLANK(D84),\"Please confirm the last name of your PPL Sponsor\",\"\")","v":"Please confirm the last name of your PPL Sponsor"},{"$f":"IF(ISBLANK(D84),\"0\",1.724)","v":"0"}]
[]
[null,null,"Email address:",null,{"$f":"IF(ISBLANK(D86),\"û\",\"ü\")","v":"û"},{"$f":"IF(ISBLANK(D86),\"Please confirm the email address of your PPL Sponsor\",\"\")","v":"Please confirm the email address of your PPL Sponsor"},{"$f":"IF(ISBLANK(D86),\"0\",1.724)","v":"0"}]
[]
[null,null,"Telephone number:",null,{"$f":"IF(ISBLANK(D88),\"û\",\"ü\")","v":"û"},{"$f":"IF(ISBLANK(D88),\"Please confirm the email address of your PPL Sponsor\",\"\")","v":"Please confirm the email address of your PPL Sponsor"},{"$f":"IF(ISBLANK(D88),\"0\",1.724)","v":"0"}]
[]
[]
[null,{"$f":"IF($D$56=\"Please select\",\"2.4\",IF($D$56=\"No\",\"2.6\",IF($D$56=\"Yes\",\"2.4\")))","v":"2.4"},"PPL C-Suite"]
[]
[null,null,"First Name:",null,{"$f":"IF(ISBLANK(D93),\"û\",\"ü\")","v":"û"},{"$f":"IF(ISBLANK(D93),\"Please confirm the first name of your C-Suite Contact\",\"\")","v":"Please confirm the first name of your C-Suite Contact"},{"$f":"IF(ISBLANK(D93),\"0\",1.724)","v":"0"}]
[]
[null,null,"Last Name:",null,{"$f":"IF(ISBLANK(D95),\"û\",\"ü\")","v":"û"},{"$f":"IF(ISBLANK(D95),\"Please confirm the last name of your C-Suite of Contact\",\"\")","v":"Please confirm the last name of your C-Suite of Contact"},{"$f":"IF(ISBLANK(D95),\"0\",1.724)","v":"0"}]
[]
[null,null,"Email address:",null,{"$f":"IF(ISBLANK(D97),\"û\",\"ü\")","v":"û"},{"$f":"IF(ISBLANK(D97),\"Please confirm the email address of your PPL C-Suite Contact\",\"\")","v":"Please confirm the email address of your PPL C-Suite Contact"},{"$f":"IF(ISBLANK(D97),\"0\",1.724)","v":"0"}]
[]
[null,null,"Telephone number:",null,{"$f":"IF(ISBLANK(D99),\"û\",\"ü\")","v":"û"},{"$f":"IF(ISBLANK(D99),\"Please confirm the telephone number of your C-Suite Contact\",\"\")","v":"Please confirm the telephone number of your C-Suite Contact"},{"$f":"IF(ISBLANK(D99),\"0\",1.724)","v":"0"}]
[]
[]
[null,{"$f":"IF($D$56=\"Please select\",\"2.5\",IF($D$56=\"No\",\"2.7\",IF($D$56=\"Yes\",\"2.5\")))","v":"2.5"},"PPL Point of Contact"]
[]
[null,null,"First Name:",null,{"$f":"IF(ISBLANK(D104),\"û\",\"ü\")","v":"û"},{"$f":"IF(ISBLANK(D104),\"Please confirm the first name of your PPL Point of Contact\",\"\")","v":"Please confirm the first name of your PPL Point of Contact"},{"$f":"IF(ISBLANK(D104),\"0\",1.724)","v":"0"}]
[]
[null,null,"Last Name:",null,{"$f":"IF(ISBLANK(D106),\"û\",\"ü\")","v":"û"},{"$f":"IF(ISBLANK(D106),\"Please confirm the last name of your PPL Point of Contact\",\"\")","v":"Please confirm the last name of your PPL Point of Contact"},{"$f":"IF(ISBLANK(D106),\"0\",1.724)","v":"0"}]
[]
[null,null,"Email address:",null,{"$f":"IF(ISBLANK(D108),\"û\",\"ü\")","v":"û"},{"$f":"IF(ISBLANK(D108),\"Please confirm the email address of your PPL Point of Contact\",\"\")","v":"Please confirm the email address of your PPL Point of Contact"},{"$f":"IF(ISBLANK(D108),\"0\",1.724)","v":"0"}]
[]
[null,null,"Telephone number:",null,{"$f":"IF(ISBLANK(D110),\"û\",\"ü\")","v":"û"},{"$f":"IF(ISBLANK(D110),\"Please confirm the telephone number of your PPL Point of Contact\",\"\")","v":"Please confirm the telephone number of your PPL Point of Contact"},{"$f":"IF(ISBLANK(D110),\"0\",1.724)","v":"0"}]
[]
[]
[null,"Finance Manager contact:"]
[]
[null,{"$f":"IF($D$56=\"Please select\",\"2.6\",IF($D$56=\"No\",\"2.8\",IF($D$56=\"Yes\",\"2.6\")))","v":"2.6"},"Finance Manager"]
[]
[null,null,"First Name:",null,{"$f":"IF(ISBLANK(D117),\"û\",\"ü\")","v":"û"},{"$f":"IF(ISBLANK(D117),\"Please confirm the first name of your Finance Manager\",\"\")","v":"Please confirm the first name of your Finance Manager"},{"$f":"IF(ISBLANK(D117),\"0\",1.724)","v":"0"}]
[]
[null,null,"Last Name:",null,{"$f":"IF(ISBLANK(D119),\"û\",\"ü\")","v":"û"},{"$f":"IF(ISBLANK(D119),\"Please confirm the last name of your Finance Manager\",\"\")","v":"Please confirm the last name of your Finance Manager"},{"$f":"IF(ISBLANK(D119),\"0\",1.724)","v":"0"}]
[]
[null,null,"Email address:",null,{"$f":"IF(ISBLANK(D121),\"û\",\"ü\")","v":"û"},{"$f":"IF(ISBLANK(D121),\"Please confirm the email address of your Finance Manager\",\"\")","v":"Please confirm the email address of your Finance Manager"},{"$f":"IF(ISBLANK(D121),\"0\",1.724)","v":"0"}]
[]
[null,null,"Telephone number:",null,{"$f":"IF(ISBLANK(D123),\"û\",\"ü\")","v":"û"},{"$f":"IF(ISBLANK(D123),\"Please confirm the telephone number of your Finance Manager\",\"\")","v":"Please confirm the telephone number of your Finance Manager"},{"$f":"IF(ISBLANK(D123),\"0\",1.724)","v":"0"}]
[]
[]
[null,"Publicity contact:",null,null,null,null,"Publicity contact"]
[]
[null,{"$f":"IF($D$56=\"Please select\",\"2.7\",IF($D$56=\"No\",\"2.9\",IF($D$56=\"Yes\",\"2.7\")))","v":"2.7"},"PPL contact name at your firm who will be listed on the PPL website"]
[]
[null,null,"First Name:",null,{"$f":"IF(ISBLANK(D130),\"û\",\"ü\")","v":"û"},{"$f":"IF(ISBLANK(D130),\"Please confirm the first name of your Publicity Contact\",\"\")","v":"Please confirm the first name of your Publicity Contact"},{"$f":"IF(ISBLANK(D130),\"0\",1.724)","v":"0"}]
[]
[null,null,"Last Name:",null,{"$f":"IF(ISBLANK(D132),\"û\",\"ü\")","v":"û"},{"$f":"IF(ISBLANK(D132),\"Please confirm the last name of your Publicity Contact\",\"\")","v":"Please confirm the last name of your Publicity Contact"},{"$f":"IF(ISBLANK(D132),\"0\",1.724)","v":"0"}]
[]
[null,null,"Email address:",null,{"$f":"IF(ISBLANK(D134),\"û\",\"ü\")","v":"û"},{"$f":"IF(ISBLANK(D134),\"Please confirm the email address of your Publicity Contact\",\"\")","v":"Please confirm the email address of your Publicity Contact"},{"$f":"IF(ISBLANK(D134),\"0\",1.724)","v":"0"}]
[]
[null,null,"Telephone number:",null,{"$f":"IF(ISBLANK(D136),\"û\",\"ü\")","v":"û"},{"$f":"IF(ISBLANK(D136),\"Please confirm the telephone number of your Publicity Contact\",\"\")","v":"Please confirm the telephone number of your Publicity Contact"},{"$f":"IF(ISBLANK(D136),\"0\",1.724)","v":"0"}]
[]
[]
[null,"Business as usual contact (BAU):"]
[null,null,null,null,null,null,"BAU contact"]
[null,{"$f":"IF($D$56=\"Please select\",\"2.8\",IF($D$56=\"No\",\"2.10\",IF($D$56=\"Yes\",\"2.8\")))","v":"2.8"},"PPL contact name at your firm who will be the main contact for BAU queries:"]
[]
[null,null,"First Name:",null,{"$f":"IF(ISBLANK(D143),\"û\",\"ü\")","v":"û"},{"$f":"IF(ISBLANK(D143),\"Please confirm the first name of your Publicity Contact\",\"\")","v":"Please confirm the first name of your Publicity Contact"},{"$f":"IF(ISBLANK(D143),\"0\",1.724)","v":"0"}]
[]
[null,null,"Last Name:",null,{"$f":"IF(ISBLANK(D145),\"û\",\"ü\")","v":"û"},{"$f":"IF(ISBLANK(D145),\"Please confirm the last name of your Publicity Contact\",\"\")","v":"Please confirm the last name of your Publicity Contact"},{"$f":"IF(ISBLANK(D145),\"0\",1.724)","v":"0"}]
[]
[null,null,"Email address:",null,{"$f":"IF(ISBLANK(D147),\"û\",\"ü\")","v":"û"},{"$f":"IF(ISBLANK(D147),\"Please confirm the email address of your Publicity Contact\",\"\")","v":"Please confirm the email address of your Publicity Contact"},{"$f":"IF(ISBLANK(D147),\"0\",1.724)","v":"0"}]
[]
[null,null,"Telephone number:",null,{"$f":"IF(ISBLANK(D149),\"û\",\"ü\")","v":"û"},{"$f":"IF(ISBLANK(D149),\"Please confirm the telephone number of your Publicity Contact\",\"\")","v":"Please confirm the telephone number of your Publicity Contact"},{"$f":"IF(ISBLANK(D149),\"0\",1.724)","v":"0"}]
[]
[]
[null,"Data Protection Officer (DPO):",null,null,null,null,"Data Protection Officer"]
[]
[null,{"$f":"IF($D$56=\"Please select\",\"2.9\",IF($D$56=\"No\",\"2.11\",IF($D$56=\"Yes\",\"2.9\")))","v":"2.9"},"PPL contact name at your firm who will be the main contact for data protection queries:"]
[]
[null,null,"First Name:",null,{"$f":"IF(ISBLANK(D156),\"û\",\"ü\")","v":"û"},{"$f":"IF(ISBLANK(D156),\"Please confirm the first name of your Data Protection Officer\",\"\")","v":"Please confirm the first name of your Data Protection Officer"},{"$f":"IF(ISBLANK(D156),\"0\",1.724)","v":"0"}]
[]
[null,null,"Last Name:",null,{"$f":"IF(ISBLANK(D158),\"û\",\"ü\")","v":"û"},{"$f":"IF(ISBLANK(D158),\"Please confirm the last name of your Data Protection Officer\",\"\")","v":"Please confirm the last name of your Data Protection Officer"},{"$f":"IF(ISBLANK(D158),\"0\",1.724)","v":"0"}]
[]
[null,null,"Email address:",null,{"$f":"IF(ISBLANK(D160),\"û\",\"ü\")","v":"û"},{"$f":"IF(ISBLANK(D160),\"Please confirm the email address of your Data Protection Officer\",\"\")","v":"Please confirm the email address of your Data Protection Officer"},{"$f":"IF(ISBLANK(D160),\"0\",1.724)","v":"0"}]
[]
[null,null,"Telephone number:",null,{"$f":"IF(ISBLANK(D162),\"û\",\"ü\")","v":"û"},{"$f":"IF(ISBLANK(D162),\"Please confirm the telephone number of your Data Protection Officer\",\"\")","v":"Please confirm the telephone number of your Data Protection Officer"},{"$f":"IF(ISBLANK(D162),\"0\",1.724)","v":"0"}]
[]
[]
[null,"In-house Training:"]
[]
[null,"Do you have in-house training capabilities?",null,"Please select",{"$f":"IF(D167=\"Please select\",\"û\",\"ü\")","v":"û"},{"$f":"IF(D167=\"Please select\",\"Please confirm whether you have an in-house trainer\",\"\")","v":"Please confirm whether you have an in-house trainer"},{"$f":"IF($D167=\"Yes\",\"1.724\",IF($D167=\"No\",\"8.621\",IF($D167=\"Please select\",\"0\")))","v":"0"}]
[null,null,null,null,null,null,"In-house trainer"]
[null,{"$f":"IF($D$33=\"Please select\",\"2.8\",IF($D$33=\"No\",\"2.8\",IF($D$33=\"Yes\",\"2.10\")))","v":"2.8"},"PPL contact name at your firm who will be the main contact for in-house training:"]
[]
[null,null,"First Name:",null,{"$f":"IF(ISBLANK(D171),\"û\",\"ü\")","v":"û"},{"$f":"IF(ISBLANK(D171),\"Please confirm the first name of your in-house trainer\",\"\")","v":"Please confirm the first name of your in-house trainer"},{"$f":"IF(ISBLANK(D171),\"0\",1.724)","v":"0"}]
[]
[null,null,"Last Name:",null,{"$f":"IF(ISBLANK(D173),\"û\",\"ü\")","v":"û"},{"$f":"IF(ISBLANK(D173),\"Please confirm the last name of your in-house trainer\",\"\")","v":"Please confirm the last name of your in-house trainer"},{"$f":"IF(ISBLANK(D173),\"0\",1.724)","v":"0"}]
[]
[null,null,"Email address:",null,{"$f":"IF(ISBLANK(D175),\"û\",\"ü\")","v":"û"},{"$f":"IF(ISBLANK(D175),\"Please confirm the email address of your in-house trainer\",\"\")","v":"Please confirm the email address of your in-house trainer"},{"$f":"IF(ISBLANK(D175),\"0\",1.724)","v":"0"}]
[]
[null,null,"Telephone number:",null,{"$f":"IF(ISBLANK(D177),\"û\",\"ü\")","v":"û"},{"$f":"IF(ISBLANK(D177),\"Please confirm the telephone number of your in-house trainer\",\"\")","v":"Please confirm the telephone number of your in-house trainer"},{"$f":"IF(ISBLANK(D177),\"0\",1.724)","v":"0"}]
[]
[]
[null,"Section 3: PPL Integration"]
[]
[null,3.1,"Would you like to explore PPL integration","Please select",{"$f":"IF(D182=\"Please select\",\"û\",\"ü\")","v":"û"},null,{"$f":"IF($D182=\"Yes\",\"1.731\",IF($D182=\"No\",\"1.731\",IF($D182=\"Please select\",\"0\")))","v":"0"}]
[null,null,"Capabilities?"]
[null,null,null,null,null,null,{"$f":"G177+G175+G173+G171+G167+G162+G160+G158+G156+G149+G147+G145+G143+G136+G134+G132+G130+G123+G121+G119+G117+G110+G108+G106+G104+G99+G97+G95+G93+G88+G86+G84+G82+G53+G51+G49+G47+G43+G41+G39+G37+G33+G24+G20+G18+G14+G10+G8+G56+G60+G62+G64+G66+G70+G72+G74+G76+G182","v":0}]

{"sheet":"Your Classes","index":4,"n_rows":142,"n_cols":6,"rows_kept":142,"cut":false,"hidden":false,"merged":[[68,1,68,2],[83,1,83,2],[88,1,88,2],[102,1,102,2],[139,1,139,2],[112,1,112,2],[121,1,121,2],[126,1,126,2],[131,1,131,2],[12,1,12,2],[30,1,30,2],[38,1,38,2],[49,1,49,2],[58,1,58,2]]}
[]
[null,"Your General Information"]
[null,"Please tell us about the classes you place:",null,null,"Progress"]
[null,null,null,null,{"$f":"F142/100","v":0}]
[]
[]
[null,"Accident & Health (A&H)","Please select",null,{"$f":"IF(C7=\"yes\",\"ü\",IF(C7=\"No\",\"ü\",IF(C7=\"Please select\",\"û\")))","v":"û"},{"$f":"IF($C7=\"Yes\",\"3\",IF($C7=\"No\",\"6\",IF($E7=\"û\",\"0\")))","v":"0"}]
[null,"Do you place:","Please select","ç","Easy selection tool."]
[null,"Personal Accident (including Travel)?","Please select",null,{"$f":"IF(C9=\"yes\",\"ü\",IF(C9=\"No\",\"ü\",IF(C9=\"Please select\",\"û\")))","v":"û"},{"$f":"IF($E9=\"ü\",\"1\",\"0\")","v":"0"}]
[null,"Contingency?","Please select",null,{"$f":"IF(C10=\"yes\",\"ü\",IF(C10=\"No\",\"ü\",IF(C10=\"Please select\",\"û\")))","v":"û"},{"$f":"IF($E10=\"ü\",\"1\",\"0\")","v":"0"}]
[null,"Any other classes within your A&H department?","Please select",null,{"$f":"IF(C11=\"yes\",\"ü\",IF(C11=\"No\",\"ü\",IF(C11=\"Please select\",\"û\")))","v":"û"},{"$f":"IF($E11=\"ü\",\"1\",\"0\")","v":"0"}]
[null,"Please list :"]
[]
[]
[null,"Aviation","Please select",null,{"$f":"IF(C15=\"yes\",\"ü\",IF(C15=\"No\",\"ü\",IF(C15=\"Please select\",\"û\")))","v":"û"},{"$f":"IF($C15=\"Yes\",\"3\",IF($C15=\"No\",\"16\",IF($E15=\"û\",\"0\")))","v":"0"}]
[null,"Do you place:","Please select","ç","Easy selection tool."]
[null,"Satellite/Space?","Please select",null,{"$f":"IF(C17=\"yes\",\"ü\",IF(C17=\"No\",\"ü\",IF(C17=\"Please select\",\"û\")))","v":"û"},{"$f":"IF($E17=\"ü\",\"1\",\"0\")","v":"0"}]
[null,"General Aviation?","Please select",null,"û","0"]
[null,"Airlines?","Please select",null,"û","0"]
[null,"Hull Deductible?","Please select",null,"û","0"]
[null,"Hull War?","Please select",null,"û","0"]
[null,"Excess War Liability?","Please select",null,"û","0"]
[null,"Products Liability?","Please select",null,"û","0"]
[null,"Airport Liability?","Please select",null,"û","0"]
[null,"Contingent Aviation?","Please select",null,"û","0"]
[null,"Contingent Hull?","Please select",null,"û","0"]
[null,"Contingent Liability?","Please select",null,"û","0"]
[null,"Bank / Lessors?","Please select",null,"û","0"]
[null,"Any other classes within your Aviation department?","Please select",null,"û","0"]
[null,"Please list :"]
[]
[]
[null,"Bloodstock/Livestock (B/L)","Please select",null,{"$f":"IF(C33=\"yes\",\"ü\",IF(C33=\"No\",\"ü\",IF(C33=\"Please select\",\"û\")))","v":"û"},{"$f":"IF($C33=\"Yes\",\"3\",IF($C33=\"No\",\"6\",IF($E33=\"û\",\"0\")))","v":"0"}]
[null,"Do you place:","Please select","ç","Easy selection tool."]
[null,"Bloodstock","Please select",null,{"$f":"IF(C35=\"yes\",\"ü\",IF(C35=\"No\",\"ü\",IF(C35=\"Please select\",\"û\")))","v":"û"},{"$f":"IF($E35=\"ü\",\"1\",\"0\")","v":"0"}]
[null,"Livestock","Please select",null,{"$f":"IF(C36=\"yes\",\"ü\",IF(C36=\"No\",\"ü\",IF(C36=\"Please select\",\"û\")))","v":"û"},{"$f":"IF($E36=\"ü\",\"1\",\"0\")","v":"0"}]
[null,"Any other classes within your B/L department?","Please select",null,{"$f":"IF(C37=\"yes\",\"ü\",IF(C37=\"No\",\"ü\",IF(C37=\"Please select\",\"û\")))","v":"û"},{"$f":"IF($E37=\"ü\",\"1\",\"0\")","v":"0"}]
[null,"Please list :"]
[]
[]
[null,"Casualty","Please select",null,{"$f":"IF(C41=\"yes\",\"ü\",IF(C41=\"No\",\"ü\",IF(C41=\"Please select\",\"û\")))","v":"û"},{"$f":"IF($C41=\"Yes\",\"3\",IF($C41=\"No\",\"9\",IF($E41=\"û\",\"0\")))","v":"0"}]
[null,"Do you place:","Please select","ç","Easy selection tool."]
[null,"General Liability?","Please select",null,{"$f":"IF(C43=\"yes\",\"ü\",IF(C43=\"No\",\"ü\",IF(C43=\"Please select\",\"û\")))","v":"û"},{"$f":"IF($E43=\"ü\",\"1\",\"0\")","v":"0"}]
[null,"Employers' Liability/WCA?","Please select",null,"û","0"]
[null,"Public Liability?","Please select",null,"û","0"]
[null,"Product Liability?","Please select",null,"û","0"]
[null,"Medical Malpractice?","Please select",null,"û","0"]
[null,"Any other classes within your Casualty department?","Please select",null,"û","0"]
[null,"Please list :"]
[]
[]
[null,"Construction","Please select",null,{"$f":"IF(C52=\"yes\",\"ü\",IF(C52=\"No\",\"ü\",IF(C52=\"Please select\",\"û\")))","v":"û"},{"$f":"IF($C52=\"Yes\",\"3\",IF($C52=\"No\",\"7\",IF($E52=\"û\",\"0\")))","v":"0"}]
[null,"Do you place:","Please select","ç","Easy selection tool."]
[null,"Onshore Construction?","Please select",null,{"$f":"IF(C54=\"yes\",\"ü\",IF(C54=\"No\",\"ü\",IF(C54=\"Please select\",\"û\")))","v":"û"},{"$f":"IF($E54=\"ü\",\"1\",\"0\")","v":"0"}]
[null,"Offshore Construction?","Please select",null,{"$f":"IF(C55=\"yes\",\"ü\",IF(C55=\"No\",\"ü\",IF(C55=\"Please select\",\"û\")))","v":"û"},{"$f":"IF($E55=\"ü\",\"1\",\"0\")","v":"0"}]
[null,"Mining?","Please select",null,{"$f":"IF(C56=\"yes\",\"ü\",IF(C56=\"No\",\"ü\",IF(C56=\"Please select\",\"û\")))","v":"û"},{"$f":"IF($E56=\"ü\",\"1\",\"0\")","v":"0"}]
[null,"Any other classes within your Construction department?","Please select",null,{"$f":"IF(C57=\"yes\",\"ü\",IF(C57=\"No\",\"ü\",IF(C57=\"Please select\",\"û\")))","v":"û"},{"$f":"IF($E57=\"ü\",\"1\",\"0\")","v":"0"}]
[null,"Please list :"]
[]
[]
[null,"Energy","Please select",null,{"$f":"IF(C61=\"yes\",\"ü\",IF(C61=\"No\",\"ü\",IF(C61=\"Please select\",\"û\")))","v":"û"},{"$f":"IF($C61=\"Yes\",\"3\",IF($C61=\"No\",\"8\",IF($E61=\"û\",\"0\")))","v":"0"}]
[null,"Do you place:","Please select","ç","Easy selection tool."]
[null,"Onshore Energy?","Please select",null,{"$f":"IF(C63=\"yes\",\"ü\",IF(C63=\"No\",\"ü\",IF(C63=\"Please select\",\"û\")))","v":"û"},{"$f":"IF($E63=\"ü\",\"1\",\"0\")","v":"0"}]
[null,"Offshore Energy?","Please select",null,{"$f":"IF(C64=\"yes\",\"ü\",IF(C64=\"No\",\"ü\",IF(C64=\"Please select\",\"û\")))","v":"û"},{"$f":"IF($E64=\"ü\",\"1\",\"0\")","v":"0"}]
[null,"Energy Liability?","Please select",null,{"$f":"IF(C65=\"yes\",\"ü\",IF(C65=\"No\",\"ü\",IF(C65=\"Please select\",\"û\")))","v":"û"},{"$f":"IF($E65=\"ü\",\"1\",\"0\")","v":"0"}]
[null,"Power (Including Nuclear)?","Please select",null,{"$f":"IF(C66=\"yes\",\"ü\",IF(C66=\"No\",\"ü\",IF(C66=\"Please select\",\"û\")))","v":"û"},{"$f":"IF($E66=\"ü\",\"1\",\"0\")","v":"0"}]
[null,"Any other classes within your Energy department?","Please select",null,{"$f":"IF(C67=\"yes\",\"ü\",IF(C67=\"No\",\"ü\",IF(C67=\"Please select\",\"û\")))","v":"û"},{"$f":"IF($E67=\"ü\",\"1\",\"0\")","v":"0"}]
[null,"Please list :"]
[]
[]
[null,"Facilities","Please select",null,{"$f":"IF(C71=\"yes\",\"ü\",IF(C71=\"No\",\"ü\",IF(C71=\"Please select\",\"û\")))","v":"û"},{"$f":"IF($C71=\"Yes\",\"1\",IF($C71=\"No\",\"2\",IF($E71=\"û\",\"0\")))","v":"0"}]
[null,"What percentage of your Facilities business are Binders?",null,null,{"$f":"IF(ISBLANK(C72),\"û\",\"ü\")","v":"û"},{"$f":"IF($E72=\"ü\",\"1\",\"0\")","v":"0"}]
[]
[null,"Financial and Professional Lines (FPL)","Please select",null,{"$f":"IF(C74=\"yes\",\"ü\",IF(C74=\"No\",\"ü\",IF(C74=\"Please select\",\"û\")))","v":"û"},{"$f":"IF($C74=\"Yes\",\"3\",IF($C74=\"No\",\"10\",IF($E74=\"û\",\"0\")))","v":"0"}]
[null,"Do you place:","Please select","ç","Easy selection tool."]
[null,"Directors and Officers (D&O)?","Please select",null,{"$f":"IF(C76=\"yes\",\"ü\",IF(C76=\"No\",\"ü\",IF(C76=\"Please select\",\"û\")))","v":"û"},{"$f":"IF($E76=\"ü\",\"1\",\"0\")","v":"0"}]
[null,"Financial Institutions (FI)?","Please select",null,"û","0"]
[null,"Professional Liability (PL)?","Please select",null,"û","0"]
[null,"Cyber?","Please select",null,"û","0"]
[null,"Medical Malpractice?","Please select",null,"û","0"]
[null,"Healthcare?","Please select",null,"û","0"]
[null,"Any other classes within your FPL department?","Please select",null,"û","0"]
[null,"Please list :"]
[]
[]
[null,"Kidnap & Ransom","Please select",null,{"$f":"IF(C86=\"yes\",\"ü\",IF(C86=\"No\",\"ü\",IF(C86=\"Please select\",\"û\")))","v":"û"},{"$f":"IF($C86=\"Yes\",\"1\",IF($C86=\"No\",\"2\",IF($E86=\"û\",\"0\")))","v":"0"}]
[null,"Do you place any other classes within your K&R department?","Please select",null,{"$f":"IF(C87=\"yes\",\"ü\",IF(C87=\"No\",\"ü\",IF(C87=\"Please select\",\"û\")))","v":"û"},{"$f":"IF($E87=\"ü\",\"1\",\"0\")","v":"0"}]
[null,"Please list :"]
[]
[]
[null,"Marine","Please select",null,{"$f":"IF(C91=\"yes\",\"ü\",IF(C91=\"No\",\"ü\",IF(C91=\"Please select\",\"û\")))","v":"û"},{"$f":"IF($C91=\"Yes\",\"1\",IF($C91=\"No\",\"10\",IF($E91=\"û\",\"0\")))","v":"0"}]
[null,"Do you place:","Please select","ç","Easy selection tool."]
[null,"Hull?","Please select",null,{"$f":"IF(C93=\"yes\",\"ü\",IF(C93=\"No\",\"ü\",IF(C93=\"Please select\",\"û\")))","v":"û"},{"$f":"IF($E93=\"ü\",\"1\",\"0\")","v":"0"}]
[null,"Marine Construction?","Please select",null,"û","0"]
[null,"War?","Please select",null,"û","0"]
[null,"Yacht?","Please select",null,"û","0"]
[null,"Cargo?","Please select",null,"û","0"]
[null,"Marine Liability?","Please select",null,"û","0"]
[null,"Ports and Terminals?","Please select",null,"û","0"]
[null,"Specie (including fine arts, jewellers block \nand cash in transit?","Please select",null,"û","0"]
[null,"Any other classes within your Marine department?","Please select",null,"û","0"]
[null,"Please list :"]
[]
[]
[null,"Political Risks","Please select",null,"û",{"$f":"IF($C105=\"Yes\",\"2\",IF($C105=\"No\",\"7\",IF($E105=\"û\",\"0\")))","v":"0"}]
[null,"Do you place:","Please select","ç","Easy selection tool."]
[null,"Political Risks?","Please select",null,"û",{"$f":"IF($E107=\"ü\",\"1\",\"0\")","v":"0"}]
[null,"Contract Frustration?","Please select",null,"û",{"$f":"IF($E108=\"ü\",\"1\",\"0\")","v":"0"}]
[null,"Trade Credit?","Please select",null,"û",{"$f":"IF($E109=\"ü\",\"1\",\"0\")","v":"0"}]
[null,"Financial Guarantee?","Please select",null,"û",{"$f":"IF($E110=\"ü\",\"1\",\"0\")","v":"0"}]
[null,"Any other classes within your Political Risks department?","Please select",null,"û",{"$f":"IF($E111=\"ü\",\"1\",\"0\")","v":"0"}]
[null,"Please list :"]
[]
[]
[null,"Property","Please select",null,{"$f":"IF(C115=\"yes\",\"ü\",IF(C115=\"No\",\"ü\",IF(C115=\"Please select\",\"û\")))","v":"û"},{"$f":"IF($C115=\"Yes\",\"3\",IF($C115=\"No\",\"7\",IF($E115=\"û\",\"0\")))","v":"0"}]
[null,"Do you place:","Please select","ç","Easy selection tool."]
[null,"Non-Marine Property?","Please select",null,{"$f":"IF(C117=\"yes\",\"ü\",IF(C117=\"No\",\"ü\",IF(C117=\"Please select\",\"û\")))","v":"û"},{"$f":"IF($E117=\"ü\",\"1\",\"0\")","v":"0"}]
[null,"Product Recall?","Please select",null,{"$f":"IF(C118=\"yes\",\"ü\",IF(C118=\"No\",\"ü\",IF(C118=\"Please select\",\"û\")))","v":"û"},{"$f":"IF($E118=\"ü\",\"1\",\"0\")","v":"0"}]
[null,"Mining?","Please select",null,{"$f":"IF(C119=\"yes\",\"ü\",IF(C119=\"No\",\"ü\",IF(C119=\"Please select\",\"û\")))","v":"û"},{"$f":"IF($E119=\"ü\",\"1\",\"0\")","v":"0"}]
[null,"Any other classes within your Property department?","Please select",null,{"$f":"IF(C120=\"yes\",\"ü\",IF(C120=\"No\",\"ü\",IF(C120=\"Please select\",\"û\")))","v":"û"},{"$f":"IF($E120=\"ü\",\"1\",\"0\")","v":"0"}]
[null,"Please list :"]
[]
[]
[null,"Real Estate","Please select",null,{"$f":"IF(C124=\"yes\",\"ü\",IF(C124=\"No\",\"ü\",IF(C124=\"Please select\",\"û\")))","v":"û"},{"$f":"IF($C124=\"Yes\",\"1\",IF($C124=\"No\",\"2\",IF($E124=\"û\",\"0\")))","v":"0"}]
[null,"Do you place any other classes within your Real Estate department?","Please select",null,"û",{"$f":"IF($E125=\"ü\",\"1\",\"0\")","v":"0"}]
[null,"Please list :"]
[]
[]
[null,"Reinsurance","Please select",null,"û",{"$f":"IF($C129=\"Yes\",\"1\",IF($C129=\"No\",\"2\",IF($E129=\"û\",\"0\")))","v":"0"}]
[null,"Do you place any other classes within your Treaty Reinsurance department?","Please select",null,"û",{"$f":"IF($E130=\"ü\",\"1\",\"0\")","v":"0"}]
[null,"Please list :"]
[]
[]
[null,"Terrorism","Please select",null,{"$f":"IF(C134=\"yes\",\"ü\",IF(C134=\"No\",\"ü\",IF(C134=\"Please select\",\"û\")))","v":"û"},{"$f":"IF($C134=\"Yes\",\"3\",IF($C134=\"No\",\"6\",IF($E134=\"û\",\"0\")))","v":"0"}]
[null,"Do you place:","Please select","ç","Easy selection tool."]
[null,"Terrorism?","Please select",null,{"$f":"IF(C136=\"yes\",\"ü\",IF(C136=\"No\",\"ü\",IF(C136=\"Please select\",\"û\")))","v":"û"},{"$f":"IF($E136=\"ü\",\"1\",\"0\")","v":"0"}]
[null,"Political Violence?","Please select",null,{"$f":"IF(C137=\"yes\",\"ü\",IF(C137=\"No\",\"ü\",IF(C137=\"Please select\",\"û\")))","v":"û"},{"$f":"IF($E137=\"ü\",\"1\",\"0\")","v":"0"}]
[null,"Any other classes within your Terrorism department?","Please select",null,{"$f":"IF(C138=\"yes\",\"ü\",IF(C138=\"No\",\"ü\",IF(C138=\"Please select\",\"û\")))","v":"û"},{"$f":"IF($E138=\"ü\",\"1\",\"0\")","v":"0"}]
[null,"Please list :"]
[]
[]
[null,null,null,null,null,{"$f":"F138+F137+F136+F134+F130+F129+F125+F124+F120+F119+F118+F117+F115+F111+F110+F109+F108+F107+F105+F101+F100+F99+F98+F97+F96+F95+F94+F93+F91+F87+F86+F82+F81+F80+F79+F78+F77+F76+F74+F71+F72+F67+F66+F65+F64+F63+F61+F57+F56+F55+F54+F52+F48+F47+F46+F45+F44+F43+F41+F37+F36+F35+F33+F29+F28+F27+F26+F25+F24+F23+F22+F21+F20+F19+F18+F17+F15+F11+F10+F9+F7","v":0}]

{"sheet":"Your Markets","index":5,"n_rows":41,"n_cols":7,"rows_kept":41,"cut":false,"hidden":false,"merged":[[5,1,5,2],[37,1,37,3]]}
[]
[null,"Your Markets"]
[null,"The markets that you provide here will be those with who you want to trade with electronically on the platform.  They will be available for your brokers/technicians to select. "]
[null,"A full list is available on the PPL website here"]
[null,null,null,"Progress"]
[null,"Do you want to be connected to all markets for the following Lines of Business that you place (as selected in \"Your General Information\")?",null,{"$f":"E41/100","v":0}]
[]
[null,"Accident & Health (A&H)","Please select",{"$f":"IF(C8=\"yes\",\"ü\",IF(C8=\"No\",\"ü\",IF(C8=\"Please select\",\"û\")))","v":"û"},{"$f":"IF($C8=\"Yes\",\"6.25\",IF($C8=\"No\",\"6.25\",IF($C8=\"Please select\",\"0\")))","v":"0"},{"$f":"IF('Your Classes'!C7=\"No\",\"6.25\",0)","v":0},{"$f":"IF($C8=\"Yes\",\"You will be connected to all Markets\",IF($C8=\"Please select\",\"\",IF($C8=\"No\",\"Please complete the A&H Markets Worksheet\")))","v":""}]
[{"$f":"'Your Classes'!C15","v":"Please select"},"Aviation","Please select","û",{"$f":"IF($C9=\"Yes\",\"6.25\",IF($C9=\"No\",\"6.25\",IF($C9=\"Please select\",\"0\")))","v":"0"},{"$f":"IF('Your Classes'!C15=\"No\",\"6.25\",0)","v":0},{"$f":"IF($C9=\"Yes\",\"You will be connected to all Markets\",IF($C9=\"Please select\",\"\",IF($C9=\"No\",\"Please complete the Aviation Markets Worksheet\")))","v":""}]
[null,"Bloodstock/Livestock","Please select","û","0",{"$f":"IF('Your Classes'!C33=\"No\",\"6.25\",0)","v":0},{"$f":"IF($C10=\"Yes\",\"You will be connected to all Markets\",IF($C10=\"Please select\",\"\",IF($C10=\"No\",\"Please complete the Bloodstock/Livestock Markets Worksheet\")))","v":""}]
[null,"Casualty","Please select","û","0",{"$f":"IF('Your Classes'!C41=\"No\",\"6.25\",0)","v":0},{"$f":"IF($C11=\"Yes\",\"You will be connected to all Markets\",IF($C11=\"Please select\",\"\",IF($C11=\"No\",\"Please complete the Casualty Markets Worksheet\")))","v":""}]
[null,"Construction","Please select","û","0",{"$f":"IF('Your Classes'!C52=\"No\",\"6.25\",0)","v":0},{"$f":"IF($C12=\"Yes\",\"You will be connected to all Markets\",IF($C12=\"Please select\",\"\",IF($C12=\"No\",\"Please complete the Construction Markets Worksheet\")))","v":""}]
[{"$f":"'Your Classes'!C33","v":"Please select"},"Energy","Please select","û","0",{"$f":"IF('Your Classes'!C61=\"No\",\"6.25\",0)","v":0},{"$f":"IF($C13=\"Yes\",\"You will be connected to all Markets\",IF($C13=\"Please select\",\"\",IF($C13=\"No\",\"Please complete the Energy Markets Worksheet\")))","v":""}]
[null,"Financial and Professional Lines (FPL)","Please select","û","0",{"$f":"IF('Your Classes'!C74=\"No\",\"6.25\",0)","v":0},{"$f":"IF($C14=\"Yes\",\"You will be connected to all Markets\",IF($C14=\"Please select\",\"\",IF($C14=\"No\",\"Please complete the FPL Markets Worksheet\")))","v":""}]
[null,"Kidnap & Ransom (K&R)","Please select","û","0",{"$f":"IF('Your Classes'!C86=\"No\",\"6.25\",0)","v":0},{"$f":"IF($C15=\"Yes\",\"You will be connected to all Markets\",IF($C15=\"Please select\",\"\",IF($C15=\"No\",\"Please complete the K&R Markets Worksheet\")))","v":""}]
[null,"Marine","Please select","û","0",{"$f":"IF('Your Classes'!C91=\"No\",\"6.25\",0)","v":0},{"$f":"IF($C16=\"Yes\",\"You will be connected to all Markets\",IF($C16=\"Please select\",\"\",IF($C16=\"No\",\"Please complete the Marine Markets Worksheet\")))","v":""}]
[null,"Political Risks (PR)","Please select","û","0",{"$f":"IF('Your Classes'!C105=\"No\",\"6.25\",0)","v":0},{"$f":"IF($C17=\"Yes\",\"You will be connected to all Markets\",IF($C17=\"Please select\",\"\",IF($C17=\"No\",\"Please complete the PR Markets Worksheet\")))","v":""}]
[null,"Property","Please select","û","0",{"$f":"IF('Your Classes'!C115=\"No\",\"6.25\",0)","v":0},{"$f":"IF($C18=\"Yes\",\"You will be connected to all Markets\",IF($C18=\"Please select\",\"\",IF($C18=\"No\",\"Please complete the Property Markets Worksheet\")))","v":""}]
[null,"Real Estate (RE)","Please select","û","0",{"$f":"IF('Your Classes'!C124=\"No\",\"6.25\",0)","v":0},{"$f":"IF($C19=\"Yes\",\"You will be connected to all Markets\",IF($C19=\"Please select\",\"\",IF($C19=\"No\",\"Please complete the Real Estate Markets Worksheet\")))","v":""}]
[null,"Reinsurance (RI)","Please select","û","0",{"$f":"IF('Your Classes'!C129=\"No\",\"6.25\",0)","v":0},{"$f":"IF($C20=\"Yes\",\"You will be connected to all Markets\",IF($C20=\"Please select\",\"\",IF($C20=\"No\",\"Please complete the Reinsurance Markets Worksheet\")))","v":""}]
[null,"Terrorism","Please select","û","0",{"$f":"IF('Your Classes'!C134=\"No\",\"6.25\",0)","v":0},{"$f":"IF($C21=\"Yes\",\"You will be connected to all Markets\",IF($C21=\"Please select\",\"\",IF($C21=\"No\",\"Please complete the Terrorism Markets Worksheet\")))","v":""}]
[null,"Accident & Health (A&H)",null,"ü",null,null,{"$f":"CONCATENATE(\"You do not place \",B22,\" business\")","v":"You do not place Accident & Health (A&H) business"}]
[{"$f":"'Your Classes'!C32","v":0},"Aviation",null,"ü",null,null,{"$f":"CONCATENATE(\"You do not place \",B23,\" business\")","v":"You do not place Aviation business"}]
[null,"Bloodstock/Livestock",null,"ü",null,null,"You do not place Bloodstock/Livestock business"]
[null,"Casualty",null,"ü",null,null,"You do not place Casualty business"]
[null,"Construction",null,"ü",null,null,"You do not place Construction business"]
[{"$f":"'Your Classes'!C50","v":0},"Energy",null,"ü",null,null,"You do not place Energy business"]
[null,"Financial and Professional Lines (FPL)",null,"ü",null,null,"You do not place Financial and Professional Lines (FPL) business"]
[null,"Kidnap & Ransom (K&R)",null,"ü",null,null,"You do not place Kidnap & Ransom (K&R) business"]
[null,"Marine",null,"ü",null,null,"You do not place Marine business"]
[null,"Political Risks (PR)",null,"ü",null,null,"You do not place Political Risks (PR) business"]
[null,"Property",null,"ü",null,null,"You do not place Property business"]
[null,"Real Estate (RE)",null,"ü",null,null,"You do not place Real Estate (RE) business"]
[null,"Reinsurance (RI)",null,"ü",null,null,"You do not place Reinsurance (RI) business"]
[null,"Terrorism",null,"ü",null,null,"You do not place Terrorism business"]
[]
[null,"New stamps connection approval (future connection preference)"]
[null,"Please select your future connection preference when new stamps are being made available on \nthe platform:"]
[null,"Connect to all new stamps made available on PPL and notify us once the connection is available","Please select",{"$f":"IF(C39=\"yes\",\"ü\",IF(C39=\"No\",\"ü\",IF(C39=\"Please select\",\"û\")))","v":"û"},{"$f":"IF($C39=\"Yes\",\"6.25\",IF($C39=\"No\",\"6.25\",IF($C39=\"Please select\",\"0\")))","v":"0"}]
[null,"Do not connect to all new stamps made available on PPL without our explicit prior approval","Please select",{"$f":"IF(C40=\"yes\",\"ü\",IF(C40=\"No\",\"ü\",IF(C40=\"Please select\",\"û\")))","v":"û"},{"$f":"IF($C40=\"Yes\",\"6.25\",IF($C40=\"No\",\"6.25\",IF($C40=\"Please select\",\"0\")))","v":"0"}]
[null,null,null,null,{"$f":"E8+E9+E10+E11+E12+E13+E14+E15+E16+E17+E18+E19+E20+E21+F8+F9+F10+F11+F12+F13+F14+F15+F16+F17+F18+F19+F20+F21+E39+E40","v":0}]

{"sheet":"A&H Markets","index":6,"n_rows":30,"n_cols":11,"rows_kept":30,"cut":false,"hidden":true,"merged":[[11,1,26,1],[29,1,43,1]]}
[]
[null,"Accident & Health Markets (A&H)"]
[null,"Custom connections"]
[null,"You have chosen to customise your connections rather than being connected to all A&H markets."]
[null,"The markets that you provide here will be those who you want to trade with electronically on the platform and therefore available for your brokers/technicians to select.  "]
[]
[null,{"$f":"CONCATENATE(\"If you prefer to be connected to all \",B2,\", go back to 'Your Markets' and select 'Yes'\")","v":"If you prefer to be connected to all Accident & Health Markets (A&H), go back to 'Your Markets' and select 'Yes'"}]
[]
[null,"Brokers and Carriers on PPL: https://tomsupports.london/placing-platform-limited-usefuldocuments"]
[]
[null,"Section 1: CUSTOM  or OFFLINE MARKETS","Company Name","Classification \n(LMA / IUA / MGA)","Lloyds code \n(Syndicate number)","LIC code\n(Lloyd's Brussels)","LORS Code","LIRMA","ILU","Contact name","Contact details \n(e.g. phone / email)"]
[null,"Custom Markets\nPlease list the markets that you wish to be connected to.  A full list is available on the PPL website - see link above\n\nColumns E-J: Please populate if there are specific stamps you wish to have available to you on the Platform. \n(e.g. 9000 stamps)  \n\nOffline Markets\nCompanies that are currently not signed up to PPL (and not listed on the PPL website), but that you would like available to you as an Offline Market. \n\nPlease note that PPL may contact these Companies in respect of becoming Online Markets. ","ABC Insurance Ltd","LMA",1234,null,"-","T1234",123456,"Mark Smith","ms@abc.com"]
[]
[]
[]
[]
[]
[]
[]
[]
[]
[]
[]
[]
[]
[]
[]
[]
[null,"Section 2: UNDERWRITING USERS","Company Name","Undewriter Name"]
[null,"Although you will be connected by default to all users associated to the companies you have selected in Section 1 above, if you want to ensure your known contacts are available on the platform, please list them here\n\n"]

{"sheet":"Aviation Markets","index":7,"n_rows":30,"n_cols":11,"rows_kept":30,"cut":false,"hidden":true,"merged":[[11,1,26,1],[29,1,43,1]]}
[]
[null,"Aviation Markets"]
[null,"Custom connections"]
[null,"You have chosen to customise your connections rather than being connected to all Aviation markets."]
[null,"The markets that you provide here will be those who you want to trade with electronically on the platform and therefore available for your brokers/technicians to select.  "]
[]
[null,{"$f":"CONCATENATE(\"If you prefer to be connected to all \",B2,\", go back to 'Your Markets' and select 'Yes'\")","v":"If you prefer to be connected to all Aviation Markets, go back to 'Your Markets' and select 'Yes'"}]
[]
[null,"Brokers and Carriers on PPL: https://tomsupports.london/placing-platform-limited-usefuldocuments"]
[]
[null,"Section 1: CUSTOM  or OFFLINE MARKETS","Company Name","Classification \n(LMA / IUA / MGA)","Lloyds code \n(Syndicate number)","LIC code\n(Lloyd's Brussels)","LORS Code","LIRMA","ILU","Contact name","Contact details \n(e.g. phone / email)"]
[null,"Custom Markets\nPlease list the markets that you wish to be connected to.  A full list is available on the PPL website - see link above\n\nColumns E-J: Please populate if there are specific stamps you wish to have available to you on the Platform. \n(e.g. 9000 stamps)  \n\nOffline Markets\nCompanies that are currently not signed up to PPL (and not listed on the PPL website), but that you would like available to you as an Offline Market. \n\nPlease note that PPL may contact these Companies in respect of becoming Online Markets. ","ABC Insurance Ltd","LMA",1234,null,"-","T1234",123456,"Mark Smith","ms@abc.com"]
[]
[]
[]
[]
[]
[]
[]
[]
[]
[]
[]
[]
[]
[]
[]
[]
[null,"Section 2: UNDERWRITING USERS","Company Name","Undewriter Name"]
[null,"Although you will be connected by default to all users associated to the companies you have selected in Section 1 above, if you want to ensure your known contacts are available on the platform, please list them here\n\n"]

{"sheet":"BL Markets","index":8,"n_rows":30,"n_cols":11,"rows_kept":30,"cut":false,"hidden":true,"merged":[[11,1,26,1],[29,1,43,1]]}
[]
[null,"Bloodstock / Livestock Markets"]
[null,"Custom connections"]
[null,"You have chosen to customise your connections rather than being connected to all Bloodstock/Livestock markets."]
[null,"The markets that you provide here will be those who you want to trade with electronically on the platform and therefore available for your brokers/technicians to select.  "]
[]
[null,{"$f":"CONCATENATE(\"If you prefer to be connected to all \",B2,\", go back to 'Your Markets' and select 'Yes'\")","v":"If you prefer to be connected to all Bloodstock / Livestock Markets, go back to 'Your Markets' and select 'Yes'"}]
[]
[null,"Brokers and Carriers on PPL: https://tomsupports.london/placing-platform-limited-usefuldocuments"]
[]
[null,"Section 1: CUSTOM  or OFFLINE MARKETS","Company Name","Classification \n(LMA / IUA / MGA)","Lloyds code \n(Syndicate number)","LIC code\n(Lloyd's Brussels)","LORS Code","LIRMA","ILU","Contact name","Contact details \n(e.g. phone / email)"]
[null,"Custom Markets\nPlease list the markets that you wish to be connected to.  A full list is available on the PPL website - see link above\n\nColumns E-J: Please populate if there are specific stamps you wish to have available to you on the Platform. \n(e.g. 9000 stamps)  \n\nOffline Markets\nCompanies that are currently not signed up to PPL (and not listed on the PPL website), but that you would like available to you as an Offline Market. \n\nPlease note that PPL may contact these Companies in respect of becoming Online Markets. ","ABC Insurance Ltd","LMA",1234,null,"-","T1234",123456,"Mark Smith","ms@abc.com"]
[]
[]
[]
[]
[]
[]
[]
[]
[]
[]
[]
[]
[]
[]
[]
[]
[null,"Section 2: UNDERWRITING USERS","Company Name","Undewriter Name"]
[null,"Although you will be connected by default to all users associated to the companies you have selected in Section 1 above, if you want to ensure your known contacts are available on the platform, please list them here\n\n"]

{"sheet":"Casualty Markets","index":9,"n_rows":30,"n_cols":11,"rows_kept":30,"cut":false,"hidden":true,"merged":[[11,1,26,1],[29,1,43,1]]}
[]
[null,"Casualty Markets"]
[null,"Custom connections"]
[null,"You have chosen to customise your connections rather than being connected to all Casualty markets."]
[null,"The markets that you provide here will be those who you want to trade with electronically on the platform and therefore available for your brokers/technicians to select.  "]
[]
[null,{"$f":"CONCATENATE(\"If you prefer to be connected to all \",B2,\", go back to 'Your Markets' and select 'Yes'\")","v":"If you prefer to be connected to all Casualty Markets, go back to 'Your Markets' and select 'Yes'"}]
[]
[null,"Brokers and Carriers on PPL: https://tomsupports.london/placing-platform-limited-usefuldocuments"]
[]
[null,"Section 1: CUSTOM  or OFFLINE MARKETS","Company Name","Classification \n(LMA / IUA / MGA)","Lloyds code \n(Syndicate number)","LIC code\n(Lloyd's Brussels)","LORS Code","LIRMA","ILU","Contact name","Contact details \n(e.g. phone / email)"]
[null,"Custom Markets\nPlease list the markets that you wish to be connected to.  A full list is available on the PPL website - see link above\n\nColumns E-J: Please populate if there are specific stamps you wish to have available to you on the Platform. \n(e.g. 9000 stamps)  \n\nOffline Markets\nCompanies that are currently not signed up to PPL (and not listed on the PPL website), but that you would like available to you as an Offline Market. \n\nPlease note that PPL may contact these Companies in respect of becoming Online Markets. ","ABC Insurance Ltd","LMA",1234,null,"-","T1234",123456,"Mark Smith","ms@abc.com"]
[]
[]
[]
[]
[]
[]
[]
[]
[]
[]
[]
[]
[]
[]
[]
[]
[null,"Section 2: UNDERWRITING USERS","Company Name","Undewriter Name"]
[null,"Although you will be connected by default to all users associated to the companies you have selected in Section 1 above, if you want to ensure your known contacts are available on the platform, please list them here\n\n"]

{"sheet":"Construction Markets","index":10,"n_rows":30,"n_cols":11,"rows_kept":30,"cut":false,"hidden":true,"merged":[[11,1,26,1],[29,1,43,1]]}
[]
[null,"Construction Markets"]
[null,"Custom connections"]
[null,"You have chosen to customise your connections rather than being connected to all Construction markets."]
[null,"The markets that you provide here will be those who you want to trade with electronically on the platform and therefore available for your brokers/technicians to select.  "]
[]
[null,{"$f":"CONCATENATE(\"If you prefer to be connected to all \",B2,\", go back to 'Your Markets' and select 'Yes'\")","v":"If you prefer to be connected to all Construction Markets, go back to 'Your Markets' and select 'Yes'"}]
[]
[null,"Brokers and Carriers on PPL: https://tomsupports.london/placing-platform-limited-usefuldocuments"]
[]
[null,"Section 1: CUSTOM  or OFFLINE MARKETS","Company Name","Classification \n(LMA / IUA / MGA)","Lloyds code \n(Syndicate number)","LIC code\n(Lloyd's Brussels)","LORS Code","LIRMA","ILU","Contact name","Contact details \n(e.g. phone / email)"]
[null,"Custom Markets\nPlease list the markets that you wish to be connected to.  A full list is available on the PPL website - see link above\n\nColumns E-J: Please populate if there are specific stamps you wish to have available to you on the Platform. \n(e.g. 9000 stamps)  \n\nOffline Markets\nCompanies that are currently not signed up to PPL (and not listed on the PPL website), but that you would like available to you as an Offline Market. \n\nPlease note that PPL may contact these Companies in respect of becoming Online Markets. ","ABC Insurance Ltd","LMA",1234,null,"-","T1234",123456,"Mark Smith","ms@abc.com"]
[]
[]
[]
[]
[]
[]
[]
[]
[]
[]
[]
[]
[]
[]
[]
[]
[null,"Section 2: UNDERWRITING USERS","Company Name","Undewriter Name"]
[null,"Although you will be connected by default to all users associated to the companies you have selected in Section 1 above, if you want to ensure your known contacts are available on the platform, please list them here\n\n"]

{"sheet":"Energy Markets","index":11,"n_rows":30,"n_cols":11,"rows_kept":30,"cut":false,"hidden":true,"merged":[[11,1,26,1],[29,1,43,1]]}
[]
[null,"Energy and Construction Markets (E&C)"]
[null,"Custom connections"]
[null,"You have chosen to customise your connections rather than being connected to all E&C markets."]
[null,"The markets that you provide here will be those who you want to trade with electronically on the platform and therefore available for your brokers/technicians to select.  "]
[]
[null,{"$f":"CONCATENATE(\"If you prefer to be connected to all \",B2,\", go back to 'Your Markets' and select 'Yes'\")","v":"If you prefer to be connected to all Energy and Construction Markets (E&C), go back to 'Your Markets' and select 'Yes'"}]
[]
[null,"Brokers and Carriers on PPL: https://tomsupports.london/placing-platform-limited-usefuldocuments"]
[]
[null,"Section 1: CUSTOM  or OFFLINE MARKETS","Company Name","Classification \n(LMA / IUA / MGA)","Lloyds code \n(Syndicate number)","LIC code\n(Lloyd's Brussels)","LORS Code","LIRMA","ILU","Contact name","Contact details \n(e.g. phone / email)"]
[null,"Custom Markets\nPlease list the markets that you wish to be connected to.  A full list is available on the PPL website - see link above\n\nColumns E-J: Please populate if there are specific stamps you wish to have available to you on the Platform. \n(e.g. 9000 stamps)  \n\nOffline Markets\nCompanies that are currently not signed up to PPL (and not listed on the PPL website), but that you would like available to you as an Offline Market. \n\nPlease note that PPL may contact these Companies in respect of becoming Online Markets. ","ABC Insurance Ltd","LMA",1234,null,"-","T1234",123456,"Mark Smith","ms@abc.com"]
[]
[]
[]
[]
[]
[]
[]
[]
[]
[]
[]
[]
[]
[]
[]
[]
[null,"Section 2: UNDERWRITING USERS","Company Name","Undewriter Name"]
[null,"Although you will be connected by default to all users associated to the companies you have selected in Section 1 above, if you want to ensure your known contacts are available on the platform, please list them here\n\n"]

{"sheet":"FPL Markets","index":12,"n_rows":30,"n_cols":11,"rows_kept":30,"cut":false,"hidden":true,"merged":[[11,1,26,1],[29,1,43,1]]}
[]
[null,"Financial and Professional Lines Markets (FPL)"]
[null,"Custom connections"]
[null,"You have chosen to customise your connections rather than being connected to all Financial and Professional Lines markets."]
[null,"The markets that you provide here will be those who you want to trade with electronically on the platform and therefore available for your brokers/technicians to select.  "]
[]
[null,{"$f":"CONCATENATE(\"If you prefer to be connected to all \",B2,\", go back to 'Your Markets' and select 'Yes'\")","v":"If you prefer to be connected to all Financial and Professional Lines Markets (FPL), go back to 'Your Markets' and select 'Yes'"}]
[]
[null,"Brokers and Carriers on PPL: https://tomsupports.london/placing-platform-limited-usefuldocuments"]
[]
[null,"Section 1: CUSTOM  or OFFLINE MARKETS","Company Name","Classification \n(LMA / IUA / MGA)","Lloyds code \n(Syndicate number)","LIC code\n(Lloyd's Brussels)","LORS Code","LIRMA","ILU","Contact name","Contact details \n(e.g. phone / email)"]
[null,"Custom Markets\nPlease list the markets that you wish to be connected to.  A full list is available on the PPL website - see link above\n\nColumns E-J: Please populate if there are specific stamps you wish to have available to you on the Platform. \n(e.g. 9000 stamps)  \n\nOffline Markets\nCompanies that are currently not signed up to PPL (and not listed on the PPL website), but that you would like available to you as an Offline Market. \n\nPlease note that PPL may contact these Companies in respect of becoming Online Markets. ","ABC Insurance Ltd","LMA",1234,null,"-","T1234",123456,"Mark Smith","ms@abc.com"]
[]
[]
[]
[]
[]
[]
[]
[]
[]
[]
[]
[]
[]
[]
[]
[]
[null,"Section 2: UNDERWRITING USERS","Company Name","Undewriter Name"]
[null,"Although you will be connected by default to all users associated to the companies you have selected in Section 1 above, if you want to ensure your known contacts are available on the platform, please list them here\n\n"]

{"sheet":"K&R Markets","index":13,"n_rows":30,"n_cols":11,"rows_kept":30,"cut":false,"hidden":true,"merged":[[11,1,26,1],[29,1,43,1]]}
[]
[null,"Kidnap & Ransom Markets (K&R)"]
[null,"Custom connections"]
[null,"You have chosen to customise your connections rather than being connected to all K&R markets."]
[null,"The markets that you provide here will be those who you want to trade with electronically on the platform and therefore available for your brokers/technicians to select.  "]
[]
[null,{"$f":"CONCATENATE(\"If you prefer to be connected to all \",B2,\", go back to 'Your Markets' and select 'Yes'\")","v":"If you prefer to be connected to all Kidnap & Ransom Markets (K&R), go back to 'Your Markets' and select 'Yes'"}]
[]
[null,"Brokers and Carriers on PPL: https://tomsupports.london/placing-platform-limited-usefuldocuments"]
[]
[null,"Section 1: CUSTOM  or OFFLINE MARKETS","Company Name","Classification \n(LMA / IUA / MGA)","Lloyds code \n(Syndicate number)","LIC code\n(Lloyd's Brussels)","LORS Code","LIRMA","ILU","Contact name","Contact details \n(e.g. phone / email)"]
[null,"Custom Markets\nPlease list the markets that you wish to be connected to.  A full list is available on the PPL website - see link above\n\nColumns E-J: Please populate if there are specific stamps you wish to have available to you on the Platform. \n(e.g. 9000 stamps)  \n\nOffline Markets\nCompanies that are currently not signed up to PPL (and not listed on the PPL website), but that you would like available to you as an Offline Market. \n\nPlease note that PPL may contact these Companies in respect of becoming Online Markets. ","ABC Insurance Ltd","LMA",1234,null,"-","T1234",123456,"Mark Smith","ms@abc.com"]
[]
[]
[]
[]
[]
[]
[]
[]
[]
[]
[]
[]
[]
[]
[]
[]
[null,"Section 2: UNDERWRITING USERS","Company Name","Undewriter Name"]
[null,"Although you will be connected by default to all users associated to the companies you have selected in Section 1 above, if you want to ensure your known contacts are available on the platform, please list them here\n\n"]

{"sheet":"Marine Markets","index":14,"n_rows":30,"n_cols":11,"rows_kept":30,"cut":false,"hidden":true,"merged":[[11,1,26,1],[29,1,43,1]]}
[]
[null,"Marine Markets"]
[null,"Custom connections"]
[null,"You have chosen to customise your connections rather than being connected to all Marine markets."]
[null,"The markets that you provide here will be those who you want to trade with electronically on the platform and therefore available for your brokers/technicians to select.  "]
[]
[null,{"$f":"CONCATENATE(\"If you prefer to be connected to all \",B2,\", go back to 'Your Markets' and select 'Yes'\")","v":"If you prefer to be connected to all Marine Markets, go back to 'Your Markets' and select 'Yes'"}]
[]
[null,"Brokers and Carriers on PPL: https://tomsupports.london/placing-platform-limited-usefuldocuments"]
[]
[null,"Section 1: CUSTOM  or OFFLINE MARKETS","Company Name","Classification \n(LMA / IUA / MGA)","Lloyds code \n(Syndicate number)","LIC code\n(Lloyd's Brussels)","LORS Code","LIRMA","ILU","Contact name","Contact details \n(e.g. phone / email)"]
[null,"Custom Markets\nPlease list the markets that you wish to be connected to.  A full list is available on the PPL website - see link above\n\nColumns E-J: Please populate if there are specific stamps you wish to have available to you on the Platform. \n(e.g. 9000 stamps)  \n\nOffline Markets\nCompanies that are currently not signed up to PPL (and not listed on the PPL website), but that you would like available to you as an Offline Market. \n\nPlease note that PPL may contact these Companies in respect of becoming Online Markets. ","ABC Insurance Ltd","LMA",1234,null,"-","T1234",123456,"Mark Smith","ms@abc.com"]
[]
[]
[]
[]
[]
[]
[]
[]
[]
[]
[]
[]
[]
[]
[]
[]
[null,"Section 2: UNDERWRITING USERS","Company Name","Undewriter Name"]
[null,"Although you will be connected by default to all users associated to the companies you have selected in Section 1 above, if you want to ensure your known contacts are available on the platform, please list them here\n\n"]

{"sheet":"PR Markets","index":15,"n_rows":30,"n_cols":11,"rows_kept":30,"cut":false,"hidden":true,"merged":[[11,1,26,1],[29,1,43,1]]}
[]
[null,"Political Risks Markets (PR)"]
[null,"Custom connections"]
[null,"You have chosen to customise your connections rather than being connected to all PR markets."]
[null,"The markets that you provide here will be those who you want to trade with electronically on the platform and therefore available for your brokers/technicians to select.  "]
[]
[null,{"$f":"CONCATENATE(\"If you prefer to be connected to all \",B2,\", go back to 'Your Markets' and select 'Yes'\")","v":"If you prefer to be connected to all Political Risks Markets (PR), go back to 'Your Markets' and select 'Yes'"}]
[]
[null,"Brokers and Carriers on PPL: https://tomsupports.london/placing-platform-limited-usefuldocuments"]
[]
[null,"Section 1: CUSTOM  or OFFLINE MARKETS","Company Name","Classification \n(LMA / IUA / MGA)","Lloyds code \n(Syndicate number)","LIC code\n(Lloyd's Brussels)","LORS Code","LIRMA","ILU","Contact name","Contact details \n(e.g. phone / email)"]
[null,"Custom Markets\nPlease list the markets that you wish to be connected to.  A full list is available on the PPL website - see link above\n\nColumns E-J: Please populate if there are specific stamps you wish to have available to you on the Platform. \n(e.g. 9000 stamps)  \n\nOffline Markets\nCompanies that are currently not signed up to PPL (and not listed on the PPL website), but that you would like available to you as an Offline Market. \n\nPlease note that PPL may contact these Companies in respect of becoming Online Markets. ","ABC Insurance Ltd","LMA",1234,null,"-","T1234",123456,"Mark Smith","ms@abc.com"]
[]
[]
[]
[]
[]
[]
[]
[]
[]
[]
[]
[]
[]
[]
[]
[]
[null,"Section 2: UNDERWRITING USERS","Company Name","Undewriter Name"]
[null,"Although you will be connected by default to all users associated to the companies you have selected in Section 1 above, if you want to ensure your known contacts are available on the platform, please list them here\n\n"]

{"sheet":"Property Markets","index":16,"n_rows":30,"n_cols":11,"rows_kept":30,"cut":false,"hidden":true,"merged":[[11,1,26,1],[29,1,43,1]]}
[]
[null,"Property & Casualty Markets (P&C)"]
[null,"Custom connections"]
[null,"You have chosen to customise your connections rather than being connected to all P&C markets."]
[null,"The markets that you provide here will be those who you want to trade with electronically on the platform and therefore available for your brokers/technicians to select.  "]
[]
[null,{"$f":"CONCATENATE(\"If you prefer to be connected to all \",B2,\", go back to 'Your Markets' and select 'Yes'\")","v":"If you prefer to be connected to all Property & Casualty Markets (P&C), go back to 'Your Markets' and select 'Yes'"}]
[]
[null,"Brokers and Carriers on PPL: https://tomsupports.london/placing-platform-limited-usefuldocuments"]
[]
[null,"Section 1: CUSTOM  or OFFLINE MARKETS","Company Name","Classification \n(LMA / IUA / MGA)","Lloyds code \n(Syndicate number)","LIC code\n(Lloyd's Brussels)","LORS Code","LIRMA","ILU","Contact name","Contact details \n(e.g. phone / email)"]
[null,"Custom Markets\nPlease list the markets that you wish to be connected to.  A full list is available on the PPL website - see link above\n\nColumns E-J: Please populate if there are specific stamps you wish to have available to you on the Platform. \n(e.g. 9000 stamps)  \n\nOffline Markets\nCompanies that are currently not signed up to PPL (and not listed on the PPL website), but that you would like available to you as an Offline Market. \n\nPlease note that PPL may contact these Companies in respect of becoming Online Markets. ","ABC Insurance Ltd","LMA",1234,null,"-","T1234",123456,"Mark Smith","ms@abc.com"]
[]
[]
[]
[]
[]
[]
[]
[]
[]
[]
[]
[]
[]
[]
[]
[]
[null,"Section 2: UNDERWRITING USERS","Company Name","Undewriter Name"]
[null,"Although you will be connected by default to all users associated to the companies you have selected in Section 1 above, if you want to ensure your known contacts are available on the platform, please list them here\n\n"]

{"sheet":"RE Markets","index":17,"n_rows":30,"n_cols":11,"rows_kept":30,"cut":false,"hidden":true,"merged":[[11,1,26,1],[29,1,43,1]]}
[]
[null,"Real Estate Markets (RE)"]
[null,"Custom connections"]
[null,"You have chosen to customise your connections rather than being connected to all RE markets."]
[null,"The markets that you provide here will be those who you want to trade with electronically on the platform and therefore available for your brokers/technicians to select.  "]
[]
[null,{"$f":"CONCATENATE(\"If you prefer to be connected to all \",B2,\", go back to 'Your Markets' and select 'Yes'\")","v":"If you prefer to be connected to all Real Estate Markets (RE), go back to 'Your Markets' and select 'Yes'"}]
[]
[null,"Brokers and Carriers on PPL: https://tomsupports.london/placing-platform-limited-usefuldocuments"]
[]
[null,"Section 1: CUSTOM  or OFFLINE MARKETS","Company Name","Classification \n(LMA / IUA / MGA)","Lloyds code \n(Syndicate number)","LIC code\n(Lloyd's Brussels)","LORS Code","LIRMA","ILU","Contact name","Contact details \n(e.g. phone / email)"]
[null,"Custom Markets\nPlease list the markets that you wish to be connected to.  A full list is available on the PPL website - see link above\n\nColumns E-J: Please populate if there are specific stamps you wish to have available to you on the Platform. \n(e.g. 9000 stamps)  \n\nOffline Markets\nCompanies that are currently not signed up to PPL (and not listed on the PPL website), but that you would like available to you as an Offline Market. \n\nPlease note that PPL may contact these Companies in respect of becoming Online Markets. ","ABC Insurance Ltd","LMA",1234,null,"-","T1234",123456,"Mark Smith","ms@abc.com"]
[]
[]
[]
[]
[]
[]
[]
[]
[]
[]
[]
[]
[]
[]
[]
[]
[null,"Section 2: UNDERWRITING USERS","Company Name","Undewriter Name"]
[null,"Although you will be connected by default to all users associated to the companies you have selected in Section 1 above, if you want to ensure your known contacts are available on the platform, please list them here\n\n"]

{"sheet":"RI Markets","index":18,"n_rows":30,"n_cols":11,"rows_kept":30,"cut":false,"hidden":true,"merged":[[11,1,26,1],[29,1,43,1]]}
[]
[null,"Reinsurance Markets (RI)"]
[null,"Custom connections"]
[null,"You have chosen to customise your connections rather than being connected to all Reinsurance markets."]
[null,"The markets that you provide here will be those who you want to trade with electronically on the platform and therefore available for your brokers/technicians to select.  "]
[]
[null,{"$f":"CONCATENATE(\"If you prefer to be connected to all \",B2,\", go back to 'Your Markets' and select 'Yes'\")","v":"If you prefer to be connected to all Reinsurance Markets (RI), go back to 'Your Markets' and select 'Yes'"}]
[]
[null,"Brokers and Carriers on PPL: https://tomsupports.london/placing-platform-limited-usefuldocuments"]
[]
[null,"Section 1: CUSTOM  or OFFLINE MARKETS","Company Name","Classification \n(LMA / IUA / MGA)","Lloyds code \n(Syndicate number)","LIC code\n(Lloyd's Brussels)","LORS Code","LIRMA","ILU","Contact name","Contact details \n(e.g. phone / email)"]
[null,"Custom Markets\nPlease list the markets that you wish to be connected to.  A full list is available on the PPL website - see link above\n\nColumns E-J: Please populate if there are specific stamps you wish to have available to you on the Platform. \n(e.g. 9000 stamps)  \n\nOffline Markets\nCompanies that are currently not signed up to PPL (and not listed on the PPL website), but that you would like available to you as an Offline Market. \n\nPlease note that PPL may contact these Companies in respect of becoming Online Markets. ","ABC Insurance Ltd","LMA",1234,null,"-","T1234",123456,"Mark Smith","ms@abc.com"]
[]
[]
[]
[]
[]
[]
[]
[]
[]
[]
[]
[]
[]
[]
[]
[]
[null,"Section 2: UNDERWRITING USERS","Company Name","Undewriter Name"]
[null,"Although you will be connected by default to all users associated to the companies you have selected in Section 1 above, if you want to ensure your known contacts are available on the platform, please list them here\n\n"]

{"sheet":"Terrorism Markets","index":19,"n_rows":30,"n_cols":11,"rows_kept":30,"cut":false,"hidden":true,"merged":[[11,1,26,1],[29,1,43,1]]}
[]
[null,"Terrorism Markets"]
[null,"Custom connections"]
[null,"You have chosen to customise your connections rather than being connected to all Terrorism markets."]
[null,"The markets that you provide here will be those who you want to trade with electronically on the platform and therefore available for your brokers/technicians to select.  "]
[]
[null,{"$f":"CONCATENATE(\"If you prefer to be connected to all \",B2,\", go back to 'Your Markets' and select 'Yes'\")","v":"If you prefer to be connected to all Terrorism Markets, go back to 'Your Markets' and select 'Yes'"}]
[]
[null,"Brokers and Carriers on PPL: https://tomsupports.london/placing-platform-limited-usefuldocuments"]
[]
[null,"Section 1: CUSTOM  or OFFLINE MARKETS","Company Name","Classification \n(LMA / IUA / MGA)","Lloyds code \n(Syndicate number)","LIC code\n(Lloyd's Brussels)","LORS Code","LIRMA","ILU","Contact name","Contact details \n(e.g. phone / email)"]
[null,"Custom Markets\nPlease list the markets that you wish to be connected to.  A full list is available on the PPL website - see link above\n\nColumns E-J: Please populate if there are specific stamps you wish to have available to you on the Platform. \n(e.g. 9000 stamps)  \n\nOffline Markets\nCompanies that are currently not signed up to PPL (and not listed on the PPL website), but that you would like available to you as an Offline Market. \n\nPlease note that PPL may contact these Companies in respect of becoming Online Markets. ","ABC Insurance Ltd","LMA",1234,null,"-","T1234",123456,"Mark Smith","ms@abc.com"]
[]
[]
[]
[]
[]
[]
[]
[]
[]
[]
[]
[]
[]
[]
[]
[]
[null,"Section 2: UNDERWRITING USERS","Company Name","Undewriter Name"]
[null,"Although you will be connected by default to all users associated to the companies you have selected in Section 1 above, if you want to ensure your known contacts are available on the platform, please list them here\n\n"]

{"sheet":"Your User Details","index":20,"n_rows":105,"n_cols":21,"rows_kept":105,"cut":false,"hidden":false,"merged":[[52,8,52,10]]}
[]
[null,"Your User Details"]
[null,"Broker Teams and Users Setup"]
[null,"Once we have your completed form we will create your accounts. If we require more information, we will contact you."]
[]
[null,"Section 1: Your Teams"]
[]
[null,"Team 1"]
[null,"Team Name:",null,{"$f":"IF(ISBLANK(C9),\"0\",\"9.09090909\")","v":"0"}]
[null,"Broker Code:",null,{"$f":"IF(ISBLANK(C10),\"0\",\"9.09090909\")","v":"0"}]
[null,"Cover Placed:"]
[null,"Team 2"]
[null,"Team Name:"]
[null,"Broker Code:"]
[null,"Cover Placed:"]
[null,"Team 3"]
[null,"Team Name:"]
[null,"Broker Code:"]
[null,"Cover Placed:"]
[null,"Team 4"]
[null,"Team Name:"]
[null,"Broker Code:"]
[null,"Cover Placed:"]
[null,"Team 5"]
[null,"Team Name:"]
[null,"Broker Code:"]
[null,"Cover Placed:"]
[null,"Team 6"]
[null,"Team Name:"]
[null,"Broker Code:"]
[null,"Cover Placed:"]
[null,"Team 7"]
[null,"Team Name:"]
[null,"Broker Code:"]
[null,"Cover Placed:"]
[null,"Team 8"]
[null,"Team Name:"]
[null,"Broker Code:"]
[null,"Cover Placed:"]
[null,"Team 9"]
[null,"Team Name:"]
[null,"Broker Code:"]
[null,"Cover Placed:"]
[null,"Team 10"]
[null,"Team Name:"]
[null,"Broker Code:"]
[null,"Cover Placed:"]
[]
[]
[]
[null,"Section 2: Your Users"]
[]
[null,null,null,null,null,null,null,null,"Extra Roles"]
[null,"User No.","First Name","Last Name","E-Mail Address","Telephone Number","Team\n(As in Section 1)","Role","Internal Approver","Backload Admin","Super user"]
[null,"Example:  1","John","Smith","john.smith@abcbroker.com","+44 (0)207 8765 4321","1, 2","Broker","Yes","Yes","No"]
[null,1,null,null,null,null,null,null,null,null,null,{"$f":"IF(ISBLANK(C56),\"0\",\"9.09090909\")","v":"0"},{"$f":"IF(ISBLANK(D56),\"0\",\"9.09090909\")","v":"0"},"0","0","0","0","0","0","0",{"$f":"SUM(L56+M56+N56+O56+P56+Q56+R56+S56+T56)+D9+D10","v":0}]
[null,2]
[null,3]
[null,4]
[null,5]
[null,6]
[null,7]
[null,8]
[null,9]
[null,10]
[null,11]
[null,12]
[null,13]
[null,14]
[null,15]
[null,16]
[null,17]
[null,18]
[null,19]
[null,20]
[null,21]
[null,22]
[null,23]
[null,24]
[null,25]
[null,26]
[null,27]
[null,28]
[null,29]
[null,30]
[null,31]
[null,32]
[null,33]
[null,34]
[null,35]
[null,36]
[null,37]
[null,38]
[null,39]
[null,40]
[null,41]
[null,42]
[null,43]
[null,44]
[null,45]
[null,46]
[null,47]
[null,48]
[null,49]
[null,50]

{"sheet":"Extract Data","index":21,"n_rows":144,"n_cols":7,"rows_kept":144,"cut":false,"hidden":true,"merged":[]}
["Classes of business","Places business?","Connect to all?"]
["Accident & Health (A&H)",{"$f":"'Your Classes'!C7","v":"Please select"},{"$f":"'Your Markets'!C8","v":"Please select"}]
["Aviation",{"$f":"'Your Classes'!C15","v":"Please select"},{"$f":"'Your Markets'!C9","v":"Please select"}]
["Bloodstock/Livestock",{"$f":"'Your Classes'!C33","v":"Please select"},{"$f":"'Your Markets'!C10","v":"Please select"}]
["Casualty",{"$f":"'Your Classes'!C41","v":"Please select"},{"$f":"'Your Markets'!C11","v":"Please select"}]
["Construction",{"$f":"'Your Classes'!C52","v":"Please select"},{"$f":"'Your Markets'!C12","v":"Please select"}]
["Energy",{"$f":"'Your Classes'!C61","v":"Please select"},{"$f":"'Your Markets'!C13","v":"Please select"}]
["Financial and Professional Lines (FPL)",{"$f":"'Your Classes'!C74","v":"Please select"},{"$f":"'Your Markets'!C14","v":"Please select"}]
["Kidnap & Ransom (K&R)",{"$f":"'Your Classes'!C86","v":"Please select"},{"$f":"'Your Markets'!C15","v":"Please select"}]
["Marine",{"$f":"'Your Classes'!C91","v":"Please select"},{"$f":"'Your Markets'!C16","v":"Please select"}]
["Political Risks (PR)",{"$f":"'Your Classes'!C105","v":"Please select"},{"$f":"'Your Markets'!C17","v":"Please select"}]
["Property",{"$f":"'Your Classes'!C115","v":"Please select"},{"$f":"'Your Markets'!C18","v":"Please select"}]
["Real Estate (RE)",{"$f":"'Your Classes'!C124","v":"Please select"},{"$f":"'Your Markets'!C19","v":"Please select"}]
["Reinsurance (RI)",{"$f":"'Your Classes'!C129","v":"Please select"},{"$f":"'Your Markets'!C20","v":"Please select"}]
["Terrorism",{"$f":"'Your Classes'!C134","v":"Please select"},{"$f":"'Your Markets'!C21","v":"Please select"}]
[]
["Approval required?",{"$f":"'Your Company Details'!D33","v":"Please select"}]
["Connect to new stamps?",{"$f":"'Your Markets'!C39","v":"Please select"}]
[]
["Contacts"]
["Organisation","First Name","Last Name","Role","Email address","Telephone Number","Type"]
[{"$f":"IF(ISBLANK('Your Company Details'!$D$8),\"\",'Your Company Details'!$D$8)","v":""},{"$f":"IF(ISBLANK('Your Company Details'!$D37),\"\",'Your Company Details'!$D37)","v":""},{"$f":"IF(ISBLANK('Your Company Details'!$D39),\"\",'Your Company Details'!$D39)","v":""},"Approver",{"$f":"IF(ISBLANK('Your Company Details'!$D41),\"\",'Your Company Details'!$D41)","v":""},{"$f":"IF(ISBLANK('Your Company Details'!$D43),\"\",'Your Company Details'!$D43)","v":""},"Broker"]
[{"$f":"IF(ISBLANK('Your Company Details'!$D$8),\"\",'Your Company Details'!$D$8)","v":""},{"$f":"IF(ISBLANK('Your Company Details'!$D47),\"\",'Your Company Details'!$D47)","v":""},{"$f":"IF(ISBLANK('Your Company Details'!$D49),\"\",'Your Company Details'!$D49)","v":""},"Approver",{"$f":"IF(ISBLANK('Your Company Details'!$D51),\"\",'Your Company Details'!$D51)","v":""},{"$f":"IF(ISBLANK('Your Company Details'!$D53),\"\",'Your Company Details'!$D53)","v":""},"Broker"]
[{"$f":"IF(ISBLANK('Your Company Details'!$D$8),\"\",'Your Company Details'!$D$8)","v":""},{"$f":"IF(ISBLANK('Your Company Details'!$D60),\"\",'Your Company Details'!$D60)","v":""},{"$f":"IF(ISBLANK('Your Company Details'!$D62),\"\",'Your Company Details'!$D62)","v":""},"Stamp Approval",{"$f":"IF(ISBLANK('Your Company Details'!$D64),\"\",'Your Company Details'!$D64)","v":""},{"$f":"IF(ISBLANK('Your Company Details'!$D66),\"\",'Your Company Details'!$D66)","v":""},"Broker"]
[{"$f":"IF(ISBLANK('Your Company Details'!$D$8),\"\",'Your Company Details'!$D$8)","v":""},{"$f":"IF(ISBLANK('Your Company Details'!$D70),\"\",'Your Company Details'!$D70)","v":""},{"$f":"IF(ISBLANK('Your Company Details'!$D72),\"\",'Your Company Details'!$D72)","v":""},"Stamp Approval",{"$f":"IF(ISBLANK('Your Company Details'!$D74),\"\",'Your Company Details'!$D74)","v":""},{"$f":"IF(ISBLANK('Your Company Details'!$D76),\"\",'Your Company Details'!$D76)","v":""},"Broker"]
[{"$f":"IF(ISBLANK('Your Company Details'!$D$8),\"\",'Your Company Details'!$D$8)","v":""},{"$f":"IF(ISBLANK('Your Company Details'!$D82),\"\",'Your Company Details'!$D82)","v":""},{"$f":"IF(ISBLANK('Your Company Details'!$D84),\"\",'Your Company Details'!$D84)","v":""},"Sponsor",{"$f":"IF(ISBLANK('Your Company Details'!$D86),\"\",'Your Company Details'!$D86)","v":""},{"$f":"IF(ISBLANK('Your Company Details'!$D88),\"\",'Your Company Details'!$D88)","v":""},"Broker"]
[{"$f":"IF(ISBLANK('Your Company Details'!$D$8),\"\",'Your Company Details'!$D$8)","v":""},{"$f":"IF(ISBLANK('Your Company Details'!$D93),\"\",'Your Company Details'!$D93)","v":""},{"$f":"IF(ISBLANK('Your Company Details'!$D95),\"\",'Your Company Details'!$D95)","v":""},"C-Suite",{"$f":"IF(ISBLANK('Your Company Details'!$D97),\"\",'Your Company Details'!$D97)","v":""},{"$f":"IF(ISBLANK('Your Company Details'!$D99),\"\",'Your Company Details'!$D99)","v":""},"Broker"]
[{"$f":"IF(ISBLANK('Your Company Details'!$D$8),\"\",'Your Company Details'!$D$8)","v":""},{"$f":"IF(ISBLANK('Your Company Details'!$D104),\"\",'Your Company Details'!$D104)","v":""},{"$f":"IF(ISBLANK('Your Company Details'!$D106),\"\",'Your Company Details'!$D106)","v":""},"Point of contact",{"$f":"IF(ISBLANK('Your Company Details'!$D108),\"\",'Your Company Details'!$D108)","v":""},{"$f":"IF(ISBLANK('Your Company Details'!$D110),\"\",'Your Company Details'!$D110)","v":""},"Broker"]
[{"$f":"IF(ISBLANK('Your Company Details'!$D$8),\"\",'Your Company Details'!$D$8)","v":""},{"$f":"IF(ISBLANK('Your Company Details'!$D117),\"\",'Your Company Details'!$D117)","v":""},{"$f":"IF(ISBLANK('Your Company Details'!$D119),\"\",'Your Company Details'!$D119)","v":""},"Finance Manager",{"$f":"IF(ISBLANK('Your Company Details'!$D121),\"\",'Your Company Details'!$D121)","v":""},{"$f":"IF(ISBLANK('Your Company Details'!$D123),\"\",'Your Company Details'!$D123)","v":""},"Broker"]
[{"$f":"IF(ISBLANK('Your Company Details'!$D$8),\"\",'Your Company Details'!$D$8)","v":""},{"$f":"IF(ISBLANK('Your Company Details'!$D130),\"\",'Your Company Details'!$D130)","v":""},{"$f":"IF(ISBLANK('Your Company Details'!$D132),\"\",'Your Company Details'!$D132)","v":""},"Publicity",{"$f":"IF(ISBLANK('Your Company Details'!$D134),\"\",'Your Company Details'!$D134)","v":""},{"$f":"IF(ISBLANK('Your Company Details'!$D136),\"\",'Your Company Details'!$D136)","v":""},"Broker"]
[{"$f":"IF(ISBLANK('Your Company Details'!$D$8),\"\",'Your Company Details'!$D$8)","v":""},{"$f":"IF(ISBLANK('Your Company Details'!$D143),\"\",'Your Company Details'!$D143)","v":""},{"$f":"IF(ISBLANK('Your Company Details'!$D145),\"\",'Your Company Details'!$D145)","v":""},"Business as usual",{"$f":"IF(ISBLANK('Your Company Details'!$D147),\"\",'Your Company Details'!$D147)","v":""},{"$f":"IF(ISBLANK('Your Company Details'!$D149),\"\",'Your Company Details'!$D149)","v":""},"Broker"]
[{"$f":"IF(ISBLANK('Your Company Details'!$D$8),\"\",'Your Company Details'!$D$8)","v":""},{"$f":"IF(ISBLANK('Your Company Details'!$D156),\"\",'Your Company Details'!$D156)","v":""},{"$f":"IF(ISBLANK('Your Company Details'!$D158),\"\",'Your Company Details'!$D158)","v":""},"Data Protection Officer",{"$f":"IF(ISBLANK('Your Company Details'!$D160),\"\",'Your Company Details'!$D160)","v":""},{"$f":"IF(ISBLANK('Your Company Details'!$D162),\"\",'Your Company Details'!$D152)","v":""},"Broker"]
[{"$f":"IF(ISBLANK('Your Company Details'!$D$8),\"\",'Your Company Details'!$D$8)","v":""},{"$f":"IF(ISBLANK('Your Company Details'!$D171),\"\",'Your Company Details'!$D171)","v":""},{"$f":"IF(ISBLANK('Your Company Details'!$D173),\"\",'Your Company Details'!$D173)","v":""},"Trainer",{"$f":"IF(ISBLANK('Your Company Details'!$D175),\"\",'Your Company Details'!$D175)","v":""},{"$f":"IF(ISBLANK('Your Company Details'!$D177),\"\",'Your Company Details'!$D177)","v":""},"Broker"]
[]
["Has in-house training capabilities",{"$f":"'Your Company Details'!D167","v":"Please select"}]
["Would like to explore PPL integration capabilities",{"$f":"'Your Company Details'!D182","v":"Please select"}]
[]
["Registered Company Name",{"$f":"'Your Company Details'!D8","v":0}]
["Address Line 1",{"$f":"'Your Company Details'!D10","v":0}]
["Address Line 2",{"$f":"'Your Company Details'!D12","v":0}]
["City ",{"$f":"'Your Company Details'!D14","v":0}]
["Region",{"$f":"'Your Company Details'!D16","v":0}]
["Postcode",{"$f":"'Your Company Details'!D18","v":0}]
["Country",{"$f":"'Your Company Details'!D20","v":"Please select"}]
[]
[]
[]
[]
["Detailed Classes of business","Places business?"]
["Accident & Health (A&H)",{"$f":"'Your Classes'!C7","v":"Please select"}]
["Personal Accident (including Travel)?",{"$f":"'Your Classes'!C9","v":"Please select"}]
["Contingency?",{"$f":"'Your Classes'!C10","v":"Please select"}]
["Any other classes within your A&H department?",{"$f":"'Your Classes'!C11","v":"Please select"}]
["If Yes, list",{"$f":"'Your Classes'!B13","v":0}]
["Aviation",{"$f":"'Your Classes'!C15","v":"Please select"}]
["Satellite/Space?",{"$f":"'Your Classes'!C17","v":"Please select"}]
["General Aviation?",{"$f":"'Your Classes'!C18","v":"Please select"}]
["Airlines?",{"$f":"'Your Classes'!C19","v":"Please select"}]
["Hull Deductible?",{"$f":"'Your Classes'!C20","v":"Please select"}]
["Hull War?",{"$f":"'Your Classes'!C21","v":"Please select"}]
["Excess War Liability?",{"$f":"'Your Classes'!C22","v":"Please select"}]
["Products Liability?",{"$f":"'Your Classes'!C23","v":"Please select"}]
["Airport Liability?",{"$f":"'Your Classes'!C24","v":"Please select"}]
["Contingent Aviation?",{"$f":"'Your Classes'!C25","v":"Please select"}]
["Contingent Hull?",{"$f":"'Your Classes'!C26","v":"Please select"}]
["Contingent Liability?",{"$f":"'Your Classes'!C27","v":"Please select"}]
["Bank / Lessors?",{"$f":"'Your Classes'!C28","v":"Please select"}]
["Any other classes within your Aviation department?",{"$f":"'Your Classes'!C29","v":"Please select"}]
["If Yes, list",{"$f":"'Your Classes'!B31","v":0}]
["Bloodstock/Livestock (B/L)",{"$f":"'Your Classes'!C33","v":"Please select"}]
["Bloodstock",{"$f":"'Your Classes'!C35","v":"Please select"}]
["Livestock",{"$f":"'Your Classes'!C36","v":"Please select"}]
["Any other classes within your B/L department?",{"$f":"'Your Classes'!C37","v":"Please select"}]
["If Yes, list",{"$f":"'Your Classes'!B39","v":0}]
["Casualty",{"$f":"'Your Classes'!C41","v":"Please select"}]
["General Liability?",{"$f":"'Your Classes'!C43","v":"Please select"}]
["Employers' Liability/WCA?",{"$f":"'Your Classes'!C44","v":"Please select"}]
["Public Liability?",{"$f":"'Your Classes'!C45","v":"Please select"}]
["Product Liability?",{"$f":"'Your Classes'!C46","v":"Please select"}]
["Medical Malpractice?",{"$f":"'Your Classes'!C47","v":"Please select"}]
["Any other classes within your Casualty department?",{"$f":"'Your Classes'!C48","v":"Please select"}]
["If Yes, list",{"$f":"'Your Classes'!B50","v":0}]
["Construction",{"$f":"'Your Classes'!C52","v":"Please select"}]
["Onshore Construction?",{"$f":"'Your Classes'!C54","v":"Please select"}]
["Offshore Construction?",{"$f":"'Your Classes'!C55","v":"Please select"}]
["Mining?",{"$f":"'Your Classes'!C56","v":"Please select"}]
["Any other classes within your Construction department?",{"$f":"'Your Classes'!C57","v":"Please select"}]
["If Yes, list",{"$f":"'Your Classes'!B59","v":0}]
["Energy",{"$f":"'Your Classes'!C61","v":"Please select"}]
["Onshore Energy?",{"$f":"'Your Classes'!C63","v":"Please select"}]
["Offshore Energy?",{"$f":"'Your Classes'!C64","v":"Please select"}]
["Energy Liability?",{"$f":"'Your Classes'!C65","v":"Please select"}]
["Power (Including Nuclear)?",{"$f":"'Your Classes'!C66","v":"Please select"}]
["Any other classes within your Energy department?",{"$f":"'Your Classes'!C67","v":"Please select"}]
["If Yes, list",{"$f":"'Your Classes'!B69","v":0}]
["Facilities",{"$f":"'Your Classes'!C71","v":"Please select"}]
["What percentage of your Facilities business are Binders?",{"$f":"'Your Classes'!C72","v":0}]
["Financial and Professional Lines (FPL)",{"$f":"'Your Classes'!C74","v":"Please select"}]
["Directors and Officers (D&O)?",{"$f":"'Your Classes'!C76","v":"Please select"}]
["Financial Institutions (FI)?",{"$f":"'Your Classes'!C77","v":"Please select"}]
["Professional Liability (PL)?",{"$f":"'Your Classes'!C78","v":"Please select"}]
["Cyber?",{"$f":"'Your Classes'!C79","v":"Please select"}]
["Medical Malpractice?",{"$f":"'Your Classes'!C80","v":"Please select"}]
["Healthcare?",{"$f":"'Your Classes'!C81","v":"Please select"}]
["Any other classes within your FPL department?",{"$f":"'Your Classes'!C82","v":"Please select"}]
["If Yes, list",{"$f":"'Your Classes'!B84","v":0}]
["Kidnap & Ransom",{"$f":"'Your Classes'!C86","v":"Please select"}]
["Do you place any other classes within your K&R department?",{"$f":"'Your Classes'!C87","v":"Please select"}]
["If Yes, list",{"$f":"'Your Classes'!B89","v":0}]
["Marine",{"$f":"'Your Classes'!C91","v":"Please select"}]
["Hull?",{"$f":"'Your Classes'!C93","v":"Please select"}]
["Marine Construction?",{"$f":"'Your Classes'!C94","v":"Please select"}]
["War?",{"$f":"'Your Classes'!C95","v":"Please select"}]
["Yacht?",{"$f":"'Your Classes'!C96","v":"Please select"}]
["Cargo?",{"$f":"'Your Classes'!C97","v":"Please select"}]
["Marine Liability?",{"$f":"'Your Classes'!C98","v":"Please select"}]
["Ports and Terminals?",{"$f":"'Your Classes'!C99","v":"Please select"}]
["Specie (including fine arts, jewellers block \nand cash in transit?",{"$f":"'Your Classes'!C100","v":"Please select"}]
["Any other classes within your Marine department?",{"$f":"'Your Classes'!C101","v":"Please select"}]
["If Yes, list",{"$f":"'Your Classes'!B103","v":0}]
["Political Risks",{"$f":"'Your Classes'!C105","v":"Please select"}]
["Political Risks?",{"$f":"'Your Classes'!C107","v":"Please select"}]
["Contract Frustration?",{"$f":"'Your Classes'!C108","v":"Please select"}]
["Trade Credit?",{"$f":"'Your Classes'!C109","v":"Please select"}]
["Financial Guarantee?",{"$f":"'Your Classes'!C110","v":"Please select"}]
["Any other classes within your Political Risks department?",{"$f":"'Your Classes'!C111","v":"Please select"}]
["If Yes, list",{"$f":"'Your Classes'!B113","v":0}]
["Property",{"$f":"'Your Classes'!C115","v":"Please select"}]
["Non-Marine Property?",{"$f":"'Your Classes'!C117","v":"Please select"}]
["Product Recall?",{"$f":"'Your Classes'!C118","v":"Please select"}]
["Mining?",{"$f":"'Your Classes'!C119","v":"Please select"}]
["Any other classes within your Property department?",{"$f":"'Your Classes'!C120","v":"Please select"}]
["If Yes, list",{"$f":"'Your Classes'!B122","v":0}]
["Real Estate",{"$f":"'Your Classes'!C124","v":"Please select"}]
["Do you place any other classes within your Real Estate department?",{"$f":"'Your Classes'!C125","v":"Please select"}]
["If Yes, list",{"$f":"'Your Classes'!B127","v":0}]
["Reinsurance",{"$f":"'Your Classes'!C129","v":"Please select"}]
["Do you place any other classes within your Treaty Reinsurance department?",{"$f":"'Your Classes'!C130","v":"Please select"}]
["If Yes, list",{"$f":"'Your Classes'!B132","v":0}]
["Terrorism",{"$f":"'Your Classes'!C134","v":"Please select"}]
["Terrorism?",{"$f":"'Your Classes'!C136","v":"Please select"}]
["Political Violence?",{"$f":"'Your Classes'!C137","v":"Please select"}]
["Any other classes within your Terrorism department?",{"$f":"'Your Classes'!C138","v":"Please select"}]
["If Yes, list",{"$f":"'Your Classes'!B140","v":0}]

{"sheet":"LMS Upload","index":22,"n_rows":200,"n_cols":16,"rows_kept":200,"cut":false,"hidden":true,"merged":[]}
["LoginId","Password","EmailAddress","FirstName","LastName","AddressLine1","AddressLine2","City","State","Country","PostalCode","ContactNumber","IsActive","Broker or Underwriter","Organisation","Class of Business"]
[{"$f":"IF(ISBLANK('Your User Details'!$E56),\"\",'Your User Details'!$E56)","v":""},{"$f":"IF(ISBLANK('Your User Details'!$E56),\"\",\"P@ssw0rd\")","v":""},{"$f":"IF(ISBLANK('Your User Details'!$E56),\"\",'Your User Details'!$E56)","v":""},{"$f":"IF(ISBLANK('Your User Details'!$C56),\"\",'Your User Details'!$C56)","v":""},{"$f":"IF(ISBLANK('Your User Details'!$D56),\"\",'Your User Details'!$D56)","v":""},null,null,null,null,null,null,null,{"$f":"IF(ISBLANK('Your User Details'!$E56),\"\",\"Y\")","v":""},{"$f":"IF(ISBLANK('Your User Details'!$E56),\"\",\"Broker\")","v":""},{"$f":"IF(ISBLANK('Your User Details'!$E56),\"\",'Your Company Details'!$D$8)","v":""},{"$f":"IF(ISBLANK('Your User Details'!$E56),\"\",\"N/A\")","v":""}]
[{"$f":"IF(ISBLANK('Your User Details'!$E57),\"\",'Your User Details'!$E57)","v":""},{"$f":"IF(ISBLANK('Your User Details'!$E57),\"\",\"P@ssw0rd\")","v":""},{"$f":"IF(ISBLANK('Your User Details'!$E57),\"\",'Your User Details'!$E57)","v":""},{"$f":"IF(ISBLANK('Your User Details'!$C57),\"\",'Your User Details'!$C57)","v":""},{"$f":"IF(ISBLANK('Your User Details'!$D57),\"\",'Your User Details'!$D57)","v":""},null,null,null,null,null,null,null,{"$f":"IF(ISBLANK('Your User Details'!$E57),\"\",\"Y\")","v":""},{"$f":"IF(ISBLANK('Your User Details'!$E57),\"\",\"Broker\")","v":""},{"$f":"IF(ISBLANK('Your User Details'!$E57),\"\",'Your Company Details'!$D$8)","v":""},{"$f":"IF(ISBLANK('Your User Details'!$E57),\"\",\"N/A\")","v":""}]
[{"$f":"IF(ISBLANK('Your User Details'!$E58),\"\",'Your User Details'!$E58)","v":""},{"$f":"IF(ISBLANK('Your User Details'!$E58),\"\",\"P@ssw0rd\")","v":""},{"$f":"IF(ISBLANK('Your User Details'!$E58),\"\",'Your User Details'!$E58)","v":""},{"$f":"IF(ISBLANK('Your User Details'!$C58),\"\",'Your User Details'!$C58)","v":""},{"$f":"IF(ISBLANK('Your User Details'!$D58),\"\",'Your User Details'!$D58)","v":""},null,null,null,null,null,null,null,{"$f":"IF(ISBLANK('Your User Details'!$E58),\"\",\"Y\")","v":""},{"$f":"IF(ISBLANK('Your User Details'!$E58),\"\",\"Broker\")","v":""},{"$f":"IF(ISBLANK('Your User Details'!$E58),\"\",'Your Company Details'!$D$8)","v":""},{"$f":"IF(ISBLANK('Your User Details'!$E58),\"\",\"N/A\")","v":""}]
[{"$f":"IF(ISBLANK('Your User Details'!$E59),\"\",'Your User Details'!$E59)","v":""},{"$f":"IF(ISBLANK('Your User Details'!$E59),\"\",\"P@ssw0rd\")","v":""},{"$f":"IF(ISBLANK('Your User Details'!$E59),\"\",'Your User Details'!$E59)","v":""},{"$f":"IF(ISBLANK('Your User Details'!$C59),\"\",'Your User Details'!$C59)","v":""},{"$f":"IF(ISBLANK('Your User Details'!$D59),\"\",'Your User Details'!$D59)","v":""},null,null,null,null,null,null,null,{"$f":"IF(ISBLANK('Your User Details'!$E59),\"\",\"Y\")","v":""},{"$f":"IF(ISBLANK('Your User Details'!$E59),\"\",\"Broker\")","v":""},{"$f":"IF(ISBLANK('Your User Details'!$E59),\"\",'Your Company Details'!$D$8)","v":""},{"$f":"IF(ISBLANK('Your User Details'!$E59),\"\",\"N/A\")","v":""}]
[{"$f":"IF(ISBLANK('Your User Details'!$E60),\"\",'Your User Details'!$E60)","v":""},{"$f":"IF(ISBLANK('Your User Details'!$E60),\"\",\"P@ssw0rd\")","v":""},{"$f":"IF(ISBLANK('Your User Details'!$E60),\"\",'Your User Details'!$E60)","v":""},{"$f":"IF(ISBLANK('Your User Details'!$C60),\"\",'Your User Details'!$C60)","v":""},{"$f":"IF(ISBLANK('Your User Details'!$D60),\"\",'Your User Details'!$D60)","v":""},null,null,null,null,null,null,null,{"$f":"IF(ISBLANK('Your User Details'!$E60),\"\",\"Y\")","v":""},{"$f":"IF(ISBLANK('Your User Details'!$E60),\"\",\"Broker\")","v":""},{"$f":"IF(ISBLANK('Your User Details'!$E60),\"\",'Your Company Details'!$D$8)","v":""},{"$f":"IF(ISBLANK('Your User Details'!$E60),\"\",\"N/A\")","v":""}]
[{"$f":"IF(ISBLANK('Your User Details'!$E61),\"\",'Your User Details'!$E61)","v":""},{"$f":"IF(ISBLANK('Your User Details'!$E61),\"\",\"P@ssw0rd\")","v":""},{"$f":"IF(ISBLANK('Your User Details'!$E61),\"\",'Your User Details'!$E61)","v":""},{"$f":"IF(ISBLANK('Your User Details'!$C61),\"\",'Your User Details'!$C61)","v":""},{"$f":"IF(ISBLANK('Your User Details'!$D61),\"\",'Your User Details'!$D61)","v":""},null,null,null,null,null,null,null,{"$f":"IF(ISBLANK('Your User Details'!$E61),\"\",\"Y\")","v":""},{"$f":"IF(ISBLANK('Your User Details'!$E61),\"\",\"Broker\")","v":""},{"$f":"IF(ISBLANK('Your User Details'!$E61),\"\",'Your Company Details'!$D$8)","v":""},{"$f":"IF(ISBLANK('Your User Details'!$E61),\"\",\"N/A\")","v":""}]
[{"$f":"IF(ISBLANK('Your User Details'!$E62),\"\",'Your User Details'!$E62)","v":""},{"$f":"IF(ISBLANK('Your User Details'!$E62),\"\",\"P@ssw0rd\")","v":""},{"$f":"IF(ISBLANK('Your User Details'!$E62),\"\",'Your User Details'!$E62)","v":""},{"$f":"IF(ISBLANK('Your User Details'!$C62),\"\",'Your User Details'!$C62)","v":""},{"$f":"IF(ISBLANK('Your User Details'!$D62),\"\",'Your User Details'!$D62)","v":""},null,null,null,null,null,null,null,{"$f":"IF(ISBLANK('Your User Details'!$E62),\"\",\"Y\")","v":""},{"$f":"IF(ISBLANK('Your User Details'!$E62),\"\",\"Broker\")","v":""},{"$f":"IF(ISBLANK('Your User Details'!$E62),\"\",'Your Company Details'!$D$8)","v":""},{"$f":"IF(ISBLANK('Your User Details'!$E62),\"\",\"N/A\")","v":""}]
[{"$f":"IF(ISBLANK('Your User Details'!$E63),\"\",'Your User Details'!$E63)","v":""},{"$f":"IF(ISBLANK('Your User Details'!$E63),\"\",\"P@ssw0rd\")","v":""},{"$f":"IF(ISBLANK('Your User Details'!$E63),\"\",'Your User Details'!$E63)","v":""},{"$f":"IF(ISBLANK('Your User Details'!$C63),\"\",'Your User Details'!$C63)","v":""},{"$f":"IF(ISBLANK('Your User Details'!$D63),\"\",'Your User Details'!$D63)","v":""},null,null,null,null,null,null,null,{"$f":"IF(ISBLANK('Your User Details'!$E63),\"\",\"Y\")","v":""},{"$f":"IF(ISBLANK('Your User Details'!$E63),\"\",\"Broker\")","v":""},{"$f":"IF(ISBLANK('Your User Details'!$E63),\"\",'Your Company Details'!$D$8)","v":""},{"$f":"IF(ISBLANK('Your User Details'!$E63),\"\",\"N/A\")","v":""}]
[{"$f":"IF(ISBLANK('Your User Details'!$E64),\"\",'Your User Details'!$E64)","v":""},{"$f":"IF(ISBLANK('Your User Details'!$E64),\"\",\"P@ssw0rd\")","v":""},{"$f":"IF(ISBLANK('Your User Details'!$E64),\"\",'Your User Details'!$E64)","v":""},{"$f":"IF(ISBLANK('Your User Details'!$C64),\"\",'Your User Details'!$C64)","v":""},{"$f":"IF(ISBLANK('Your User Details'!$D64),\"\",'Your User Details'!$D64)","v":""},null,null,null,null,null,null,null,{"$f":"IF(ISBLANK('Your User Details'!$E64),\"\",\"Y\")","v":""},{"$f":"IF(ISBLANK('Your User Details'!$E64),\"\",\"Broker\")","v":""},{"$f":"IF(ISBLANK('Your User Details'!$E64),\"\",'Your Company Details'!$D$8)","v":""},{"$f":"IF(ISBLANK('Your User Details'!$E64),\"\",\"N/A\")","v":""}]
[{"$f":"IF(ISBLANK('Your User Details'!$E65),\"\",'Your User Details'!$E65)","v":""},{"$f":"IF(ISBLANK('Your User Details'!$E65),\"\",\"P@ssw0rd\")","v":""},{"$f":"IF(ISBLANK('Your User Details'!$E65),\"\",'Your User Details'!$E65)","v":""},{"$f":"IF(ISBLANK('Your User Details'!$C65),\"\",'Your User Details'!$C65)","v":""},{"$f":"IF(ISBLANK('Your User Details'!$D65),\"\",'Your User Details'!$D65)","v":""},null,null,null,null,null,null,null,{"$f":"IF(ISBLANK('Your User Details'!$E65),\"\",\"Y\")","v":""},{"$f":"IF(ISBLANK('Your User Details'!$E65),\"\",\"Broker\")","v":""},{"$f":"IF(ISBLANK('Your User Details'!$E65),\"\",'Your Company Details'!$D$8)","v":""},{"$f":"IF(ISBLANK('Your User Details'!$E65),\"\",\"N/A\")","v":""}]
[{"$f":"IF(ISBLANK('Your User Details'!$E66),\"\",'Your User Details'!$E66)","v":""},{"$f":"IF(ISBLANK('Your User Details'!$E66),\"\",\"P@ssw0rd\")","v":""},{"$f":"IF(ISBLANK('Your User Details'!$E66),\"\",'Your User Details'!$E66)","v":""},{"$f":"IF(ISBLANK('Your User Details'!$C66),\"\",'Your User Details'!$C66)","v":""},{"$f":"IF(ISBLANK('Your User Details'!$D66),\"\",'Your User Details'!$D66)","v":""},null,null,null,null,null,null,null,{"$f":"IF(ISBLANK('Your User Details'!$E66),\"\",\"Y\")","v":""},{"$f":"IF(ISBLANK('Your User Details'!$E66),\"\",\"Broker\")","v":""},{"$f":"IF(ISBLANK('Your User Details'!$E66),\"\",'Your Company Details'!$D$8)","v":""},{"$f":"IF(ISBLANK('Your User Details'!$E66),\"\",\"N/A\")","v":""}]
[{"$f":"IF(ISBLANK('Your User Details'!$E67),\"\",'Your User Details'!$E67)","v":""},{"$f":"IF(ISBLANK('Your User Details'!$E67),\"\",\"P@ssw0rd\")","v":""},{"$f":"IF(ISBLANK('Your User Details'!$E67),\"\",'Your User Details'!$E67)","v":""},{"$f":"IF(ISBLANK('Your User Details'!$C67),\"\",'Your User Details'!$C67)","v":""},{"$f":"IF(ISBLANK('Your User Details'!$D67),\"\",'Your User Details'!$D67)","v":""},null,null,null,null,null,null,null,{"$f":"IF(ISBLANK('Your User Details'!$E67),\"\",\"Y\")","v":""},{"$f":"IF(ISBLANK('Your User Details'!$E67),\"\",\"Broker\")","v":""},{"$f":"IF(ISBLANK('Your User Details'!$E67),\"\",'Your Company Details'!$D$8)","v":""},{"$f":"IF(ISBLANK('Your User Details'!$E67),\"\",\"N/A\")","v":""}]
[{"$f":"IF(ISBLANK('Your User Details'!$E68),\"\",'Your User Details'!$E68)","v":""},{"$f":"IF(ISBLANK('Your User Details'!$E68),\"\",\"P@ssw0rd\")","v":""},{"$f":"IF(ISBLANK('Your User Details'!$E68),\"\",'Your User Details'!$E68)","v":""},{"$f":"IF(ISBLANK('Your User Details'!$C68),\"\",'Your User Details'!$C68)","v":""},{"$f":"IF(ISBLANK('Your User Details'!$D68),\"\",'Your User Details'!$D68)","v":""},null,null,null,null,null,null,null,{"$f":"IF(ISBLANK('Your User Details'!$E68),\"\",\"Y\")","v":""},{"$f":"IF(ISBLANK('Your User Details'!$E68),\"\",\"Broker\")","v":""},{"$f":"IF(ISBLANK('Your User Details'!$E68),\"\",'Your Company Details'!$D$8)","v":""},{"$f":"IF(ISBLANK('Your User Details'!$E68),\"\",\"N/A\")","v":""}]
[{"$f":"IF(ISBLANK('Your User Details'!$E69),\"\",'Your User Details'!$E69)","v":""},{"$f":"IF(ISBLANK('Your User Details'!$E69),\"\",\"P@ssw0rd\")","v":""},{"$f":"IF(ISBLANK('Your User Details'!$E69),\"\",'Your User Details'!$E69)","v":""},{"$f":"IF(ISBLANK('Your User Details'!$C69),\"\",'Your User Details'!$C69)","v":""},{"$f":"IF(ISBLANK('Your User Details'!$D69),\"\",'Your User Details'!$D69)","v":""},null,null,null,null,null,null,null,{"$f":"IF(ISBLANK('Your User Details'!$E69),\"\",\"Y\")","v":""},{"$f":"IF(ISBLANK('Your User Details'!$E69),\"\",\"Broker\")","v":""},{"$f":"IF(ISBLANK('Your User Details'!$E69),\"\",'Your Company Details'!$D$8)","v":""},{"$f":"IF(ISBLANK('Your User Details'!$E69),\"\",\"N/A\")","v":""}]
[{"$f":"IF(ISBLANK('Your User Details'!$E70),\"\",'Your User Details'!$E70)","v":""},{"$f":"IF(ISBLANK('Your User Details'!$E70),\"\",\"P@ssw0rd\")","v":""},{"$f":"IF(ISBLANK('Your User Details'!$E70),\"\",'Your User Details'!$E70)","v":""},{"$f":"IF(ISBLANK('Your User Details'!$C70),\"\",'Your User Details'!$C70)","v":""},{"$f":"IF(ISBLANK('Your User Details'!$D70),\"\",'Your User Details'!$D70)","v":""},null,null,null,null,null,null,null,{"$f":"IF(ISBLANK('Your User Details'!$E70),\"\",\"Y\")","v":""},{"$f":"IF(ISBLANK('Your User Details'!$E70),\"\",\"Broker\")","v":""},{"$f":"IF(ISBLANK('Your User Details'!$E70),\"\",'Your Company Details'!$D$8)","v":""},{"$f":"IF(ISBLANK('Your User Details'!$E70),\"\",\"N/A\")","v":""}]
[{"$f":"IF(ISBLANK('Your User Details'!$E71),\"\",'Your User Details'!$E71)","v":""},{"$f":"IF(ISBLANK('Your User Details'!$E71),\"\",\"P@ssw0rd\")","v":""},{"$f":"IF(ISBLANK('Your User Details'!$E71),\"\",'Your User Details'!$E71)","v":""},{"$f":"IF(ISBLANK('Your User Details'!$C71),\"\",'Your User Details'!$C71)","v":""},{"$f":"IF(ISBLANK('Your User Details'!$D71),\"\",'Your User Details'!$D71)","v":""},null,null,null,null,null,null,null,{"$f":"IF(ISBLANK('Your User Details'!$E71),\"\",\"Y\")","v":""},{"$f":"IF(ISBLANK('Your User Details'!$E71),\"\",\"Broker\")","v":""},{"$f":"IF(ISBLANK('Your User Details'!$E71),\"\",'Your Company Details'!$D$8)","v":""},{"$f":"IF(ISBLANK('Your User Details'!$E71),\"\",\"N/A\")","v":""}]
[{"$f":"IF(ISBLANK('Your User Details'!$E72),\"\",'Your User Details'!$E72)","v":""},{"$f":"IF(ISBLANK('Your User Details'!$E72),\"\",\"P@ssw0rd\")","v":""},{"$f":"IF(ISBLANK('Your User Details'!$E72),\"\",'Your User Details'!$E72)","v":""},{"$f":"IF(ISBLANK('Your User Details'!$C72),\"\",'Your User Details'!$C72)","v":""},{"$f":"IF(ISBLANK('Your User Details'!$D72),\"\",'Your User Details'!$D72)","v":""},null,null,null,null,null,null,null,{"$f":"IF(ISBLANK('Your User Details'!$E72),\"\",\"Y\")","v":""},{"$f":"IF(ISBLANK('Your User Details'!$E72),\"\",\"Broker\")","v":""},{"$f":"IF(ISBLANK('Your User Details'!$E72),\"\",'Your Company Details'!$D$8)","v":""},{"$f":"IF(ISBLANK('Your User Details'!$E72),\"\",\"N/A\")","v":""}]
[{"$f":"IF(ISBLANK('Your User Details'!$E73),\"\",'Your User Details'!$E73)","v":""},{"$f":"IF(ISBLANK('Your User Details'!$E73),\"\",\"P@ssw0rd\")","v":""},{"$f":"IF(ISBLANK('Your User Details'!$E73),\"\",'Your User Details'!$E73)","v":""},{"$f":"IF(ISBLANK('Your User Details'!$C73),\"\",'Your User Details'!$C73)","v":""},{"$f":"IF(ISBLANK('Your User Details'!$D73),\"\",'Your User Details'!$D73)","v":""},null,null,null,null,null,null,null,{"$f":"IF(ISBLANK('Your User Details'!$E73),\"\",\"Y\")","v":""},{"$f":"IF(ISBLANK('Your User Details'!$E73),\"\",\"Broker\")","v":""},{"$f":"IF(ISBLANK('Your User Details'!$E73),\"\",'Your Company Details'!$D$8)","v":""},{"$f":"IF(ISBLANK('Your User Details'!$E73),\"\",\"N/A\")","v":""}]
[{"$f":"IF(ISBLANK('Your User Details'!$E74),\"\",'Your User Details'!$E74)","v":""},{"$f":"IF(ISBLANK('Your User Details'!$E74),\"\",\"P@ssw0rd\")","v":""},{"$f":"IF(ISBLANK('Your User Details'!$E74),\"\",'Your User Details'!$E74)","v":""},{"$f":"IF(ISBLANK('Your User Details'!$C74),\"\",'Your User Details'!$C74)","v":""},{"$f":"IF(ISBLANK('Your User Details'!$D74),\"\",'Your User Details'!$D74)","v":""},null,null,null,null,null,null,null,{"$f":"IF(ISBLANK('Your User Details'!$E74),\"\",\"Y\")","v":""},{"$f":"IF(ISBLANK('Your User Details'!$E74),\"\",\"Broker\")","v":""},{"$f":"IF(ISBLANK('Your User Details'!$E74),\"\",'Your Company Details'!$D$8)","v":""},{"$f":"IF(ISBLANK('Your User Details'!$E74),\"\",\"N/A\")","v":""}]
[{"$f":"IF(ISBLANK('Your User Details'!$E75),\"\",'Your User Details'!$E75)","v":""},{"$f":"IF(ISBLANK('Your User Details'!$E75),\"\",\"P@ssw0rd\")","v":""},{"$f":"IF(ISBLANK('Your User Details'!$E75),\"\",'Your User Details'!$E75)","v":""},{"$f":"IF(ISBLANK('Your User Details'!$C75),\"\",'Your User Details'!$C75)","v":""},{"$f":"IF(ISBLANK('Your User Details'!$D75),\"\",'Your User Details'!$D75)","v":""},null,null,null,null,null,null,null,{"$f":"IF(ISBLANK('Your User Details'!$E75),\"\",\"Y\")","v":""},{"$f":"IF(ISBLANK('Your User Details'!$E75),\"\",\"Broker\")","v":""},{"$f":"IF(ISBLANK('Your User Details'!$E75),\"\",'Your Company Details'!$D$8)","v":""},{"$f":"IF(ISBLANK('Your User Details'!$E75),\"\",\"N/A\")","v":""}]
[{"$f":"IF(ISBLANK('Your User Details'!$E76),\"\",'Your User Details'!$E76)","v":""},{"$f":"IF(ISBLANK('Your User Details'!$E76),\"\",\"P@ssw0rd\")","v":""},{"$f":"IF(ISBLANK('Your User Details'!$E76),\"\",'Your User Details'!$E76)","v":""},{"$f":"IF(ISBLANK('Your User Details'!$C76),\"\",'Your User Details'!$C76)","v":""},{"$f":"IF(ISBLANK('Your User Details'!$D76),\"\",'Your User Details'!$D76)","v":""},null,null,null,null,null,null,null,{"$f":"IF(ISBLANK('Your User Details'!$E76),\"\",\"Y\")","v":""},{"$f":"IF(ISBLANK('Your User Details'!$E76),\"\",\"Broker\")","v":""},{"$f":"IF(ISBLANK('Your User Details'!$E76),\"\",'Your Company Details'!$D$8)","v":""},{"$f":"IF(ISBLANK('Your User Details'!$E76),\"\",\"N/A\")","v":""}]
[{"$f":"IF(ISBLANK('Your User Details'!$E77),\"\",'Your User Details'!$E77)","v":""},{"$f":"IF(ISBLANK('Your User Details'!$E77),\"\",\"P@ssw0rd\")","v":""},{"$f":"IF(ISBLANK('Your User Details'!$E77),\"\",'Your User Details'!$E77)","v":""},{"$f":"IF(ISBLANK('Your User Details'!$C77),\"\",'Your User Details'!$C77)","v":""},{"$f":"IF(ISBLANK('Your User Details'!$D77),\"\",'Your User Details'!$D77)","v":""},null,null,null,null,null,null,null,{"$f":"IF(ISBLANK('Your User Details'!$E77),\"\",\"Y\")","v":""},{"$f":"IF(ISBLANK('Your User Details'!$E77),\"\",\"Broker\")","v":""},{"$f":"IF(ISBLANK('Your User Details'!$E77),\"\",'Your Company Details'!$D$8)","v":""},{"$f":"IF(ISBLANK('Your User Details'!$E77),\"\",\"N/A\")","v":""}]
[{"$f":"IF(ISBLANK('Your User Details'!$E78),\"\",'Your User Details'!$E78)","v":""},{"$f":"IF(ISBLANK('Your User Details'!$E78),\"\",\"P@ssw0rd\")","v":""},{"$f":"IF(ISBLANK('Your User Details'!$E78),\"\",'Your User Details'!$E78)","v":""},{"$f":"IF(ISBLANK('Your User Details'!$C78),\"\",'Your User Details'!$C78)","v":""},{"$f":"IF(ISBLANK('Your User Details'!$D78),\"\",'Your User Details'!$D78)","v":""},null,null,null,null,null,null,null,{"$f":"IF(ISBLANK('Your User Details'!$E78),\"\",\"Y\")","v":""},{"$f":"IF(ISBLANK('Your User Details'!$E78),\"\",\"Broker\")","v":""},{"$f":"IF(ISBLANK('Your User Details'!$E78),\"\",'Your Company Details'!$D$8)","v":""},{"$f":"IF(ISBLANK('Your User Details'!$E78),\"\",\"N/A\")","v":""}]
[{"$f":"IF(ISBLANK('Your User Details'!$E79),\"\",'Your User Details'!$E79)","v":""},{"$f":"IF(ISBLANK('Your User Details'!$E79),\"\",\"P@ssw0rd\")","v":""},{"$f":"IF(ISBLANK('Your User Details'!$E79),\"\",'Your User Details'!$E79)","v":""},{"$f":"IF(ISBLANK('Your User Details'!$C79),\"\",'Your User Details'!$C79)","v":""},{"$f":"IF(ISBLANK('Your User Details'!$D79),\"\",'Your User Details'!$D79)","v":""},null,null,null,null,null,null,null,{"$f":"IF(ISBLANK('Your User Details'!$E79),\"\",\"Y\")","v":""},{"$f":"IF(ISBLANK('Your User Details'!$E79),\"\",\"Broker\")","v":""},{"$f":"IF(ISBLANK('Your User Details'!$E79),\"\",'Your Company Details'!$D$8)","v":""},{"$f":"IF(ISBLANK('Your User Details'!$E79),\"\",\"N/A\")","v":""}]
[{"$f":"IF(ISBLANK('Your User Details'!$E80),\"\",'Your User Details'!$E80)","v":""},{"$f":"IF(ISBLANK('Your User Details'!$E80),\"\",\"P@ssw0rd\")","v":""},{"$f":"IF(ISBLANK('Your User Details'!$E80),\"\",'Your User Details'!$E80)","v":""},{"$f":"IF(ISBLANK('Your User Details'!$C80),\"\",'Your User Details'!$C80)","v":""},{"$f":"IF(ISBLANK('Your User Details'!$D80),\"\",'Your User Details'!$D80)","v":""},null,null,null,null,null,null,null,{"$f":"IF(ISBLANK('Your User Details'!$E80),\"\",\"Y\")","v":""},{"$f":"IF(ISBLANK('Your User Details'!$E80),\"\",\"Broker\")","v":""},{"$f":"IF(ISBLANK('Your User Details'!$E80),\"\",'Your Company Details'!$D$8)","v":""},{"$f":"IF(ISBLANK('Your User Details'!$E80),\"\",\"N/A\")","v":""}]
[{"$f":"IF(ISBLANK('Your User Details'!$E81),\"\",'Your User Details'!$E81)","v":""},{"$f":"IF(ISBLANK('Your User Details'!$E81),\"\",\"P@ssw0rd\")","v":""},{"$f":"IF(ISBLANK('Your User Details'!$E81),\"\",'Your User Details'!$E81)","v":""},{"$f":"IF(ISBLANK('Your User Details'!$C81),\"\",'Your User Details'!$C81)","v":""},{"$f":"IF(ISBLANK('Your User Details'!$D81),\"\",'Your User Details'!$D81)","v":""},null,null,null,null,null,null,null,{"$f":"IF(ISBLANK('Your User Details'!$E81),\"\",\"Y\")","v":""},{"$f":"IF(ISBLANK('Your User Details'!$E81),\"\",\"Broker\")","v":""},{"$f":"IF(ISBLANK('Your User Details'!$E81),\"\",'Your Company Details'!$D$8)","v":""},{"$f":"IF(ISBLANK('Your User Details'!$E81),\"\",\"N/A\")","v":""}]
[{"$f":"IF(ISBLANK('Your User Details'!$E82),\"\",'Your User Details'!$E82)","v":""},{"$f":"IF(ISBLANK('Your User Details'!$E82),\"\",\"P@ssw0rd\")","v":""},{"$f":"IF(ISBLANK('Your User Details'!$E82),\"\",'Your User Details'!$E82)","v":""},{"$f":"IF(ISBLANK('Your User Details'!$C82),\"\",'Your User Details'!$C82)","v":""},{"$f":"IF(ISBLANK('Your User Details'!$D82),\"\",'Your User Details'!$D82)","v":""},null,null,null,null,null,null,null,{"$f":"IF(ISBLANK('Your User Details'!$E82),\"\",\"Y\")","v":""},{"$f":"IF(ISBLANK('Your User Details'!$E82),\"\",\"Broker\")","v":""},{"$f":"IF(ISBLANK('Your User Details'!$E82),\"\",'Your Company Details'!$D$8)","v":""},{"$f":"IF(ISBLANK('Your User Details'!$E82),\"\",\"N/A\")","v":""}]
[{"$f":"IF(ISBLANK('Your User Details'!$E83),\"\",'Your User Details'!$E83)","v":""},{"$f":"IF(ISBLANK('Your User Details'!$E83),\"\",\"P@ssw0rd\")","v":""},{"$f":"IF(ISBLANK('Your User Details'!$E83),\"\",'Your User Details'!$E83)","v":""},{"$f":"IF(ISBLANK('Your User Details'!$C83),\"\",'Your User Details'!$C83)","v":""},{"$f":"IF(ISBLANK('Your User Details'!$D83),\"\",'Your User Details'!$D83)","v":""},null,null,null,null,null,null,null,{"$f":"IF(ISBLANK('Your User Details'!$E83),\"\",\"Y\")","v":""},{"$f":"IF(ISBLANK('Your User Details'!$E83),\"\",\"Broker\")","v":""},{"$f":"IF(ISBLANK('Your User Details'!$E83),\"\",'Your Company Details'!$D$8)","v":""},{"$f":"IF(ISBLANK('Your User Details'!$E83),\"\",\"N/A\")","v":""}]
[{"$f":"IF(ISBLANK('Your User Details'!$E84),\"\",'Your User Details'!$E84)","v":""},{"$f":"IF(ISBLANK('Your User Details'!$E84),\"\",\"P@ssw0rd\")","v":""},{"$f":"IF(ISBLANK('Your User Details'!$E84),\"\",'Your User Details'!$E84)","v":""},{"$f":"IF(ISBLANK('Your User Details'!$C84),\"\",'Your User Details'!$C84)","v":""},{"$f":"IF(ISBLANK('Your User Details'!$D84),\"\",'Your User Details'!$D84)","v":""},null,null,null,null,null,null,null,{"$f":"IF(ISBLANK('Your User Details'!$E84),\"\",\"Y\")","v":""},{"$f":"IF(ISBLANK('Your User Details'!$E84),\"\",\"Broker\")","v":""},{"$f":"IF(ISBLANK('Your User Details'!$E84),\"\",'Your Company Details'!$D$8)","v":""},{"$f":"IF(ISBLANK('Your User Details'!$E84),\"\",\"N/A\")","v":""}]
[{"$f":"IF(ISBLANK('Your User Details'!$E85),\"\",'Your User Details'!$E85)","v":""},{"$f":"IF(ISBLANK('Your User Details'!$E85),\"\",\"P@ssw0rd\")","v":""},{"$f":"IF(ISBLANK('Your User Details'!$E85),\"\",'Your User Details'!$E85)","v":""},{"$f":"IF(ISBLANK('Your User Details'!$C85),\"\",'Your User Details'!$C85)","v":""},{"$f":"IF(ISBLANK('Your User Details'!$D85),\"\",'Your User Details'!$D85)","v":""},null,null,null,null,null,null,null,{"$f":"IF(ISBLANK('Your User Details'!$E85),\"\",\"Y\")","v":""},{"$f":"IF(ISBLANK('Your User Details'!$E85),\"\",\"Broker\")","v":""},{"$f":"IF(ISBLANK('Your User Details'!$E85),\"\",'Your Company Details'!$D$8)","v":""},{"$f":"IF(ISBLANK('Your User Details'!$E85),\"\",\"N/A\")","v":""}]
[{"$f":"IF(ISBLANK('Your User Details'!$E86),\"\",'Your User Details'!$E86)","v":""},{"$f":"IF(ISBLANK('Your User Details'!$E86),\"\",\"P@ssw0rd\")","v":""},{"$f":"IF(ISBLANK('Your User Details'!$E86),\"\",'Your User Details'!$E86)","v":""},{"$f":"IF(ISBLANK('Your User Details'!$C86),\"\",'Your User Details'!$C86)","v":""},{"$f":"IF(ISBLANK('Your User Details'!$D86),\"\",'Your User Details'!$D86)","v":""},null,null,null,null,null,null,null,{"$f":"IF(ISBLANK('Your User Details'!$E86),\"\",\"Y\")","v":""},{"$f":"IF(ISBLANK('Your User Details'!$E86),\"\",\"Broker\")","v":""},{"$f":"IF(ISBLANK('Your User Details'!$E86),\"\",'Your Company Details'!$D$8)","v":""},{"$f":"IF(ISBLANK('Your User Details'!$E86),\"\",\"N/A\")","v":""}]
[{"$f":"IF(ISBLANK('Your User Details'!$E87),\"\",'Your User Details'!$E87)","v":""},{"$f":"IF(ISBLANK('Your User Details'!$E87),\"\",\"P@ssw0rd\")","v":""},{"$f":"IF(ISBLANK('Your User Details'!$E87),\"\",'Your User Details'!$E87)","v":""},{"$f":"IF(ISBLANK('Your User Details'!$C87),\"\",'Your User Details'!$C87)","v":""},{"$f":"IF(ISBLANK('Your User Details'!$D87),\"\",'Your User Details'!$D87)","v":""},null,null,null,null,null,null,null,{"$f":"IF(ISBLANK('Your User Details'!$E87),\"\",\"Y\")","v":""},{"$f":"IF(ISBLANK('Your User Details'!$E87),\"\",\"Broker\")","v":""},{"$f":"IF(ISBLANK('Your User Details'!$E87),\"\",'Your Company Details'!$D$8)","v":""},{"$f":"IF(ISBLANK('Your User Details'!$E87),\"\",\"N/A\")","v":""}]
[{"$f":"IF(ISBLANK('Your User Details'!$E88),\"\",'Your User Details'!$E88)","v":""},{"$f":"IF(ISBLANK('Your User Details'!$E88),\"\",\"P@ssw0rd\")","v":""},{"$f":"IF(ISBLANK('Your User Details'!$E88),\"\",'Your User Details'!$E88)","v":""},{"$f":"IF(ISBLANK('Your User Details'!$C88),\"\",'Your User Details'!$C88)","v":""},{"$f":"IF(ISBLANK('Your User Details'!$D88),\"\",'Your User Details'!$D88)","v":""},null,null,null,null,null,null,null,{"$f":"IF(ISBLANK('Your User Details'!$E88),\"\",\"Y\")","v":""},{"$f":"IF(ISBLANK('Your User Details'!$E88),\"\",\"Broker\")","v":""},{"$f":"IF(ISBLANK('Your User Details'!$E88),\"\",'Your Company Details'!$D$8)","v":""},{"$f":"IF(ISBLANK('Your User Details'!$E88),\"\",\"N/A\")","v":""}]
[{"$f":"IF(ISBLANK('Your User Details'!$E89),\"\",'Your User Details'!$E89)","v":""},{"$f":"IF(ISBLANK('Your User Details'!$E89),\"\",\"P@ssw0rd\")","v":""},{"$f":"IF(ISBLANK('Your User Details'!$E89),\"\",'Your User Details'!$E89)","v":""},{"$f":"IF(ISBLANK('Your User Details'!$C89),\"\",'Your User Details'!$C89)","v":""},{"$f":"IF(ISBLANK('Your User Details'!$D89),\"\",'Your User Details'!$D89)","v":""},null,null,null,null,null,null,null,{"$f":"IF(ISBLANK('Your User Details'!$E89),\"\",\"Y\")","v":""},{"$f":"IF(ISBLANK('Your User Details'!$E89),\"\",\"Broker\")","v":""},{"$f":"IF(ISBLANK('Your User Details'!$E89),\"\",'Your Company Details'!$D$8)","v":""},{"$f":"IF(ISBLANK('Your User Details'!$E89),\"\",\"N/A\")","v":""}]
[{"$f":"IF(ISBLANK('Your User Details'!$E90),\"\",'Your User Details'!$E90)","v":""},{"$f":"IF(ISBLANK('Your User Details'!$E90),\"\",\"P@ssw0rd\")","v":""},{"$f":"IF(ISBLANK('Your User Details'!$E90),\"\",'Your User Details'!$E90)","v":""},{"$f":"IF(ISBLANK('Your User Details'!$C90),\"\",'Your User Details'!$C90)","v":""},{"$f":"IF(ISBLANK('Your User Details'!$D90),\"\",'Your User Details'!$D90)","v":""},null,null,null,null,null,null,null,{"$f":"IF(ISBLANK('Your User Details'!$E90),\"\",\"Y\")","v":""},{"$f":"IF(ISBLANK('Your User Details'!$E90),\"\",\"Broker\")","v":""},{"$f":"IF(ISBLANK('Your User Details'!$E90),\"\",'Your Company Details'!$D$8)","v":""},{"$f":"IF(ISBLANK('Your User Details'!$E90),\"\",\"N/A\")","v":""}]
[{"$f":"IF(ISBLANK('Your User Details'!$E91),\"\",'Your User Details'!$E91)","v":""},{"$f":"IF(ISBLANK('Your User Details'!$E91),\"\",\"P@ssw0rd\")","v":""},{"$f":"IF(ISBLANK('Your User Details'!$E91),\"\",'Your User Details'!$E91)","v":""},{"$f":"IF(ISBLANK('Your User Details'!$C91),\"\",'Your User Details'!$C91)","v":""},{"$f":"IF(ISBLANK('Your User Details'!$D91),\"\",'Your User Details'!$D91)","v":""},null,null,null,null,null,null,null,{"$f":"IF(ISBLANK('Your User Details'!$E91),\"\",\"Y\")","v":""},{"$f":"IF(ISBLANK('Your User Details'!$E91),\"\",\"Broker\")","v":""},{"$f":"IF(ISBLANK('Your User Details'!$E91),\"\",'Your Company Details'!$D$8)","v":""},{"$f":"IF(ISBLANK('Your User Details'!$E91),\"\",\"N/A\")","v":""}]
[{"$f":"IF(ISBLANK('Your User Details'!$E92),\"\",'Your User Details'!$E92)","v":""},{"$f":"IF(ISBLANK('Your User Details'!$E92),\"\",\"P@ssw0rd\")","v":""},{"$f":"IF(ISBLANK('Your User Details'!$E92),\"\",'Your User Details'!$E92)","v":""},{"$f":"IF(ISBLANK('Your User Details'!$C92),\"\",'Your User Details'!$C92)","v":""},{"$f":"IF(ISBLANK('Your User Details'!$D92),\"\",'Your User Details'!$D92)","v":""},null,null,null,null,null,null,null,{"$f":"IF(ISBLANK('Your User Details'!$E92),\"\",\"Y\")","v":""},{"$f":"IF(ISBLANK('Your User Details'!$E92),\"\",\"Broker\")","v":""},{"$f":"IF(ISBLANK('Your User Details'!$E92),\"\",'Your Company Details'!$D$8)","v":""},{"$f":"IF(ISBLANK('Your User Details'!$E92),\"\",\"N/A\")","v":""}]
[{"$f":"IF(ISBLANK('Your User Details'!$E93),\"\",'Your User Details'!$E93)","v":""},{"$f":"IF(ISBLANK('Your User Details'!$E93),\"\",\"P@ssw0rd\")","v":""},{"$f":"IF(ISBLANK('Your User Details'!$E93),\"\",'Your User Details'!$E93)","v":""},{"$f":"IF(ISBLANK('Your User Details'!$C93),\"\",'Your User Details'!$C93)","v":""},{"$f":"IF(ISBLANK('Your User Details'!$D93),\"\",'Your User Details'!$D93)","v":""},null,null,null,null,null,null,null,{"$f":"IF(ISBLANK('Your User Details'!$E93),\"\",\"Y\")","v":""},{"$f":"IF(ISBLANK('Your User Details'!$E93),\"\",\"Broker\")","v":""},{"$f":"IF(ISBLANK('Your User Details'!$E93),\"\",'Your Company Details'!$D$8)","v":""},{"$f":"IF(ISBLANK('Your User Details'!$E93),\"\",\"N/A\")","v":""}]
[{"$f":"IF(ISBLANK('Your User Details'!$E94),\"\",'Your User Details'!$E94)","v":""},{"$f":"IF(ISBLANK('Your User Details'!$E94),\"\",\"P@ssw0rd\")","v":""},{"$f":"IF(ISBLANK('Your User Details'!$E94),\"\",'Your User Details'!$E94)","v":""},{"$f":"IF(ISBLANK('Your User Details'!$C94),\"\",'Your User Details'!$C94)","v":""},{"$f":"IF(ISBLANK('Your User Details'!$D94),\"\",'Your User Details'!$D94)","v":""},null,null,null,null,null,null,null,{"$f":"IF(ISBLANK('Your User Details'!$E94),\"\",\"Y\")","v":""},{"$f":"IF(ISBLANK('Your User Details'!$E94),\"\",\"Broker\")","v":""},{"$f":"IF(ISBLANK('Your User Details'!$E94),\"\",'Your Company Details'!$D$8)","v":""},{"$f":"IF(ISBLANK('Your User Details'!$E94),\"\",\"N/A\")","v":""}]
[{"$f":"IF(ISBLANK('Your User Details'!$E95),\"\",'Your User Details'!$E95)","v":""},{"$f":"IF(ISBLANK('Your User Details'!$E95),\"\",\"P@ssw0rd\")","v":""},{"$f":"IF(ISBLANK('Your User Details'!$E95),\"\",'Your User Details'!$E95)","v":""},{"$f":"IF(ISBLANK('Your User Details'!$C95),\"\",'Your User Details'!$C95)","v":""},{"$f":"IF(ISBLANK('Your User Details'!$D95),\"\",'Your User Details'!$D95)","v":""},null,null,null,null,null,null,null,{"$f":"IF(ISBLANK('Your User Details'!$E95),\"\",\"Y\")","v":""},{"$f":"IF(ISBLANK('Your User Details'!$E95),\"\",\"Broker\")","v":""},{"$f":"IF(ISBLANK('Your User Details'!$E95),\"\",'Your Company Details'!$D$8)","v":""},{"$f":"IF(ISBLANK('Your User Details'!$E95),\"\",\"N/A\")","v":""}]
[{"$f":"IF(ISBLANK('Your User Details'!$E96),\"\",'Your User Details'!$E96)","v":""},{"$f":"IF(ISBLANK('Your User Details'!$E96),\"\",\"P@ssw0rd\")","v":""},{"$f":"IF(ISBLANK('Your User Details'!$E96),\"\",'Your User Details'!$E96)","v":""},{"$f":"IF(ISBLANK('Your User Details'!$C96),\"\",'Your User Details'!$C96)","v":""},{"$f":"IF(ISBLANK('Your User Details'!$D96),\"\",'Your User Details'!$D96)","v":""},null,null,null,null,null,null,null,{"$f":"IF(ISBLANK('Your User Details'!$E96),\"\",\"Y\")","v":""},{"$f":"IF(ISBLANK('Your User Details'!$E96),\"\",\"Broker\")","v":""},{"$f":"IF(ISBLANK('Your User Details'!$E96),\"\",'Your Company Details'!$D$8)","v":""},{"$f":"IF(ISBLANK('Your User Details'!$E96),\"\",\"N/A\")","v":""}]
[{"$f":"IF(ISBLANK('Your User Details'!$E97),\"\",'Your User Details'!$E97)","v":""},{"$f":"IF(ISBLANK('Your User Details'!$E97),\"\",\"P@ssw0rd\")","v":""},{"$f":"IF(ISBLANK('Your User Details'!$E97),\"\",'Your User Details'!$E97)","v":""},{"$f":"IF(ISBLANK('Your User Details'!$C97),\"\",'Your User Details'!$C97)","v":""},{"$f":"IF(ISBLANK('Your User Details'!$D97),\"\",'Your User Details'!$D97)","v":""},null,null,null,null,null,null,null,{"$f":"IF(ISBLANK('Your User Details'!$E97),\"\",\"Y\")","v":""},{"$f":"IF(ISBLANK('Your User Details'!$E97),\"\",\"Broker\")","v":""},{"$f":"IF(ISBLANK('Your User Details'!$E97),\"\",'Your Company Details'!$D$8)","v":""},{"$f":"IF(ISBLANK('Your User Details'!$E97),\"\",\"N/A\")","v":""}]
[{"$f":"IF(ISBLANK('Your User Details'!$E98),\"\",'Your User Details'!$E98)","v":""},{"$f":"IF(ISBLANK('Your User Details'!$E98),\"\",\"P@ssw0rd\")","v":""},{"$f":"IF(ISBLANK('Your User Details'!$E98),\"\",'Your User Details'!$E98)","v":""},{"$f":"IF(ISBLANK('Your User Details'!$C98),\"\",'Your User Details'!$C98)","v":""},{"$f":"IF(ISBLANK('Your User Details'!$D98),\"\",'Your User Details'!$D98)","v":""},null,null,null,null,null,null,null,{"$f":"IF(ISBLANK('Your User Details'!$E98),\"\",\"Y\")","v":""},{"$f":"IF(ISBLANK('Your User Details'!$E98),\"\",\"Broker\")","v":""},{"$f":"IF(ISBLANK('Your User Details'!$E98),\"\",'Your Company Details'!$D$8)","v":""},{"$f":"IF(ISBLANK('Your User Details'!$E98),\"\",\"N/A\")","v":""}]
[{"$f":"IF(ISBLANK('Your User Details'!$E99),\"\",'Your User Details'!$E99)","v":""},{"$f":"IF(ISBLANK('Your User Details'!$E99),\"\",\"P@ssw0rd\")","v":""},{"$f":"IF(ISBLANK('Your User Details'!$E99),\"\",'Your User Details'!$E99)","v":""},{"$f":"IF(ISBLANK('Your User Details'!$C99),\"\",'Your User Details'!$C99)","v":""},{"$f":"IF(ISBLANK('Your User Details'!$D99),\"\",'Your User Details'!$D99)","v":""},null,null,null,null,null,null,null,{"$f":"IF(ISBLANK('Your User Details'!$E99),\"\",\"Y\")","v":""},{"$f":"IF(ISBLANK('Your User Details'!$E99),\"\",\"Broker\")","v":""},{"$f":"IF(ISBLANK('Your User Details'!$E99),\"\",'Your Company Details'!$D$8)","v":""},{"$f":"IF(ISBLANK('Your User Details'!$E99),\"\",\"N/A\")","v":""}]
[{"$f":"IF(ISBLANK('Your User Details'!$E100),\"\",'Your User Details'!$E100)","v":""},{"$f":"IF(ISBLANK('Your User Details'!$E100),\"\",\"P@ssw0rd\")","v":""},{"$f":"IF(ISBLANK('Your User Details'!$E100),\"\",'Your User Details'!$E100)","v":""},{"$f":"IF(ISBLANK('Your User Details'!$C100),\"\",'Your User Details'!$C100)","v":""},{"$f":"IF(ISBLANK('Your User Details'!$D100),\"\",'Your User Details'!$D100)","v":""},null,null,null,null,null,null,null,{"$f":"IF(ISBLANK('Your User Details'!$E100),\"\",\"Y\")","v":""},{"$f":"IF(ISBLANK('Your User Details'!$E100),\"\",\"Broker\")","v":""},{"$f":"IF(ISBLANK('Your User Details'!$E100),\"\",'Your Company Details'!$D$8)","v":""},{"$f":"IF(ISBLANK('Your User Details'!$E100),\"\",\"N/A\")","v":""}]
[{"$f":"IF(ISBLANK('Your User Details'!$E101),\"\",'Your User Details'!$E101)","v":""},{"$f":"IF(ISBLANK('Your User Details'!$E101),\"\",\"P@ssw0rd\")","v":""},{"$f":"IF(ISBLANK('Your User Details'!$E101),\"\",'Your User Details'!$E101)","v":""},{"$f":"IF(ISBLANK('Your User Details'!$C101),\"\",'Your User Details'!$C101)","v":""},{"$f":"IF(ISBLANK('Your User Details'!$D101),\"\",'Your User Details'!$D101)","v":""},null,null,null,null,null,null,null,{"$f":"IF(ISBLANK('Your User Details'!$E101),\"\",\"Y\")","v":""},{"$f":"IF(ISBLANK('Your User Details'!$E101),\"\",\"Broker\")","v":""},{"$f":"IF(ISBLANK('Your User Details'!$E101),\"\",'Your Company Details'!$D$8)","v":""},{"$f":"IF(ISBLANK('Your User Details'!$E101),\"\",\"N/A\")","v":""}]
[{"$f":"IF(ISBLANK('Your User Details'!$E102),\"\",'Your User Details'!$E102)","v":""},{"$f":"IF(ISBLANK('Your User Details'!$E102),\"\",\"P@ssw0rd\")","v":""},{"$f":"IF(ISBLANK('Your User Details'!$E102),\"\",'Your User Details'!$E102)","v":""},{"$f":"IF(ISBLANK('Your User Details'!$C102),\"\",'Your User Details'!$C102)","v":""},{"$f":"IF(ISBLANK('Your User Details'!$D102),\"\",'Your User Details'!$D102)","v":""},null,null,null,null,null,null,null,{"$f":"IF(ISBLANK('Your User Details'!$E102),\"\",\"Y\")","v":""},{"$f":"IF(ISBLANK('Your User Details'!$E102),\"\",\"Broker\")","v":""},{"$f":"IF(ISBLANK('Your User Details'!$E102),\"\",'Your Company Details'!$D$8)","v":""},{"$f":"IF(ISBLANK('Your User Details'!$E102),\"\",\"N/A\")","v":""}]
[{"$f":"IF(ISBLANK('Your User Details'!$E103),\"\",'Your User Details'!$E103)","v":""},{"$f":"IF(ISBLANK('Your User Details'!$E103),\"\",\"P@ssw0rd\")","v":""},{"$f":"IF(ISBLANK('Your User Details'!$E103),\"\",'Your User Details'!$E103)","v":""},{"$f":"IF(ISBLANK('Your User Details'!$C103),\"\",'Your User Details'!$C103)","v":""},{"$f":"IF(ISBLANK('Your User Details'!$D103),\"\",'Your User Details'!$D103)","v":""},null,null,null,null,null,null,null,{"$f":"IF(ISBLANK('Your User Details'!$E103),\"\",\"Y\")","v":""},{"$f":"IF(ISBLANK('Your User Details'!$E103),\"\",\"Broker\")","v":""},{"$f":"IF(ISBLANK('Your User Details'!$E103),\"\",'Your Company Details'!$D$8)","v":""},{"$f":"IF(ISBLANK('Your User Details'!$E103),\"\",\"N/A\")","v":""}]
[{"$f":"IF(ISBLANK('Your User Details'!$E104),\"\",'Your User Details'!$E104)","v":""},{"$f":"IF(ISBLANK('Your User Details'!$E104),\"\",\"P@ssw0rd\")","v":""},{"$f":"IF(ISBLANK('Your User Details'!$E104),\"\",'Your User Details'!$E104)","v":""},{"$f":"IF(ISBLANK('Your User Details'!$C104),\"\",'Your User Details'!$C104)","v":""},{"$f":"IF(ISBLANK('Your User Details'!$D104),\"\",'Your User Details'!$D104)","v":""},null,null,null,null,null,null,null,{"$f":"IF(ISBLANK('Your User Details'!$E104),\"\",\"Y\")","v":""},{"$f":"IF(ISBLANK('Your User Details'!$E104),\"\",\"Broker\")","v":""},{"$f":"IF(ISBLANK('Your User Details'!$E104),\"\",'Your Company Details'!$D$8)","v":""},{"$f":"IF(ISBLANK('Your User Details'!$E104),\"\",\"N/A\")","v":""}]
[{"$f":"IF(ISBLANK('Your User Details'!$E105),\"\",'Your User Details'!$E105)","v":""},{"$f":"IF(ISBLANK('Your User Details'!$E105),\"\",\"P@ssw0rd\")","v":""},{"$f":"IF(ISBLANK('Your User Details'!$E105),\"\",'Your User Details'!$E105)","v":""},{"$f":"IF(ISBLANK('Your User Details'!$C105),\"\",'Your User Details'!$C105)","v":""},{"$f":"IF(ISBLANK('Your User Details'!$D105),\"\",'Your User Details'!$D105)","v":""},null,null,null,null,null,null,null,{"$f":"IF(ISBLANK('Your User Details'!$E105),\"\",\"Y\")","v":""},{"$f":"IF(ISBLANK('Your User Details'!$E105),\"\",\"Broker\")","v":""},{"$f":"IF(ISBLANK('Your User Details'!$E105),\"\",'Your Company Details'!$D$8)","v":""},{"$f":"IF(ISBLANK('Your User Details'!$E105),\"\",\"N/A\")","v":""}]
[null,{"$f":"IF(ISBLANK('Your User Details'!$C106),\"\",\"P@ssw0rd\")","v":""},{"$f":"IF(ISBLANK('Your User Details'!$C106),\"\",'Your User Details'!$C106)","v":""}]
[null,{"$f":"IF(ISBLANK('Your User Details'!$C107),\"\",\"P@ssw0rd\")","v":""},{"$f":"IF(ISBLANK('Your User Details'!$C107),\"\",'Your User Details'!$C107)","v":""}]
[null,{"$f":"IF(ISBLANK('Your User Details'!$C108),\"\",\"P@ssw0rd\")","v":""},{"$f":"IF(ISBLANK('Your User Details'!$C108),\"\",'Your User Details'!$C108)","v":""}]
[null,{"$f":"IF(ISBLANK('Your User Details'!$C109),\"\",\"P@ssw0rd\")","v":""},{"$f":"IF(ISBLANK('Your User Details'!$C109),\"\",'Your User Details'!$C109)","v":""}]
[null,{"$f":"IF(ISBLANK('Your User Details'!$C110),\"\",\"P@ssw0rd\")","v":""},{"$f":"IF(ISBLANK('Your User Details'!$C110),\"\",'Your User Details'!$C110)","v":""}]
[null,{"$f":"IF(ISBLANK('Your User Details'!$C111),\"\",\"P@ssw0rd\")","v":""},{"$f":"IF(ISBLANK('Your User Details'!$C111),\"\",'Your User Details'!$C111)","v":""}]
[null,{"$f":"IF(ISBLANK('Your User Details'!$C112),\"\",\"P@ssw0rd\")","v":""},{"$f":"IF(ISBLANK('Your User Details'!$C112),\"\",'Your User Details'!$C112)","v":""}]
[null,{"$f":"IF(ISBLANK('Your User Details'!$C113),\"\",\"P@ssw0rd\")","v":""},{"$f":"IF(ISBLANK('Your User Details'!$C113),\"\",'Your User Details'!$C113)","v":""}]
[null,{"$f":"IF(ISBLANK('Your User Details'!$C114),\"\",\"P@ssw0rd\")","v":""},{"$f":"IF(ISBLANK('Your User Details'!$C114),\"\",'Your User Details'!$C114)","v":""}]
[null,{"$f":"IF(ISBLANK('Your User Details'!$C115),\"\",\"P@ssw0rd\")","v":""},{"$f":"IF(ISBLANK('Your User Details'!$C115),\"\",'Your User Details'!$C115)","v":""}]
[null,{"$f":"IF(ISBLANK('Your User Details'!$C116),\"\",\"P@ssw0rd\")","v":""},{"$f":"IF(ISBLANK('Your User Details'!$C116),\"\",'Your User Details'!$C116)","v":""}]
[null,{"$f":"IF(ISBLANK('Your User Details'!$C117),\"\",\"P@ssw0rd\")","v":""},{"$f":"IF(ISBLANK('Your User Details'!$C117),\"\",'Your User Details'!$C117)","v":""}]
[null,{"$f":"IF(ISBLANK('Your User Details'!$C118),\"\",\"P@ssw0rd\")","v":""},{"$f":"IF(ISBLANK('Your User Details'!$C118),\"\",'Your User Details'!$C118)","v":""}]
[null,{"$f":"IF(ISBLANK('Your User Details'!$C119),\"\",\"P@ssw0rd\")","v":""},{"$f":"IF(ISBLANK('Your User Details'!$C119),\"\",'Your User Details'!$C119)","v":""}]
[null,{"$f":"IF(ISBLANK('Your User Details'!$C120),\"\",\"P@ssw0rd\")","v":""},{"$f":"IF(ISBLANK('Your User Details'!$C120),\"\",'Your User Details'!$C120)","v":""}]
[null,{"$f":"IF(ISBLANK('Your User Details'!$C121),\"\",\"P@ssw0rd\")","v":""},{"$f":"IF(ISBLANK('Your User Details'!$C121),\"\",'Your User Details'!$C121)","v":""}]
[null,{"$f":"IF(ISBLANK('Your User Details'!$C122),\"\",\"P@ssw0rd\")","v":""},{"$f":"IF(ISBLANK('Your User Details'!$C122),\"\",'Your User Details'!$C122)","v":""}]
[null,{"$f":"IF(ISBLANK('Your User Details'!$C123),\"\",\"P@ssw0rd\")","v":""},{"$f":"IF(ISBLANK('Your User Details'!$C123),\"\",'Your User Details'!$C123)","v":""}]
[null,{"$f":"IF(ISBLANK('Your User Details'!$C124),\"\",\"P@ssw0rd\")","v":""},{"$f":"IF(ISBLANK('Your User Details'!$C124),\"\",'Your User Details'!$C124)","v":""}]
[null,{"$f":"IF(ISBLANK('Your User Details'!$C125),\"\",\"P@ssw0rd\")","v":""},{"$f":"IF(ISBLANK('Your User Details'!$C125),\"\",'Your User Details'!$C125)","v":""}]
[null,{"$f":"IF(ISBLANK('Your User Details'!$C126),\"\",\"P@ssw0rd\")","v":""},{"$f":"IF(ISBLANK('Your User Details'!$C126),\"\",'Your User Details'!$C126)","v":""}]
[null,{"$f":"IF(ISBLANK('Your User Details'!$C127),\"\",\"P@ssw0rd\")","v":""},{"$f":"IF(ISBLANK('Your User Details'!$C127),\"\",'Your User Details'!$C127)","v":""}]
[null,{"$f":"IF(ISBLANK('Your User Details'!$C128),\"\",\"P@ssw0rd\")","v":""},{"$f":"IF(ISBLANK('Your User Details'!$C128),\"\",'Your User Details'!$C128)","v":""}]
[null,{"$f":"IF(ISBLANK('Your User Details'!$C129),\"\",\"P@ssw0rd\")","v":""},{"$f":"IF(ISBLANK('Your User Details'!$C129),\"\",'Your User Details'!$C129)","v":""}]
[null,{"$f":"IF(ISBLANK('Your User Details'!$C130),\"\",\"P@ssw0rd\")","v":""},{"$f":"IF(ISBLANK('Your User Details'!$C130),\"\",'Your User Details'!$C130)","v":""}]
[null,{"$f":"IF(ISBLANK('Your User Details'!$C131),\"\",\"P@ssw0rd\")","v":""},{"$f":"IF(ISBLANK('Your User Details'!$C131),\"\",'Your User Details'!$C131)","v":""}]
[null,{"$f":"IF(ISBLANK('Your User Details'!$C132),\"\",\"P@ssw0rd\")","v":""},{"$f":"IF(ISBLANK('Your User Details'!$C132),\"\",'Your User Details'!$C132)","v":""}]
[null,{"$f":"IF(ISBLANK('Your User Details'!$C133),\"\",\"P@ssw0rd\")","v":""},{"$f":"IF(ISBLANK('Your User Details'!$C133),\"\",'Your User Details'!$C133)","v":""}]
[null,{"$f":"IF(ISBLANK('Your User Details'!$C134),\"\",\"P@ssw0rd\")","v":""},{"$f":"IF(ISBLANK('Your User Details'!$C134),\"\",'Your User Details'!$C134)","v":""}]
[null,{"$f":"IF(ISBLANK('Your User Details'!$C135),\"\",\"P@ssw0rd\")","v":""},{"$f":"IF(ISBLANK('Your User Details'!$C135),\"\",'Your User Details'!$C135)","v":""}]
[null,{"$f":"IF(ISBLANK('Your User Details'!$C136),\"\",\"P@ssw0rd\")","v":""},{"$f":"IF(ISBLANK('Your User Details'!$C136),\"\",'Your User Details'!$C136)","v":""}]
[null,{"$f":"IF(ISBLANK('Your User Details'!$C137),\"\",\"P@ssw0rd\")","v":""},{"$f":"IF(ISBLANK('Your User Details'!$C137),\"\",'Your User Details'!$C137)","v":""}]
[null,{"$f":"IF(ISBLANK('Your User Details'!$C138),\"\",\"P@ssw0rd\")","v":""},{"$f":"IF(ISBLANK('Your User Details'!$C138),\"\",'Your User Details'!$C138)","v":""}]
[null,{"$f":"IF(ISBLANK('Your User Details'!$C139),\"\",\"P@ssw0rd\")","v":""},{"$f":"IF(ISBLANK('Your User Details'!$C139),\"\",'Your User Details'!$C139)","v":""}]
[null,{"$f":"IF(ISBLANK('Your User Details'!$C140),\"\",\"P@ssw0rd\")","v":""},{"$f":"IF(ISBLANK('Your User Details'!$C140),\"\",'Your User Details'!$C140)","v":""}]
[null,{"$f":"IF(ISBLANK('Your User Details'!$C141),\"\",\"P@ssw0rd\")","v":""},{"$f":"IF(ISBLANK('Your User Details'!$C141),\"\",'Your User Details'!$C141)","v":""}]
[null,{"$f":"IF(ISBLANK('Your User Details'!$C142),\"\",\"P@ssw0rd\")","v":""},{"$f":"IF(ISBLANK('Your User Details'!$C142),\"\",'Your User Details'!$C142)","v":""}]
[null,{"$f":"IF(ISBLANK('Your User Details'!$C143),\"\",\"P@ssw0rd\")","v":""},{"$f":"IF(ISBLANK('Your User Details'!$C143),\"\",'Your User Details'!$C143)","v":""}]
[null,{"$f":"IF(ISBLANK('Your User Details'!$C144),\"\",\"P@ssw0rd\")","v":""},{"$f":"IF(ISBLANK('Your User Details'!$C144),\"\",'Your User Details'!$C144)","v":""}]
[null,{"$f":"IF(ISBLANK('Your User Details'!$C145),\"\",\"P@ssw0rd\")","v":""},{"$f":"IF(ISBLANK('Your User Details'!$C145),\"\",'Your User Details'!$C145)","v":""}]
[null,{"$f":"IF(ISBLANK('Your User Details'!$C146),\"\",\"P@ssw0rd\")","v":""},{"$f":"IF(ISBLANK('Your User Details'!$C146),\"\",'Your User Details'!$C146)","v":""}]
[null,{"$f":"IF(ISBLANK('Your User Details'!$C147),\"\",\"P@ssw0rd\")","v":""},{"$f":"IF(ISBLANK('Your User Details'!$C147),\"\",'Your User Details'!$C147)","v":""}]
[null,{"$f":"IF(ISBLANK('Your User Details'!$C148),\"\",\"P@ssw0rd\")","v":""},{"$f":"IF(ISBLANK('Your User Details'!$C148),\"\",'Your User Details'!$C148)","v":""}]
[null,{"$f":"IF(ISBLANK('Your User Details'!$C149),\"\",\"P@ssw0rd\")","v":""},{"$f":"IF(ISBLANK('Your User Details'!$C149),\"\",'Your User Details'!$C149)","v":""}]
[null,{"$f":"IF(ISBLANK('Your User Details'!$C150),\"\",\"P@ssw0rd\")","v":""},{"$f":"IF(ISBLANK('Your User Details'!$C150),\"\",'Your User Details'!$C150)","v":""}]
[null,{"$f":"IF(ISBLANK('Your User Details'!$C151),\"\",\"P@ssw0rd\")","v":""},{"$f":"IF(ISBLANK('Your User Details'!$C151),\"\",'Your User Details'!$C151)","v":""}]
[null,{"$f":"IF(ISBLANK('Your User Details'!$C152),\"\",\"P@ssw0rd\")","v":""},{"$f":"IF(ISBLANK('Your User Details'!$C152),\"\",'Your User Details'!$C152)","v":""}]
[null,{"$f":"IF(ISBLANK('Your User Details'!$C153),\"\",\"P@ssw0rd\")","v":""},{"$f":"IF(ISBLANK('Your User Details'!$C153),\"\",'Your User Details'!$C153)","v":""}]
[null,{"$f":"IF(ISBLANK('Your User Details'!$C154),\"\",\"P@ssw0rd\")","v":""},{"$f":"IF(ISBLANK('Your User Details'!$C154),\"\",'Your User Details'!$C154)","v":""}]
[null,{"$f":"IF(ISBLANK('Your User Details'!$C155),\"\",\"P@ssw0rd\")","v":""},{"$f":"IF(ISBLANK('Your User Details'!$C155),\"\",'Your User Details'!$C155)","v":""}]
[null,{"$f":"IF(ISBLANK('Your User Details'!$C156),\"\",\"P@ssw0rd\")","v":""},{"$f":"IF(ISBLANK('Your User Details'!$C156),\"\",'Your User Details'!$C156)","v":""}]
[null,{"$f":"IF(ISBLANK('Your User Details'!$C157),\"\",\"P@ssw0rd\")","v":""},{"$f":"IF(ISBLANK('Your User Details'!$C157),\"\",'Your User Details'!$C157)","v":""}]
[null,{"$f":"IF(ISBLANK('Your User Details'!$C158),\"\",\"P@ssw0rd\")","v":""},{"$f":"IF(ISBLANK('Your User Details'!$C158),\"\",'Your User Details'!$C158)","v":""}]
[null,{"$f":"IF(ISBLANK('Your User Details'!$C159),\"\",\"P@ssw0rd\")","v":""},{"$f":"IF(ISBLANK('Your User Details'!$C159),\"\",'Your User Details'!$C159)","v":""}]
[null,{"$f":"IF(ISBLANK('Your User Details'!$C160),\"\",\"P@ssw0rd\")","v":""},{"$f":"IF(ISBLANK('Your User Details'!$C160),\"\",'Your User Details'!$C160)","v":""}]
[null,{"$f":"IF(ISBLANK('Your User Details'!$C161),\"\",\"P@ssw0rd\")","v":""},{"$f":"IF(ISBLANK('Your User Details'!$C161),\"\",'Your User Details'!$C161)","v":""}]
[null,{"$f":"IF(ISBLANK('Your User Details'!$C162),\"\",\"P@ssw0rd\")","v":""},{"$f":"IF(ISBLANK('Your User Details'!$C162),\"\",'Your User Details'!$C162)","v":""}]
[null,{"$f":"IF(ISBLANK('Your User Details'!$C163),\"\",\"P@ssw0rd\")","v":""},{"$f":"IF(ISBLANK('Your User Details'!$C163),\"\",'Your User Details'!$C163)","v":""}]
[null,{"$f":"IF(ISBLANK('Your User Details'!$C164),\"\",\"P@ssw0rd\")","v":""},{"$f":"IF(ISBLANK('Your User Details'!$C164),\"\",'Your User Details'!$C164)","v":""}]
[null,{"$f":"IF(ISBLANK('Your User Details'!$C165),\"\",\"P@ssw0rd\")","v":""},{"$f":"IF(ISBLANK('Your User Details'!$C165),\"\",'Your User Details'!$C165)","v":""}]
[null,{"$f":"IF(ISBLANK('Your User Details'!$C166),\"\",\"P@ssw0rd\")","v":""},{"$f":"IF(ISBLANK('Your User Details'!$C166),\"\",'Your User Details'!$C166)","v":""}]
[null,{"$f":"IF(ISBLANK('Your User Details'!$C167),\"\",\"P@ssw0rd\")","v":""},{"$f":"IF(ISBLANK('Your User Details'!$C167),\"\",'Your User Details'!$C167)","v":""}]
[null,{"$f":"IF(ISBLANK('Your User Details'!$C168),\"\",\"P@ssw0rd\")","v":""},{"$f":"IF(ISBLANK('Your User Details'!$C168),\"\",'Your User Details'!$C168)","v":""}]
[null,{"$f":"IF(ISBLANK('Your User Details'!$C169),\"\",\"P@ssw0rd\")","v":""},{"$f":"IF(ISBLANK('Your User Details'!$C169),\"\",'Your User Details'!$C169)","v":""}]
[null,{"$f":"IF(ISBLANK('Your User Details'!$C170),\"\",\"P@ssw0rd\")","v":""},{"$f":"IF(ISBLANK('Your User Details'!$C170),\"\",'Your User Details'!$C170)","v":""}]
[null,{"$f":"IF(ISBLANK('Your User Details'!$C171),\"\",\"P@ssw0rd\")","v":""},{"$f":"IF(ISBLANK('Your User Details'!$C171),\"\",'Your User Details'!$C171)","v":""}]
[null,{"$f":"IF(ISBLANK('Your User Details'!$C172),\"\",\"P@ssw0rd\")","v":""},{"$f":"IF(ISBLANK('Your User Details'!$C172),\"\",'Your User Details'!$C172)","v":""}]
[null,{"$f":"IF(ISBLANK('Your User Details'!$C173),\"\",\"P@ssw0rd\")","v":""},{"$f":"IF(ISBLANK('Your User Details'!$C173),\"\",'Your User Details'!$C173)","v":""}]
[null,{"$f":"IF(ISBLANK('Your User Details'!$C174),\"\",\"P@ssw0rd\")","v":""},{"$f":"IF(ISBLANK('Your User Details'!$C174),\"\",'Your User Details'!$C174)","v":""}]
[null,{"$f":"IF(ISBLANK('Your User Details'!$C175),\"\",\"P@ssw0rd\")","v":""},{"$f":"IF(ISBLANK('Your User Details'!$C175),\"\",'Your User Details'!$C175)","v":""}]
[null,{"$f":"IF(ISBLANK('Your User Details'!$C176),\"\",\"P@ssw0rd\")","v":""},{"$f":"IF(ISBLANK('Your User Details'!$C176),\"\",'Your User Details'!$C176)","v":""}]
[null,{"$f":"IF(ISBLANK('Your User Details'!$C177),\"\",\"P@ssw0rd\")","v":""},{"$f":"IF(ISBLANK('Your User Details'!$C177),\"\",'Your User Details'!$C177)","v":""}]
[null,{"$f":"IF(ISBLANK('Your User Details'!$C178),\"\",\"P@ssw0rd\")","v":""},{"$f":"IF(ISBLANK('Your User Details'!$C178),\"\",'Your User Details'!$C178)","v":""}]
[null,{"$f":"IF(ISBLANK('Your User Details'!$C179),\"\",\"P@ssw0rd\")","v":""},{"$f":"IF(ISBLANK('Your User Details'!$C179),\"\",'Your User Details'!$C179)","v":""}]
[null,{"$f":"IF(ISBLANK('Your User Details'!$C180),\"\",\"P@ssw0rd\")","v":""},{"$f":"IF(ISBLANK('Your User Details'!$C180),\"\",'Your User Details'!$C180)","v":""}]
[null,{"$f":"IF(ISBLANK('Your User Details'!$C181),\"\",\"P@ssw0rd\")","v":""},{"$f":"IF(ISBLANK('Your User Details'!$C181),\"\",'Your User Details'!$C181)","v":""}]
[null,{"$f":"IF(ISBLANK('Your User Details'!$C182),\"\",\"P@ssw0rd\")","v":""},{"$f":"IF(ISBLANK('Your User Details'!$C182),\"\",'Your User Details'!$C182)","v":""}]
[null,{"$f":"IF(ISBLANK('Your User Details'!$C183),\"\",\"P@ssw0rd\")","v":""},{"$f":"IF(ISBLANK('Your User Details'!$C183),\"\",'Your User Details'!$C183)","v":""}]
[null,{"$f":"IF(ISBLANK('Your User Details'!$C184),\"\",\"P@ssw0rd\")","v":""},{"$f":"IF(ISBLANK('Your User Details'!$C184),\"\",'Your User Details'!$C184)","v":""}]
[null,{"$f":"IF(ISBLANK('Your User Details'!$C185),\"\",\"P@ssw0rd\")","v":""},{"$f":"IF(ISBLANK('Your User Details'!$C185),\"\",'Your User Details'!$C185)","v":""}]
[null,{"$f":"IF(ISBLANK('Your User Details'!$C186),\"\",\"P@ssw0rd\")","v":""},{"$f":"IF(ISBLANK('Your User Details'!$C186),\"\",'Your User Details'!$C186)","v":""}]
[null,{"$f":"IF(ISBLANK('Your User Details'!$C187),\"\",\"P@ssw0rd\")","v":""},{"$f":"IF(ISBLANK('Your User Details'!$C187),\"\",'Your User Details'!$C187)","v":""}]
[null,{"$f":"IF(ISBLANK('Your User Details'!$C188),\"\",\"P@ssw0rd\")","v":""},{"$f":"IF(ISBLANK('Your User Details'!$C188),\"\",'Your User Details'!$C188)","v":""}]
[null,{"$f":"IF(ISBLANK('Your User Details'!$C189),\"\",\"P@ssw0rd\")","v":""},{"$f":"IF(ISBLANK('Your User Details'!$C189),\"\",'Your User Details'!$C189)","v":""}]
[null,{"$f":"IF(ISBLANK('Your User Details'!$C190),\"\",\"P@ssw0rd\")","v":""},{"$f":"IF(ISBLANK('Your User Details'!$C190),\"\",'Your User Details'!$C190)","v":""}]
[null,{"$f":"IF(ISBLANK('Your User Details'!$C191),\"\",\"P@ssw0rd\")","v":""},{"$f":"IF(ISBLANK('Your User Details'!$C191),\"\",'Your User Details'!$C191)","v":""}]
[null,{"$f":"IF(ISBLANK('Your User Details'!$C192),\"\",\"P@ssw0rd\")","v":""},{"$f":"IF(ISBLANK('Your User Details'!$C192),\"\",'Your User Details'!$C192)","v":""}]
[null,{"$f":"IF(ISBLANK('Your User Details'!$C193),\"\",\"P@ssw0rd\")","v":""},{"$f":"IF(ISBLANK('Your User Details'!$C193),\"\",'Your User Details'!$C193)","v":""}]
[null,{"$f":"IF(ISBLANK('Your User Details'!$C194),\"\",\"P@ssw0rd\")","v":""},{"$f":"IF(ISBLANK('Your User Details'!$C194),\"\",'Your User Details'!$C194)","v":""}]
[null,{"$f":"IF(ISBLANK('Your User Details'!$C195),\"\",\"P@ssw0rd\")","v":""},{"$f":"IF(ISBLANK('Your User Details'!$C195),\"\",'Your User Details'!$C195)","v":""}]
[null,{"$f":"IF(ISBLANK('Your User Details'!$C196),\"\",\"P@ssw0rd\")","v":""},{"$f":"IF(ISBLANK('Your User Details'!$C196),\"\",'Your User Details'!$C196)","v":""}]
[null,{"$f":"IF(ISBLANK('Your User Details'!$C197),\"\",\"P@ssw0rd\")","v":""},{"$f":"IF(ISBLANK('Your User Details'!$C197),\"\",'Your User Details'!$C197)","v":""}]
[null,{"$f":"IF(ISBLANK('Your User Details'!$C198),\"\",\"P@ssw0rd\")","v":""},{"$f":"IF(ISBLANK('Your User Details'!$C198),\"\",'Your User Details'!$C198)","v":""}]
[null,{"$f":"IF(ISBLANK('Your User Details'!$C199),\"\",\"P@ssw0rd\")","v":""},{"$f":"IF(ISBLANK('Your User Details'!$C199),\"\",'Your User Details'!$C199)","v":""}]
[null,{"$f":"IF(ISBLANK('Your User Details'!$C200),\"\",\"P@ssw0rd\")","v":""},{"$f":"IF(ISBLANK('Your User Details'!$C200),\"\",'Your User Details'!$C200)","v":""}]
[null,{"$f":"IF(ISBLANK('Your User Details'!$C201),\"\",\"P@ssw0rd\")","v":""},{"$f":"IF(ISBLANK('Your User Details'!$C201),\"\",'Your User Details'!$C201)","v":""}]
[null,{"$f":"IF(ISBLANK('Your User Details'!$C202),\"\",\"P@ssw0rd\")","v":""},{"$f":"IF(ISBLANK('Your User Details'!$C202),\"\",'Your User Details'!$C202)","v":""}]
[null,{"$f":"IF(ISBLANK('Your User Details'!$C203),\"\",\"P@ssw0rd\")","v":""},{"$f":"IF(ISBLANK('Your User Details'!$C203),\"\",'Your User Details'!$C203)","v":""}]
[null,{"$f":"IF(ISBLANK('Your User Details'!$C204),\"\",\"P@ssw0rd\")","v":""},{"$f":"IF(ISBLANK('Your User Details'!$C204),\"\",'Your User Details'!$C204)","v":""}]
[null,{"$f":"IF(ISBLANK('Your User Details'!$C205),\"\",\"P@ssw0rd\")","v":""},{"$f":"IF(ISBLANK('Your User Details'!$C205),\"\",'Your User Details'!$C205)","v":""}]
[null,{"$f":"IF(ISBLANK('Your User Details'!$C206),\"\",\"P@ssw0rd\")","v":""},{"$f":"IF(ISBLANK('Your User Details'!$C206),\"\",'Your User Details'!$C206)","v":""}]
[null,{"$f":"IF(ISBLANK('Your User Details'!$C207),\"\",\"P@ssw0rd\")","v":""},{"$f":"IF(ISBLANK('Your User Details'!$C207),\"\",'Your User Details'!$C207)","v":""}]
[null,{"$f":"IF(ISBLANK('Your User Details'!$C208),\"\",\"P@ssw0rd\")","v":""},{"$f":"IF(ISBLANK('Your User Details'!$C208),\"\",'Your User Details'!$C208)","v":""}]
[null,{"$f":"IF(ISBLANK('Your User Details'!$C209),\"\",\"P@ssw0rd\")","v":""},{"$f":"IF(ISBLANK('Your User Details'!$C209),\"\",'Your User Details'!$C209)","v":""}]
[null,{"$f":"IF(ISBLANK('Your User Details'!$C210),\"\",\"P@ssw0rd\")","v":""},{"$f":"IF(ISBLANK('Your User Details'!$C210),\"\",'Your User Details'!$C210)","v":""}]
[null,{"$f":"IF(ISBLANK('Your User Details'!$C211),\"\",\"P@ssw0rd\")","v":""},{"$f":"IF(ISBLANK('Your User Details'!$C211),\"\",'Your User Details'!$C211)","v":""}]
[null,{"$f":"IF(ISBLANK('Your User Details'!$C212),\"\",\"P@ssw0rd\")","v":""},{"$f":"IF(ISBLANK('Your User Details'!$C212),\"\",'Your User Details'!$C212)","v":""}]
[null,{"$f":"IF(ISBLANK('Your User Details'!$C213),\"\",\"P@ssw0rd\")","v":""},{"$f":"IF(ISBLANK('Your User Details'!$C213),\"\",'Your User Details'!$C213)","v":""}]
[null,{"$f":"IF(ISBLANK('Your User Details'!$C214),\"\",\"P@ssw0rd\")","v":""},{"$f":"IF(ISBLANK('Your User Details'!$C214),\"\",'Your User Details'!$C214)","v":""}]
[null,{"$f":"IF(ISBLANK('Your User Details'!$C215),\"\",\"P@ssw0rd\")","v":""},{"$f":"IF(ISBLANK('Your User Details'!$C215),\"\",'Your User Details'!$C215)","v":""}]
[null,{"$f":"IF(ISBLANK('Your User Details'!$C216),\"\",\"P@ssw0rd\")","v":""},{"$f":"IF(ISBLANK('Your User Details'!$C216),\"\",'Your User Details'!$C216)","v":""}]
[null,{"$f":"IF(ISBLANK('Your User Details'!$C217),\"\",\"P@ssw0rd\")","v":""},{"$f":"IF(ISBLANK('Your User Details'!$C217),\"\",'Your User Details'!$C217)","v":""}]
[null,{"$f":"IF(ISBLANK('Your User Details'!$C218),\"\",\"P@ssw0rd\")","v":""},{"$f":"IF(ISBLANK('Your User Details'!$C218),\"\",'Your User Details'!$C218)","v":""}]
[null,{"$f":"IF(ISBLANK('Your User Details'!$C219),\"\",\"P@ssw0rd\")","v":""},{"$f":"IF(ISBLANK('Your User Details'!$C219),\"\",'Your User Details'!$C219)","v":""}]
[null,{"$f":"IF(ISBLANK('Your User Details'!$C220),\"\",\"P@ssw0rd\")","v":""},{"$f":"IF(ISBLANK('Your User Details'!$C220),\"\",'Your User Details'!$C220)","v":""}]
[null,{"$f":"IF(ISBLANK('Your User Details'!$C221),\"\",\"P@ssw0rd\")","v":""},{"$f":"IF(ISBLANK('Your User Details'!$C221),\"\",'Your User Details'!$C221)","v":""}]
[null,{"$f":"IF(ISBLANK('Your User Details'!$C222),\"\",\"P@ssw0rd\")","v":""},{"$f":"IF(ISBLANK('Your User Details'!$C222),\"\",'Your User Details'!$C222)","v":""}]
[null,{"$f":"IF(ISBLANK('Your User Details'!$C223),\"\",\"P@ssw0rd\")","v":""},{"$f":"IF(ISBLANK('Your User Details'!$C223),\"\",'Your User Details'!$C223)","v":""}]
[null,{"$f":"IF(ISBLANK('Your User Details'!$C224),\"\",\"P@ssw0rd\")","v":""},{"$f":"IF(ISBLANK('Your User Details'!$C224),\"\",'Your User Details'!$C224)","v":""}]
[null,{"$f":"IF(ISBLANK('Your User Details'!$C225),\"\",\"P@ssw0rd\")","v":""},{"$f":"IF(ISBLANK('Your User Details'!$C225),\"\",'Your User Details'!$C225)","v":""}]
[null,{"$f":"IF(ISBLANK('Your User Details'!$C226),\"\",\"P@ssw0rd\")","v":""},{"$f":"IF(ISBLANK('Your User Details'!$C226),\"\",'Your User Details'!$C226)","v":""}]
[null,{"$f":"IF(ISBLANK('Your User Details'!$C227),\"\",\"P@ssw0rd\")","v":""},{"$f":"IF(ISBLANK('Your User Details'!$C227),\"\",'Your User Details'!$C227)","v":""}]
[null,{"$f":"IF(ISBLANK('Your User Details'!$C228),\"\",\"P@ssw0rd\")","v":""},{"$f":"IF(ISBLANK('Your User Details'!$C228),\"\",'Your User Details'!$C228)","v":""}]
[null,{"$f":"IF(ISBLANK('Your User Details'!$C229),\"\",\"P@ssw0rd\")","v":""},{"$f":"IF(ISBLANK('Your User Details'!$C229),\"\",'Your User Details'!$C229)","v":""}]
[null,{"$f":"IF(ISBLANK('Your User Details'!$C230),\"\",\"P@ssw0rd\")","v":""},{"$f":"IF(ISBLANK('Your User Details'!$C230),\"\",'Your User Details'!$C230)","v":""}]
[null,{"$f":"IF(ISBLANK('Your User Details'!$C231),\"\",\"P@ssw0rd\")","v":""},{"$f":"IF(ISBLANK('Your User Details'!$C231),\"\",'Your User Details'!$C231)","v":""}]
[null,{"$f":"IF(ISBLANK('Your User Details'!$C232),\"\",\"P@ssw0rd\")","v":""},{"$f":"IF(ISBLANK('Your User Details'!$C232),\"\",'Your User Details'!$C232)","v":""}]
[null,{"$f":"IF(ISBLANK('Your User Details'!$C233),\"\",\"P@ssw0rd\")","v":""},{"$f":"IF(ISBLANK('Your User Details'!$C233),\"\",'Your User Details'!$C233)","v":""}]
[null,{"$f":"IF(ISBLANK('Your User Details'!$C234),\"\",\"P@ssw0rd\")","v":""},{"$f":"IF(ISBLANK('Your User Details'!$C234),\"\",'Your User Details'!$C234)","v":""}]
[null,{"$f":"IF(ISBLANK('Your User Details'!$C235),\"\",\"P@ssw0rd\")","v":""},{"$f":"IF(ISBLANK('Your User Details'!$C235),\"\",'Your User Details'!$C235)","v":""}]
[null,{"$f":"IF(ISBLANK('Your User Details'!$C236),\"\",\"P@ssw0rd\")","v":""},{"$f":"IF(ISBLANK('Your User Details'!$C236),\"\",'Your User Details'!$C236)","v":""}]
[null,{"$f":"IF(ISBLANK('Your User Details'!$C237),\"\",\"P@ssw0rd\")","v":""},{"$f":"IF(ISBLANK('Your User Details'!$C237),\"\",'Your User Details'!$C237)","v":""}]
[null,{"$f":"IF(ISBLANK('Your User Details'!$C238),\"\",\"P@ssw0rd\")","v":""},{"$f":"IF(ISBLANK('Your User Details'!$C238),\"\",'Your User Details'!$C238)","v":""}]
[null,{"$f":"IF(ISBLANK('Your User Details'!$C239),\"\",\"P@ssw0rd\")","v":""},{"$f":"IF(ISBLANK('Your User Details'!$C239),\"\",'Your User Details'!$C239)","v":""}]
[null,{"$f":"IF(ISBLANK('Your User Details'!$C240),\"\",\"P@ssw0rd\")","v":""},{"$f":"IF(ISBLANK('Your User Details'!$C240),\"\",'Your User Details'!$C240)","v":""}]
[null,{"$f":"IF(ISBLANK('Your User Details'!$C241),\"\",\"P@ssw0rd\")","v":""},{"$f":"IF(ISBLANK('Your User Details'!$C241),\"\",'Your User Details'!$C241)","v":""}]
[null,{"$f":"IF(ISBLANK('Your User Details'!$C242),\"\",\"P@ssw0rd\")","v":""},{"$f":"IF(ISBLANK('Your User Details'!$C242),\"\",'Your User Details'!$C242)","v":""}]
[null,{"$f":"IF(ISBLANK('Your User Details'!$C243),\"\",\"P@ssw0rd\")","v":""},{"$f":"IF(ISBLANK('Your User Details'!$C243),\"\",'Your User Details'!$C243)","v":""}]
[null,{"$f":"IF(ISBLANK('Your User Details'!$C244),\"\",\"P@ssw0rd\")","v":""},{"$f":"IF(ISBLANK('Your User Details'!$C244),\"\",'Your User Details'!$C244)","v":""}]
[null,{"$f":"IF(ISBLANK('Your User Details'!$C245),\"\",\"P@ssw0rd\")","v":""},{"$f":"IF(ISBLANK('Your User Details'!$C245),\"\",'Your User Details'!$C245)","v":""}]
[null,{"$f":"IF(ISBLANK('Your User Details'!$C246),\"\",\"P@ssw0rd\")","v":""},{"$f":"IF(ISBLANK('Your User Details'!$C246),\"\",'Your User Details'!$C246)","v":""}]
[null,{"$f":"IF(ISBLANK('Your User Details'!$C247),\"\",\"P@ssw0rd\")","v":""},{"$f":"IF(ISBLANK('Your User Details'!$C247),\"\",'Your User Details'!$C247)","v":""}]
[null,{"$f":"IF(ISBLANK('Your User Details'!$C248),\"\",\"P@ssw0rd\")","v":""},{"$f":"IF(ISBLANK('Your User Details'!$C248),\"\",'Your User Details'!$C248)","v":""}]
[null,{"$f":"IF(ISBLANK('Your User Details'!$C249),\"\",\"P@ssw0rd\")","v":""},{"$f":"IF(ISBLANK('Your User Details'!$C249),\"\",'Your User Details'!$C249)","v":""}]
[null,{"$f":"IF(ISBLANK('Your User Details'!$C250),\"\",\"P@ssw0rd\")","v":""},{"$f":"IF(ISBLANK('Your User Details'!$C250),\"\",'Your User Details'!$C250)","v":""}]
[null,{"$f":"IF(ISBLANK('Your User Details'!$C251),\"\",\"P@ssw0rd\")","v":""},{"$f":"IF(ISBLANK('Your User Details'!$C251),\"\",'Your User Details'!$C251)","v":""}]
[null,{"$f":"IF(ISBLANK('Your User Details'!$C252),\"\",\"P@ssw0rd\")","v":""},{"$f":"IF(ISBLANK('Your User Details'!$C252),\"\",'Your User Details'!$C252)","v":""}]
[null,{"$f":"IF(ISBLANK('Your User Details'!$C253),\"\",\"P@ssw0rd\")","v":""},{"$f":"IF(ISBLANK('Your User Details'!$C253),\"\",'Your User Details'!$C253)","v":""}]
[null,{"$f":"IF(ISBLANK('Your User Details'!$C254),\"\",\"P@ssw0rd\")","v":""},{"$f":"IF(ISBLANK('Your User Details'!$C254),\"\",'Your User Details'!$C254)","v":""}]

{"sheet":"Keys","index":23,"n_rows":231,"n_cols":13,"rows_kept":231,"cut":false,"hidden":true,"merged":[]}
["General Information","Markets","Company Details",null,null,null,null,"Checklist text",null,"Role",null,"Countries","Connection preferences"]
["Please select","Please select","Please select",null,"General Information",{"$f":"'Your Classes'!E4","v":0},null,"This section has been fully completed",null,"Broker",null,"Please select","Please select"]
["Yes","Yes","Qualifying",null,"Markets",0.12,null,"This section is almost completed",null,"Technician",null,"United Kingdom ","Connect to all new stamps made available on PPL and notify us once the connection is available"]
["No","No","Affiliate of Qualifying Company",null,"Test",0.25,null,"This section has been started",null,"Read-only",null,"-","Do not connect to all new stamps made available on PPL without our explicit prior approval"]
["Reset","N/A","Non-Qualifying Company",null,"Test",0.25,null,"This section is outstanding",null,"Superuser",null,"Afghanistan "]
[null,null,null,null,"Test",null,null,null,null,null,null,"Albania "]
[null,null,null,null,null,null,null,null,null,null,null,"Algeria "]
["Cascade response",null,null,null,null,null,null,null,null,null,null,"American Samoa "]
["Please select",null,null,null,null,null,null,null,null,null,null,"Andorra "]
["Yes to all/most",null,null,null,"Sum",{"$f":"SUM(F2:F9)","v":0.62},null,null,null,null,null,"Angola "]
["No to most",null,null,null,null,null,null,null,null,null,null,"Anguilla "]
["Reset",null,null,null,null,null,null,null,null,null,null,"Antigua & Barbuda "]
[null,null,null,null,null,null,null,null,null,null,null,"Argentina "]
[null,null,null,null,null,null,null,null,null,null,null,"Armenia "]
[null,null,null,null,null,null,null,null,null,null,null,"Aruba "]
[null,null,null,null,null,null,null,null,null,null,null,"Australia "]
[null,null,null,null,null,null,null,null,null,null,null,"Austria "]
[null,null,null,null,null,null,null,null,null,null,null,"Azerbaijan "]
[null,null,null,null,null,null,null,null,null,null,null,"Bahamas, The "]
[null,null,null,null,null,null,null,null,null,null,null,"Bahrain "]
[null,null,null,null,null,null,null,null,null,null,null,"Bangladesh "]
[null,null,null,null,null,null,null,null,null,null,null,"Barbados "]
[null,null,null,null,null,null,null,null,null,null,null,"Belarus "]
[null,null,null,null,null,null,null,null,null,null,null,"Belgium "]
[null,null,null,null,null,null,null,null,null,null,null,"Belize "]
[null,null,null,null,null,null,null,null,null,null,null,"Benin "]
[null,null,null,null,null,null,null,null,null,null,null,"Bermuda "]
[null,null,null,null,null,null,null,null,null,null,null,"Bhutan "]
[null,null,null,null,null,null,null,null,null,null,null,"Bolivia "]
[null,null,null,null,null,null,null,null,null,null,null,"Bosnia & Herzegovina "]
[null,null,null,null,null,null,null,null,null,null,null,"Botswana "]
[null,null,null,null,null,null,null,null,null,null,null,"Brazil "]
[null,null,null,null,null,null,null,null,null,null,null,"British Virgin Is. "]
[null,null,null,null,null,null,null,null,null,null,null,"Brunei "]
[null,null,null,null,null,null,null,null,null,null,null,"Bulgaria "]
[null,null,null,null,null,null,null,null,null,null,null,"Burkina Faso "]
[null,null,null,null,null,null,null,null,null,null,null,"Burma "]
[null,null,null,null,null,null,null,null,null,null,null,"Burundi "]
[null,null,null,null,null,null,null,null,null,null,null,"Cambodia "]
[null,null,null,null,null,null,null,null,null,null,null,"Cameroon "]
[null,null,null,null,null,null,null,null,null,null,null,"Canada "]
[null,null,null,null,null,null,null,null,null,null,null,"Cape Verde "]
[null,null,null,null,null,null,null,null,null,null,null,"Cayman Islands "]
[null,null,null,null,null,null,null,null,null,null,null,"Central African Rep. "]
[null,null,null,null,null,null,null,null,null,null,null,"Chad "]
[null,null,null,null,null,null,null,null,null,null,null,"Chile "]
[null,null,null,null,null,null,null,null,null,null,null,"China "]
[null,null,null,null,null,null,null,null,null,null,null,"Colombia "]
[null,null,null,null,null,null,null,null,null,null,null,"Comoros "]
[null,null,null,null,null,null,null,null,null,null,null,"Congo, Dem. Rep. "]
[null,null,null,null,null,null,null,null,null,null,null,"Congo, Repub. of the "]
[null,null,null,null,null,null,null,null,null,null,null,"Cook Islands "]
[null,null,null,null,null,null,null,null,null,null,null,"Costa Rica "]
[null,null,null,null,null,null,null,null,null,null,null,"Cote d'Ivoire "]
[null,null,null,null,null,null,null,null,null,null,null,"Croatia "]
[null,null,null,null,null,null,null,null,null,null,null,"Cuba "]
[null,null,null,null,null,null,null,null,null,null,null,"Cyprus "]
[null,null,null,null,null,null,null,null,null,null,null,"Czech Republic "]
[null,null,null,null,null,null,null,null,null,null,null,"Denmark "]
[null,null,null,null,null,null,null,null,null,null,null,"Djibouti "]
[null,null,null,null,null,null,null,null,null,null,null,"Dominica "]
[null,null,null,null,null,null,null,null,null,null,null,"Dominican Republic "]
[null,null,null,null,null,null,null,null,null,null,null,"East Timor "]
[null,null,null,null,null,null,null,null,null,null,null,"Ecuador "]
[null,null,null,null,null,null,null,null,null,null,null,"Egypt "]
[null,null,null,null,null,null,null,null,null,null,null,"El Salvador "]
[null,null,null,null,null,null,null,null,null,null,null,"Equatorial Guinea "]
[null,null,null,null,null,null,null,null,null,null,null,"Eritrea "]
[null,null,null,null,null,null,null,null,null,null,null,"Estonia "]
[null,null,null,null,null,null,null,null,null,null,null,"Ethiopia "]
[null,null,null,null,null,null,null,null,null,null,null,"Faroe Islands "]
[null,null,null,null,null,null,null,null,null,null,null,"Fiji "]
[null,null,null,null,null,null,null,null,null,null,null,"Finland "]
[null,null,null,null,null,null,null,null,null,null,null,"France "]
[null,null,null,null,null,null,null,null,null,null,null,"French Guiana "]
[null,null,null,null,null,null,null,null,null,null,null,"French Polynesia "]
[null,null,null,null,null,null,null,null,null,null,null,"Gabon "]
[null,null,null,null,null,null,null,null,null,null,null,"Gambia, The "]
[null,null,null,null,null,null,null,null,null,null,null,"Gaza Strip "]
[null,null,null,null,null,null,null,null,null,null,null,"Georgia "]
[null,null,null,null,null,null,null,null,null,null,null,"Germany "]
[null,null,null,null,null,null,null,null,null,null,null,"Ghana "]
[null,null,null,null,null,null,null,null,null,null,null,"Gibraltar "]
[null,null,null,null,null,null,null,null,null,null,null,"Greece "]
[null,null,null,null,null,null,null,null,null,null,null,"Greenland "]
[null,null,null,null,null,null,null,null,null,null,null,"Grenada "]
[null,null,null,null,null,null,null,null,null,null,null,"Guadeloupe "]
[null,null,null,null,null,null,null,null,null,null,null,"Guam "]
[null,null,null,null,null,null,null,null,null,null,null,"Guatemala "]
[null,null,null,null,null,null,null,null,null,null,null,"Guernsey "]
[null,null,null,null,null,null,null,null,null,null,null,"Guinea "]
[null,null,null,null,null,null,null,null,null,null,null,"Guinea-Bissau "]
[null,null,null,null,null,null,null,null,null,null,null,"Guyana "]
[null,null,null,null,null,null,null,null,null,null,null,"Haiti "]
[null,null,null,null,null,null,null,null,null,null,null,"Honduras "]
[null,null,null,null,null,null,null,null,null,null,null,"Hong Kong "]
[null,null,null,null,null,null,null,null,null,null,null,"Hungary "]
[null,null,null,null,null,null,null,null,null,null,null,"Iceland "]
[null,null,null,null,null,null,null,null,null,null,null,"India "]
[null,null,null,null,null,null,null,null,null,null,null,"Indonesia "]
[null,null,null,null,null,null,null,null,null,null,null,"Iran "]
[null,null,null,null,null,null,null,null,null,null,null,"Iraq "]
[null,null,null,null,null,null,null,null,null,null,null,"Ireland "]
[null,null,null,null,null,null,null,null,null,null,null,"Isle of Man "]
[null,null,null,null,null,null,null,null,null,null,null,"Israel "]
[null,null,null,null,null,null,null,null,null,null,null,"Italy "]
[null,null,null,null,null,null,null,null,null,null,null,"Jamaica "]
[null,null,null,null,null,null,null,null,null,null,null,"Japan "]
[null,null,null,null,null,null,null,null,null,null,null,"Jersey "]
[null,null,null,null,null,null,null,null,null,null,null,"Jordan "]
[null,null,null,null,null,null,null,null,null,null,null,"Kazakhstan "]
[null,null,null,null,null,null,null,null,null,null,null,"Kenya "]
[null,null,null,null,null,null,null,null,null,null,null,"Kiribati "]
[null,null,null,null,null,null,null,null,null,null,null,"Korea, North "]
[null,null,null,null,null,null,null,null,null,null,null,"Korea, South "]
[null,null,null,null,null,null,null,null,null,null,null,"Kuwait "]
[null,null,null,null,null,null,null,null,null,null,null,"Kyrgyzstan "]
[null,null,null,null,null,null,null,null,null,null,null,"Laos "]
[null,null,null,null,null,null,null,null,null,null,null,"Latvia "]
[null,null,null,null,null,null,null,null,null,null,null,"Lebanon "]
[null,null,null,null,null,null,null,null,null,null,null,"Lesotho "]
[null,null,null,null,null,null,null,null,null,null,null,"Liberia "]
[null,null,null,null,null,null,null,null,null,null,null,"Libya "]
[null,null,null,null,null,null,null,null,null,null,null,"Liechtenstein "]
[null,null,null,null,null,null,null,null,null,null,null,"Lithuania "]
[null,null,null,null,null,null,null,null,null,null,null,"Luxembourg "]
[null,null,null,null,null,null,null,null,null,null,null,"Macau "]
[null,null,null,null,null,null,null,null,null,null,null,"Macedonia "]
[null,null,null,null,null,null,null,null,null,null,null,"Madagascar "]
[null,null,null,null,null,null,null,null,null,null,null,"Malawi "]
[null,null,null,null,null,null,null,null,null,null,null,"Malaysia "]
[null,null,null,null,null,null,null,null,null,null,null,"Maldives "]
[null,null,null,null,null,null,null,null,null,null,null,"Mali "]
[null,null,null,null,null,null,null,null,null,null,null,"Malta "]
[null,null,null,null,null,null,null,null,null,null,null,"Marshall Islands "]
[null,null,null,null,null,null,null,null,null,null,null,"Martinique "]
[null,null,null,null,null,null,null,null,null,null,null,"Mauritania "]
[null,null,null,null,null,null,null,null,null,null,null,"Mauritius "]
[null,null,null,null,null,null,null,null,null,null,null,"Mayotte "]
[null,null,null,null,null,null,null,null,null,null,null,"Mexico "]
[null,null,null,null,null,null,null,null,null,null,null,"Micronesia, Fed. St. "]
[null,null,null,null,null,null,null,null,null,null,null,"Moldova "]
[null,null,null,null,null,null,null,null,null,null,null,"Monaco "]
[null,null,null,null,null,null,null,null,null,null,null,"Mongolia "]
[null,null,null,null,null,null,null,null,null,null,null,"Montserrat "]
[null,null,null,null,null,null,null,null,null,null,null,"Morocco "]
[null,null,null,null,null,null,null,null,null,null,null,"Mozambique "]
[null,null,null,null,null,null,null,null,null,null,null,"Namibia "]
[null,null,null,null,null,null,null,null,null,null,null,"Nauru "]
[null,null,null,null,null,null,null,null,null,null,null,"Nepal "]
[null,null,null,null,null,null,null,null,null,null,null,"Netherlands "]
[null,null,null,null,null,null,null,null,null,null,null,"Netherlands Antilles "]
[null,null,null,null,null,null,null,null,null,null,null,"New Caledonia "]
[null,null,null,null,null,null,null,null,null,null,null,"New Zealand "]
[null,null,null,null,null,null,null,null,null,null,null,"Nicaragua "]
[null,null,null,null,null,null,null,null,null,null,null,"Niger "]
[null,null,null,null,null,null,null,null,null,null,null,"Nigeria "]
[null,null,null,null,null,null,null,null,null,null,null,"N. Mariana Islands "]
[null,null,null,null,null,null,null,null,null,null,null,"Norway "]
[null,null,null,null,null,null,null,null,null,null,null,"Oman "]
[null,null,null,null,null,null,null,null,null,null,null,"Pakistan "]
[null,null,null,null,null,null,null,null,null,null,null,"Palau "]
[null,null,null,null,null,null,null,null,null,null,null,"Panama "]
[null,null,null,null,null,null,null,null,null,null,null,"Papua New Guinea "]
[null,null,null,null,null,null,null,null,null,null,null,"Paraguay "]
[null,null,null,null,null,null,null,null,null,null,null,"Peru "]
[null,null,null,null,null,null,null,null,null,null,null,"Philippines "]
[null,null,null,null,null,null,null,null,null,null,null,"Poland "]
[null,null,null,null,null,null,null,null,null,null,null,"Portugal "]
[null,null,null,null,null,null,null,null,null,null,null,"Puerto Rico "]
[null,null,null,null,null,null,null,null,null,null,null,"Qatar "]
[null,null,null,null,null,null,null,null,null,null,null,"Reunion "]
[null,null,null,null,null,null,null,null,null,null,null,"Romania "]
[null,null,null,null,null,null,null,null,null,null,null,"Russia "]
[null,null,null,null,null,null,null,null,null,null,null,"Rwanda "]
[null,null,null,null,null,null,null,null,null,null,null,"Saint Helena "]
[null,null,null,null,null,null,null,null,null,null,null,"Saint Kitts & Nevis "]
[null,null,null,null,null,null,null,null,null,null,null,"Saint Lucia "]
[null,null,null,null,null,null,null,null,null,null,null,"St Pierre & Miquelon "]
[null,null,null,null,null,null,null,null,null,null,null,"Saint Vincent and the Grenadines "]
[null,null,null,null,null,null,null,null,null,null,null,"Samoa "]
[null,null,null,null,null,null,null,null,null,null,null,"San Marino "]
[null,null,null,null,null,null,null,null,null,null,null,"Sao Tome & Principe "]
[null,null,null,null,null,null,null,null,null,null,null,"Saudi Arabia "]
[null,null,null,null,null,null,null,null,null,null,null,"Senegal "]
[null,null,null,null,null,null,null,null,null,null,null,"Serbia "]
[null,null,null,null,null,null,null,null,null,null,null,"Seychelles "]
[null,null,null,null,null,null,null,null,null,null,null,"Sierra Leone "]
[null,null,null,null,null,null,null,null,null,null,null,"Singapore "]
[null,null,null,null,null,null,null,null,null,null,null,"Slovakia "]
[null,null,null,null,null,null,null,null,null,null,null,"Slovenia "]
[null,null,null,null,null,null,null,null,null,null,null,"Solomon Islands "]
[null,null,null,null,null,null,null,null,null,null,null,"Somalia "]
[null,null,null,null,null,null,null,null,null,null,null,"South Africa "]
[null,null,null,null,null,null,null,null,null,null,null,"Spain "]
[null,null,null,null,null,null,null,null,null,null,null,"Sri Lanka "]
[null,null,null,null,null,null,null,null,null,null,null,"Sudan "]
[null,null,null,null,null,null,null,null,null,null,null,"Suriname "]
[null,null,null,null,null,null,null,null,null,null,null,"Swaziland "]
[null,null,null,null,null,null,null,null,null,null,null,"Sweden "]
[null,null,null,null,null,null,null,null,null,null,null,"Switzerland "]
[null,null,null,null,null,null,null,null,null,null,null,"Syria "]
[null,null,null,null,null,null,null,null,null,null,null,"Taiwan "]
[null,null,null,null,null,null,null,null,null,null,null,"Tajikistan "]
[null,null,null,null,null,null,null,null,null,null,null,"Tanzania "]
[null,null,null,null,null,null,null,null,null,null,null,"Thailand "]
[null,null,null,null,null,null,null,null,null,null,null,"Togo "]
[null,null,null,null,null,null,null,null,null,null,null,"Tonga "]
[null,null,null,null,null,null,null,null,null,null,null,"Trinidad & Tobago "]
[null,null,null,null,null,null,null,null,null,null,null,"Tunisia "]
[null,null,null,null,null,null,null,null,null,null,null,"Turkey "]
[null,null,null,null,null,null,null,null,null,null,null,"Turkmenistan "]
[null,null,null,null,null,null,null,null,null,null,null,"Turks & Caicos Is "]
[null,null,null,null,null,null,null,null,null,null,null,"Tuvalu "]
[null,null,null,null,null,null,null,null,null,null,null,"Uganda "]
[null,null,null,null,null,null,null,null,null,null,null,"Ukraine "]
[null,null,null,null,null,null,null,null,null,null,null,"United Arab Emirates "]
[null,null,null,null,null,null,null,null,null,null,null,"United Kingdom "]
[null,null,null,null,null,null,null,null,null,null,null,"United States "]
[null,null,null,null,null,null,null,null,null,null,null,"Uruguay "]
[null,null,null,null,null,null,null,null,null,null,null,"Uzbekistan "]
[null,null,null,null,null,null,null,null,null,null,null,"Vanuatu "]
[null,null,null,null,null,null,null,null,null,null,null,"Venezuela "]
[null,null,null,null,null,null,null,null,null,null,null,"Vietnam "]
[null,null,null,null,null,null,null,null,null,null,null,"Virgin Islands "]
[null,null,null,null,null,null,null,null,null,null,null,"Wallis and Futuna "]
[null,null,null,null,null,null,null,null,null,null,null,"West Bank "]
[null,null,null,null,null,null,null,null,null,null,null,"Western Sahara "]
[null,null,null,null,null,null,null,null,null,null,null,"Yemen "]
[null,null,null,null,null,null,null,null,null,null,null,"Zambia "]
[null,null,null,null,null,null,null,null,null,null,null,"Zimbabwe "]